Workbook

Sheet ROE Analysis
G1: For Interpolate
A2: Value Drivers | D2: Terminal | F2: ROE Move | G2: 1 | H2: 5 | I2: 10
B3: ROE | D3: 0.08 | F3: Declining | G3: 0.32 | H3: 0.15 | I3: 0.1
B4: GROW RATE | D4: 0.03 | F4: Increaing | G4: 0.15 | H4: 0.2 | I4: 0.3 | K4: Computed P/E | M4: =D23 -> 5.381934484
B5: COST OF CAP | D5: 0.08 | F5: Flat | G5: 0.08 | H5: 0.08 | I5: 0.08 | K5: Observed P/E
B6: DPO | D6: =1-D4/D3 -> 0.625 | F6: 1 | G6: =INDEX(G3:G5,$F$6) -> 0.32 | H6: =INDEX(H3:H5,$F$6) -> 0.15 | I6: =INDEX(I3:I5,$F$6) -> 0.1 | K6: Difference
B7: BV | D7: 14.4 | K7: Implied k
A9: Interpolate
E10: 1 | F10: 2 | G10: 3 | H10: 4 | I10: 5 | J10: 6 | K10: 7 | L10: 8 | M10: 9 | N10: 10 | O10: 11 | P10: 12 | Q10: 13 | R10: 14 | S10: 15 | T10: 16 | U10: 17 | V10: 18 | W10: 19 | X10: 20 | Y10: 21 | Z10: 22 | AA10: 23 | AB10: 24 | AC10: 25 | AD10: 26 | AE10: 27 | AF10: 28 | AG10: 29 | AH10: 30 | AI10: 31 | AJ10: 32 | AK10: 33 | AL10: 34 | AM10: 35 | AN10: 36 | AO10: 37 | AP10: 38 | AQ10: 39 | AR10: 40 | AS10: 41 | AT10: 42 | AU10: 43 | AV10: 44 | AW10: 45 | AX10: 46 | AY10: 47 | AZ10: 48 | BA10: 49 | BB10: 50 | BC10: 51 | BD10: 52 | BE10: 53 | BF10: 54 | BG10: 55 | BH10: 56 | BI10: 57 | BJ10: 58 | BK10: 59 | BL10: 60 | BM10: 61 | BN10: 62 | BO10: 63 | BP10: 64 | BQ10: 65 | BR10: 66 | BS10: 67 | BT10: 68 | BU10: 69 | BV10: 70 | BW10: 71 | BX10: 72 | BY10: 73 | BZ10: 74 | CA10: 75 | CB10: 76 | CC10: 77 | CD10: 78 | CE10: 79 | CF10: 80 | CG10: 81 | CH10: 82 | CI10: 83 | CJ10: 84 | CK10: 85 | CL10: 86 | CM10: 87 | CN10: 88 | CO10: 89 | CP10: 90 | CQ10: 91 | CR10: 92 | CS10: 93 | CT10: 94 | CU10: 95 | CV10: 96 | CW10: 97 | CX10: 98 | CY10: 99 | CZ10: 100 | DA10: 101 | DB10: 102 | DC10: 103 | DD10: 104 | DE10: 105 | DF10: 106 | DG10: 107 | DH10: 108 | DI10: 109 | DJ10: 110 | DK10: 111 | DL10: 112 | DM10: 113 | DN10: 114 | DO10: 115 | DP10: 116 | DQ10: 117 | DR10: 118 | DS10: 119 | DT10: 120 | DU10: 121 | DV10: 122 | DW10: 123 | DX10: 124 | DY10: 125 | DZ10: 126 | EA10: 127 | EB10: 128 | EC10: 129 | ED10: 130 | EE10: 131 | EF10: 132 | EG10: 133 | EH10: 134 | EI10: 135 | EJ10: 136 | EK10: 137 | EL10: 138 | EM10: 139 | EN10: 140 | EO10: 141 | EP10: 142 | EQ10: 143 | ER10: 144 | ES10: 145 | ET10: 146 | EU10: 147 | EV10: 148 | EW10: 149 | EX10: 150 | EY10: 151 | EZ10: 152 | FA10: 153 | FB10: 154 | FC10: 155 | FD10: 156 | FE10: 157 | FF10: 158 | FG10: 159 | FH10: 160 | FI10: 161 | FJ10: 162 | FK10: 163 | FL10: 164 | FM10: 165 | FN10: 166 | FO10: 167 | FP10: 168 | FQ10: 169 | FR10: 170 | FS10: 171 | FT10: 172 | FU10: 173 | FV10: 174 | FW10: 175 | FX10: 176 | FY10: 177 | FZ10: 178 | GA10: 179 | GB10: 180 | GC10: 181 | GD10: 182 | GE10: 183 | GF10: 184 | GG10: 185 | GH10: 186 | GI10: 187 | GJ10: 188 | GK10: 189 | GL10: 190 | GM10: 191 | GN10: 192 | GO10: 193 | GP10: 194 | GQ10: 195 | GR10: 196 | GS10: 197 | GT10: 198 | GU10: 199 | GV10: 200 | GW10: 201 | GX10: 202 | GY10: 203 | GZ10: 204 | HA10: 205 | HB10: 206 | HC10: 207 | HD10: 208 | HE10: 209 | HF10: 210 | HG10: 211 | HH10: 212 | HI10: 213 | HJ10: 214 | HK10: 215 | HL10: 216 | HM10: 217 | HN10: 218 | HO10: 219 | HP10: 220 | HQ10: 221 | HR10: 222 | HS10: 223 | HT10: 224 | HU10: 225 | HV10: 226 | HW10: 227 | HX10: 228 | HY10: 229 | HZ10: 230 | IA10: 231 | IB10: 232 | IC10: 233 | ID10: 234 | IE10: 235 | IF10: 236 | IG10: 237 | IH10: 238 | II10: 239 | IJ10: 240 | IK10: 241 | IL10: 242 | IM10: 243 | IN10: 244 | IO10: 245 | IP10: 246 | IQ10: 247 | IR10: 248 | IS10: 249 | IT10: 250 | IU10: 251 | IV10: 252 | IW10: 253 | IX10: 254 | IY10: 255 | IZ10: 256 | JA10: 257 | JB10: 258 | JC10: 259 | JD10: 260 | JE10: 261 | JF10: 262 | JG10: 263 | JH10: 264 | JI10: 265 | JJ10: 266 | JK10: 267 | JL10: 268 | JM10: 269 | JN10: 270 | JO10: 271 | JP10: 272 | JQ10: 273 | JR10: 274 | JS10: 275 | JT10: 276 | JU10: 277 | JV10: 278 | JW10: 279 | JX10: 280 | JY10: 281 | JZ10: 282 | KA10: 283 | KB10: 284 | KC10: 285 | KD10: 286 | KE10: 287 | KF10: 288 | KG10: 289 | KH10: 290 | KI10: 291 | KJ10: 292 | KK10: 293 | KL10: 294 | KM10: 295 | KN10: 296 | KO10: 297 | KP10: 298 | KQ10: 299 | KR10: 300 | KS10: 301 | KT10: 302 | KU10: 303 | KV10: 304 | KW10: 305 | KX10: 306 | KY10: 307 | KZ10: 308 | LA10: 309 | LB10: 310 | LC10: 311 | LD10: 312 | LE10: 313 | LF10: 314 | LG10: 315 | LH10: 316 | LI10: 317 | LJ10: 318 | LK10: 319 | LL10: 320 | LM10: 321 | LN10: 322 | LO10: 323 | LP10: 324 | LQ10: 325 | LR10: 326 | LS10: 327 | LT10: 328 | LU10: 329 | LV10: 330 | LW10: 331 | LX10: 332 | LY10: 333 | LZ10: 334 | MA10: 335 | MB10: 336 | MC10: 337 | MD10: 338 | ME10: 339 | MF10: 340 | MG10: 341 | MH10: 342 | MI10: 343 | MJ10: 344 | MK10: 345 | ML10: 346 | MM10: 347 | MN10: 348 | MO10: 349 | MP10: 350 | MQ10: 351 | MR10: 352 | MS10: 353 | MT10: 354 | MU10: 355 | MV10: 356 | MW10: 357 | MX10: 358 | MY10: 359 | MZ10: 360 | NA10: 361 | NB10: 362 | NC10: 363 | ND10: 364 | NE10: 365 | NF10: 366 | NG10: 367 | NH10: 368 | NI10: 369 | NJ10: 370 | NK10: 371 | NL10: 372 | NM10: 373 | NN10: 374 | NO10: 375 | NP10: 376 | NQ10: 377 | NR10: 378 | NS10: 379 | NT10: 380 | NU10: 381 | NV10: 382 | NW10: 383 | NX10: 384 | NY10: 385 | NZ10: 386 | OA10: 387 | OB10: 388 | OC10: 389 | OD10: 390 | OE10: 391 | OF10: 392 | OG10: 393 | OH10: 394 | OI10: 395 | OJ10: 396 | OK10: 397 | OL10: 398 | OM10: 399 | ON10: 400
B11: ROE | E11: =interpolate_look_up(E10,2:2,6:6) -> 0.32 | F11: 0.2647800736 | G11: 0.219089023 | H11: 0.1812825238 | I11: 0.15 | J11: 0.1383161867 | K11: 0.1275424501 | L11: 0.1176079023 | M11: 0.1084471771 | N11: 0.1 | O11: 0.1 | P11: 0.1 | Q11: 0.1 | R11: 0.1 | S11: 0.1 | T11: 0.1 | U11: 0.1 | V11: 0.1 | W11: 0.1 | X11: 0.1 | Y11: 0.1 | Z11: 0.1 | AA11: 0.1 | AB11: 0.1 | AC11: 0.1 | AD11: 0.1 | AE11: 0.1 | AF11: 0.1 | AG11: 0.1 | AH11: 0.1 | AI11: 0.1 | AJ11: 0.1 | AK11: 0.1 | AL11: 0.1 | AM11: 0.1 | AN11: 0.1 | AO11: 0.1 | AP11: 0.1 | AQ11: 0.1 | AR11: 0.1 | AS11: 0.1 | AT11: 0.1 | AU11: 0.1 | AV11: 0.1 | AW11: 0.1 | AX11: 0.1 | AY11: 0.1 | AZ11: 0.1 | BA11: 0.1 | BB11: 0.1 | BC11: 0.1 | BD11: 0.1 | BE11: 0.1 | BF11: 0.1 | BG11: 0.1 | BH11: 0.1 | BI11: 0.1 | BJ11: 0.1 | BK11: 0.1 | BL11: 0.1 | BM11: 0.1 | BN11: 0.1 | BO11: 0.1 | BP11: 0.1 | BQ11: =interpolate_look_up(BQ10,2:2,6:6) -> 0.1 | BR11: 0.1 | BS11: 0.1 | BT11: 0.1 | BU11: 0.1 | BV11: 0.1 | BW11: 0.1 | BX11: 0.1 | BY11: 0.1 | BZ11: 0.1 | CA11: 0.1 | CB11: 0.1 | CC11: 0.1 | CD11: 0.1 | CE11: 0.1 | CF11: 0.1 | CG11: 0.1 | CH11: 0.1 | CI11: 0.1 | CJ11: 0.1 | CK11: 0.1 | CL11: 0.1 | CM11: 0.1 | CN11: 0.1 | CO11: 0.1 | CP11: 0.1 | CQ11: 0.1 | CR11: 0.1 | CS11: 0.1 | CT11: 0.1 | CU11: 0.1 | CV11: 0.1 | CW11: 0.1 | CX11: 0.1 | CY11: 0.1 | CZ11: 0.1 | DA11: 0.1 | DB11: 0.1 | DC11: 0.1 | DD11: 0.1 | DE11: 0.1 | DF11: 0.1 | DG11: 0.1 | DH11: 0.1 | DI11: 0.1 | DJ11: 0.1 | DK11: 0.1 | DL11: 0.1 | DM11: 0.1 | DN11: 0.1 | DO11: 0.1 | DP11: 0.1 | DQ11: 0.1 | DR11: 0.1 | DS11: 0.1 | DT11: 0.1 | DU11: 0.1 | DV11: 0.1 | DW11: 0.1 | DX11: 0.1 | DY11: 0.1 | DZ11: 0.1 | EA11: 0.1 | EB11: 0.1 | EC11: =interpolate_look_up(EC10,2:2,6:6) -> 0.1 | ED11: 0.1 | EE11: 0.1 | EF11: 0.1 | EG11: 0.1 | EH11: 0.1 | EI11: 0.1 | EJ11: 0.1 | EK11: 0.1 | EL11: 0.1 | EM11: 0.1 | EN11: 0.1 | EO11: 0.1 | EP11: 0.1 | EQ11: 0.1 | ER11: 0.1 | ES11: 0.1 | ET11: 0.1 | EU11: 0.1 | EV11: 0.1 | EW11: 0.1 | EX11: 0.1 | EY11: 0.1 | EZ11: 0.1 | FA11: 0.1 | FB11: 0.1 | FC11: 0.1 | FD11: 0.1 | FE11: 0.1 | FF11: 0.1 | FG11: 0.1 | FH11: 0.1 | FI11: 0.1 | FJ11: 0.1 | FK11: 0.1 | FL11: 0.1 | FM11: 0.1 | FN11: 0.1 | FO11: 0.1 | FP11: 0.1 | FQ11: 0.1 | FR11: 0.1 | FS11: 0.1 | FT11: 0.1 | FU11: 0.1 | FV11: 0.1 | FW11: 0.1 | FX11: 0.1 | FY11: 0.1 | FZ11: 0.1 | GA11: 0.1 | GB11: 0.1 | GC11: 0.1 | GD11: 0.1 | GE11: 0.1 | GF11: 0.1 | GG11: 0.1 | GH11: 0.1 | GI11: 0.1 | GJ11: 0.1 | GK11: 0.1 | GL11: 0.1 | GM11: 0.1 | GN11: 0.1 | GO11: =interpolate_look_up(GO10,2:2,6:6) -> 0.1 | GP11: 0.1 | GQ11: 0.1 | GR11: 0.1 | GS11: 0.1 | GT11: 0.1 | GU11: 0.1 | GV11: 0.1 | GW11: 0.1 | GX11: 0.1 | GY11: 0.1 | GZ11: 0.1 | HA11: 0.1 | HB11: 0.1 | HC11: 0.1 | HD11: 0.1 | HE11: 0.1 | HF11: 0.1 | HG11: 0.1 | HH11: 0.1 | HI11: 0.1 | HJ11: 0.1 | HK11: 0.1 | HL11: 0.1 | HM11: 0.1 | HN11: 0.1 | HO11: 0.1 | HP11: 0.1 | HQ11: 0.1 | HR11: 0.1 | HS11: 0.1 | HT11: 0.1 | HU11: 0.1 | HV11: 0.1 | HW11: 0.1 | HX11: 0.1 | HY11: 0.1 | HZ11: 0.1 | IA11: 0.1 | IB11: 0.1 | IC11: 0.1 | ID11: 0.1 | IE11: 0.1 | IF11: 0.1 | IG11: 0.1 | IH11: 0.1 | II11: 0.1 | IJ11: 0.1 | IK11: 0.1 | IL11: 0.1 | IM11: 0.1 | IN11: 0.1 | IO11: 0.1 | IP11: 0.1 | IQ11: 0.1 | IR11: 0.1 | IS11: 0.1 | IT11: 0.1 | IU11: 0.1 | IV11: 0.1 | IW11: 0.1 | IX11: 0.1 | IY11: 0.1 | IZ11: 0.1 | JA11: =interpolate_look_up(JA10,2:2,6:6) -> 0.1 | JB11: 0.1 | JC11: 0.1 | JD11: 0.1 | JE11: 0.1 | JF11: 0.1 | JG11: 0.1 | JH11: 0.1 | JI11: 0.1 | JJ11: 0.1 | JK11: 0.1 | JL11: 0.1 | JM11: 0.1 | JN11: 0.1 | JO11: 0.1 | JP11: 0.1 | JQ11: 0.1 | JR11: 0.1 | JS11: 0.1 | JT11: 0.1 | JU11: 0.1 | JV11: 0.1 | JW11: 0.1 | JX11: 0.1 | JY11: 0.1 | JZ11: 0.1 | KA11: 0.1 | KB11: 0.1 | KC11: 0.1 | KD11: 0.1 | KE11: 0.1 | KF11: 0.1 | KG11: 0.1 | KH11: 0.1 | KI11: 0.1 | KJ11: 0.1 | KK11: 0.1 | KL11: 0.1 | KM11: 0.1 | KN11: 0.1 | KO11: 0.1 | KP11: 0.1 | KQ11: 0.1 | KR11: 0.1 | KS11: 0.1 | KT11: 0.1 | KU11: 0.1 | KV11: 0.1 | KW11: 0.1 | KX11: 0.1 | KY11: 0.1 | KZ11: 0.1 | LA11: 0.1 | LB11: 0.1 | LC11: 0.1 | LD11: 0.1 | LE11: 0.1 | LF11: 0.1 | LG11: 0.1 | LH11: 0.1 | LI11: 0.1 | LJ11: 0.1 | LK11: 0.1 | LL11: 0.1 | LM11: =interpolate_look_up(LM10,2:2,6:6) -> 0.1 | LN11: 0.1 | LO11: 0.1 | LP11: 0.1 | LQ11: 0.1 | LR11: 0.1 | LS11: 0.1 | LT11: 0.1 | LU11: 0.1 | LV11: 0.1 | LW11: 0.1 | LX11: 0.1 | LY11: 0.1 | LZ11: 0.1 | MA11: 0.1 | MB11: 0.1 | MC11: 0.1 | MD11: 0.1 | ME11: 0.1 | MF11: 0.1 | MG11: 0.1 | MH11: 0.1 | MI11: 0.1 | MJ11: 0.1 | MK11: 0.1 | ML11: 0.1 | MM11: 0.1 | MN11: 0.1 | MO11: 0.1 | MP11: 0.1 | MQ11: 0.1 | MR11: 0.1 | MS11: 0.1 | MT11: 0.1 | MU11: 0.1 | MV11: 0.1 | MW11: 0.1 | MX11: 0.1 | MY11: 0.1 | MZ11: 0.1 | NA11: 0.1 | NB11: 0.1 | NC11: 0.1 | ND11: 0.1 | NE11: 0.1 | NF11: 0.1 | NG11: 0.1 | NH11: 0.1 | NI11: 0.1 | NJ11: 0.1 | NK11: 0.1 | NL11: 0.1 | NM11: 0.1 | NN11: 0.1 | NO11: 0.1 | NP11: 0.1 | NQ11: 0.1 | NR11: 0.1 | NS11: 0.1 | NT11: 0.1 | NU11: 0.1 | NV11: 0.1 | NW11: 0.1 | NX11: 0.1 | NY11: =interpolate_look_up(NY10,2:2,6:6) -> 0.1 | NZ11: 0.1 | OA11: 0.1 | OB11: 0.1 | OC11: 0.1 | OD11: 0.1 | OE11: 0.1 | OF11: 0.1 | OG11: 0.1 | OH11: 0.1 | OI11: 0.1 | OJ11: 0.1 | OK11: 0.1 | OL11: 0.1 | OM11: 0.1 | ON11: 0.1
B12: DIV PAY RATE | E12: =1-$D$4/E11 -> 0.90625 | F12: =1-$D$4/F11 -> 0.8866984226 | G12: 0.8630693606 | H12: 0.834512454 | I12: 0.8 | J12: 0.7831056458 | K12: 0.7647841955 | L12: 0.7449150999 | M12: 0.7233676266 | N12: 0.7 | O12: 0.7 | P12: 0.7 | Q12: 0.7 | R12: 0.7 | S12: 0.7 | T12: 0.7 | U12: 0.7 | V12: 0.7 | W12: 0.7 | X12: 0.7 | Y12: 0.7 | Z12: 0.7 | AA12: 0.7 | AB12: 0.7 | AC12: 0.7 | AD12: 0.7 | AE12: 0.7 | AF12: 0.7 | AG12: 0.7 | AH12: 0.7 | AI12: 0.7 | AJ12: 0.7 | AK12: 0.7 | AL12: 0.7 | AM12: 0.7 | AN12: 0.7 | AO12: 0.7 | AP12: 0.7 | AQ12: 0.7 | AR12: 0.7 | AS12: 0.7 | AT12: 0.7 | AU12: 0.7 | AV12: 0.7 | AW12: 0.7 | AX12: 0.7 | AY12: 0.7 | AZ12: 0.7 | BA12: 0.7 | BB12: 0.7 | BC12: 0.7 | BD12: 0.7 | BE12: 0.7 | BF12: 0.7 | BG12: 0.7 | BH12: 0.7 | BI12: 0.7 | BJ12: 0.7 | BK12: 0.7 | BL12: 0.7 | BM12: 0.7 | BN12: 0.7 | BO12: 0.7 | BP12: 0.7 | BQ12: 0.7 | BR12: =1-$D$4/BR11 -> 0.7 | BS12: 0.7 | BT12: 0.7 | BU12: 0.7 | BV12: 0.7 | BW12: 0.7 | BX12: 0.7 | BY12: 0.7 | BZ12: 0.7 | CA12: 0.7 | CB12: 0.7 | CC12: 0.7 | CD12: 0.7 | CE12: 0.7 | CF12: 0.7 | CG12: 0.7 | CH12: 0.7 | CI12: 0.7 | CJ12: 0.7 | CK12: 0.7 | CL12: 0.7 | CM12: 0.7 | CN12: 0.7 | CO12: 0.7 | CP12: 0.7 | CQ12: 0.7 | CR12: 0.7 | CS12: 0.7 | CT12: 0.7 | CU12: 0.7 | CV12: 0.7 | CW12: 0.7 | CX12: 0.7 | CY12: 0.7 | CZ12: 0.7 | DA12: 0.7 | DB12: 0.7 | DC12: 0.7 | DD12: 0.7 | DE12: 0.7 | DF12: 0.7 | DG12: 0.7 | DH12: 0.7 | DI12: 0.7 | DJ12: 0.7 | DK12: 0.7 | DL12: 0.7 | DM12: 0.7 | DN12: 0.7 | DO12: 0.7 | DP12: 0.7 | DQ12: 0.7 | DR12: 0.7 | DS12: 0.7 | DT12: 0.7 | DU12: 0.7 | DV12: 0.7 | DW12: 0.7 | DX12: 0.7 | DY12: 0.7 | DZ12: 0.7 | EA12: 0.7 | EB12: 0.7 | EC12: 0.7 | ED12: =1-$D$4/ED11 -> 0.7 | EE12: 0.7 | EF12: 0.7 | EG12: 0.7 | EH12: 0.7 | EI12: 0.7 | EJ12: 0.7 | EK12: 0.7 | EL12: 0.7 | EM12: 0.7 | EN12: 0.7 | EO12: 0.7 | EP12: 0.7 | EQ12: 0.7 | ER12: 0.7 | ES12: 0.7 | ET12: 0.7 | EU12: 0.7 | EV12: 0.7 | EW12: 0.7 | EX12: 0.7 | EY12: 0.7 | EZ12: 0.7 | FA12: 0.7 | FB12: 0.7 | FC12: 0.7 | FD12: 0.7 | FE12: 0.7 | FF12: 0.7 | FG12: 0.7 | FH12: 0.7 | FI12: 0.7 | FJ12: 0.7 | FK12: 0.7 | FL12: 0.7 | FM12: 0.7 | FN12: 0.7 | FO12: 0.7 | FP12: 0.7 | FQ12: 0.7 | FR12: 0.7 | FS12: 0.7 | FT12: 0.7 | FU12: 0.7 | FV12: 0.7 | FW12: 0.7 | FX12: 0.7 | FY12: 0.7 | FZ12: 0.7 | GA12: 0.7 | GB12: 0.7 | GC12: 0.7 | GD12: 0.7 | GE12: 0.7 | GF12: 0.7 | GG12: 0.7 | GH12: 0.7 | GI12: 0.7 | GJ12: 0.7 | GK12: 0.7 | GL12: 0.7 | GM12: 0.7 | GN12: 0.7 | GO12: 0.7 | GP12: =1-$D$4/GP11 -> 0.7 | GQ12: 0.7 | GR12: 0.7 | GS12: 0.7 | GT12: 0.7 | GU12: 0.7 | GV12: 0.7 | GW12: 0.7 | GX12: 0.7 | GY12: 0.7 | GZ12: 0.7 | HA12: 0.7 | HB12: 0.7 | HC12: 0.7 | HD12: 0.7 | HE12: 0.7 | HF12: 0.7 | HG12: 0.7 | HH12: 0.7 | HI12: 0.7 | HJ12: 0.7 | HK12: 0.7 | HL12: 0.7 | HM12: 0.7 | HN12: 0.7 | HO12: 0.7 | HP12: 0.7 | HQ12: 0.7 | HR12: 0.7 | HS12: 0.7 | HT12: 0.7 | HU12: 0.7 | HV12: 0.7 | HW12: 0.7 | HX12: 0.7 | HY12: 0.7 | HZ12: 0.7 | IA12: 0.7 | IB12: 0.7 | IC12: 0.7 | ID12: 0.7 | IE12: 0.7 | IF12: 0.7 | IG12: 0.7 | IH12: 0.7 | II12: 0.7 | IJ12: 0.7 | IK12: 0.7 | IL12: 0.7 | IM12: 0.7 | IN12: 0.7 | IO12: 0.7 | IP12: 0.7 | IQ12: 0.7 | IR12: 0.7 | IS12: 0.7 | IT12: 0.7 | IU12: 0.7 | IV12: 0.7 | IW12: 0.7 | IX12: 0.7 | IY12: 0.7 | IZ12: 0.7 | JA12: 0.7 | JB12: =1-$D$4/JB11 -> 0.7 | JC12: 0.7 | JD12: 0.7 | JE12: 0.7 | JF12: 0.7 | JG12: 0.7 | JH12: 0.7 | JI12: 0.7 | JJ12: 0.7 | JK12: 0.7 | JL12: 0.7 | JM12: 0.7 | JN12: 0.7 | JO12: 0.7 | JP12: 0.7 | JQ12: 0.7 | JR12: 0.7 | JS12: 0.7 | JT12: 0.7 | JU12: 0.7 | JV12: 0.7 | JW12: 0.7 | JX12: 0.7 | JY12: 0.7 | JZ12: 0.7 | KA12: 0.7 | KB12: 0.7 | KC12: 0.7 | KD12: 0.7 | KE12: 0.7 | KF12: 0.7 | KG12: 0.7 | KH12: 0.7 | KI12: 0.7 | KJ12: 0.7 | KK12: 0.7 | KL12: 0.7 | KM12: 0.7 | KN12: 0.7 | KO12: 0.7 | KP12: 0.7 | KQ12: 0.7 | KR12: 0.7 | KS12: 0.7 | KT12: 0.7 | KU12: 0.7 | KV12: 0.7 | KW12: 0.7 | KX12: 0.7 | KY12: 0.7 | KZ12: 0.7 | LA12: 0.7 | LB12: 0.7 | LC12: 0.7 | LD12: 0.7 | LE12: 0.7 | LF12: 0.7 | LG12: 0.7 | LH12: 0.7 | LI12: 0.7 | LJ12: 0.7 | LK12: 0.7 | LL12: 0.7 | LM12: 0.7 | LN12: =1-$D$4/LN11 -> 0.7 | LO12: 0.7 | LP12: 0.7 | LQ12: 0.7 | LR12: 0.7 | LS12: 0.7 | LT12: 0.7 | LU12: 0.7 | LV12: 0.7 | LW12: 0.7 | LX12: 0.7 | LY12: 0.7 | LZ12: 0.7 | MA12: 0.7 | MB12: 0.7 | MC12: 0.7 | MD12: 0.7 | ME12: 0.7 | MF12: 0.7 | MG12: 0.7 | MH12: 0.7 | MI12: 0.7 | MJ12: 0.7 | MK12: 0.7 | ML12: 0.7 | MM12: 0.7 | MN12: 0.7 | MO12: 0.7 | MP12: 0.7 | MQ12: 0.7 | MR12: 0.7 | MS12: 0.7 | MT12: 0.7 | MU12: 0.7 | MV12: 0.7 | MW12: 0.7 | MX12: 0.7 | MY12: 0.7 | MZ12: 0.7 | NA12: 0.7 | NB12: 0.7 | NC12: 0.7 | ND12: 0.7 | NE12: 0.7 | NF12: 0.7 | NG12: 0.7 | NH12: 0.7 | NI12: 0.7 | NJ12: 0.7 | NK12: 0.7 | NL12: 0.7 | NM12: 0.7 | NN12: 0.7 | NO12: 0.7 | NP12: 0.7 | NQ12: 0.7 | NR12: 0.7 | NS12: 0.7 | NT12: 0.7 | NU12: 0.7 | NV12: 0.7 | NW12: 0.7 | NX12: 0.7 | NY12: 0.7 | NZ12: =1-$D$4/NZ11 -> 0.7 | OA12: 0.7 | OB12: 0.7 | OC12: 0.7 | OD12: 0.7 | OE12: 0.7 | OF12: 0.7 | OG12: 0.7 | OH12: 0.7 | OI12: 0.7 | OJ12: 0.7 | OK12: 0.7 | OL12: 0.7 | OM12: 0.7 | ON12: 0.7
O14: Terminal
A15: Equity Balance
B16: Opening Balance | E16: =D19 -> 14.4 | F16: =E19 -> 14.832 | G16: 15.27696 | H16: 15.7352688 | I16: 16.20732686 | J16: 16.69354667 | K16: 17.19435307 | L16: 17.71018366 | M16: 18.24148917 | N16: 18.78873385 | O16: 19.35239586
B17: Income: ROE x BV | E17: =E16*E11 -> 4.608 | F17: 3.927218051 | G17: 3.347014241 | H17: 2.852529241 | I17: 2.43109903 | J17: 2.308987718 | K17: 2.193009918 | L17: 2.082857549 | M17: 1.978238007 | N17: 1.878873385 | O17: 1.935239586
B18: Dividend | E18: =E17*E12 -> 4.176 | F18: 3.482258051 | G18: 2.888705441 | H18: 2.380471177 | I18: 1.944879224 | J18: 1.808181318 | K18: 1.677179326 | L18: 1.551552039 | M18: 1.430993332 | N18: 1.315211369 | O18: =D3*O16*(1-D4/D3)/(D5-D4) -> 19.35239586
B19: Closing Balance | D19: =D7 -> 14.4 | E19: =E16+E17-E18 -> 14.832 | F19: =F16+F17-F18 -> 15.27696 | G19: 15.7352688 | H19: 16.20732686 | I19: 16.69354667 | J19: 17.19435307 | K19: 17.71018366 | L19: 18.24148917 | M19: 18.78873385 | N19: 19.35239586 | O19: 1.935239586
A21: Valuation
B22: Valuation | D22: =NPV(D5,18:18) -> 24.7999541 | O22: =(O16*D3*(1-D4/D3))/(D5-D4) -> 19.35239586
B23: P/E Ratio | D23: =D22/E17 -> 5.381934484 | O23: =NPV(D5,O18:ON18) -> 17.91888506
B24: PB | D24: =D22/D7 -> 1.722219035
B25: P/E Formula | D25: =(1-D4/D3)/(D5-D4) -> 12.5

Sheet ROIC Analysis
A2: Key Drivers
B3: ROIC | E3: 0.11 | H3: EV/EBITDA | J3: =G53 -> 10.43842148
B4: Growth rate in CAPEX | E4: =DCF!E14 -> 0.02 | H4: EV/NOPAT | J4: =G54 -> 27.194614
B5: WACC | E5: 0.05 | H5: EV/Invested Capital | J5: 2.99140754
B7: Asset life | E7: =DCF!E21 -> 10 | F7: years | H7: Observed EV/EBITDA
B8: Tax rate | E8: 0
B9: Invested Capital | E9: 1000
A11: Derpreciation Expense
B12: Gross plant balance | E12: 1 | F12: 2 | G12: 3 | H12: 4 | I12: 5 | J12: 6 | K12: 7 | L12: 8 | M12: 9 | N12: 10 | O12: 11 | P12: 12 | Q12: 13 | R12: 14 | S12: 15 | T12: 16 | U12: 17 | V12: 18 | W12: 19 | X12: 20 | Y12: 21 | Z12: 22 | AA12: 23 | AB12: 24 | AC12: 25 | AD12: 26 | AE12: 27 | AF12: 28 | AG12: 29 | AH12: 30 | AI12: 31 | AJ12: 32 | AK12: 33 | AL12: 34 | AM12: 35 | AN12: 36 | AO12: 37 | AP12: 38 | AQ12: 39 | AR12: 40 | AS12: 41 | AT12: 42 | AU12: 43 | AV12: 44 | AW12: 45 | AX12: 46 | AY12: 47 | AZ12: 48 | BA12: 49 | BB12: 50 | BC12: 51 | BD12: 52 | BE12: 53 | BF12: 54 | BG12: 55 | BH12: 56 | BI12: 57 | BJ12: 58 | BK12: 59 | BL12: 60 | BM12: 61 | BN12: 62 | BO12: 63 | BP12: 64 | BQ12: 65 | BR12: 66 | BS12: 67 | BT12: 68 | BU12: 69 | BV12: 70 | BW12: 71 | BX12: 72 | BY12: 73 | BZ12: 74 | CA12: 75 | CB12: 76 | CC12: 77 | CD12: 78 | CE12: 79 | CF12: 80 | CG12: 81 | CH12: 82 | CI12: 83 | CJ12: 84 | CK12: 85 | CL12: 86 | CM12: 87 | CN12: 88 | CO12: 89 | CP12: 90 | CQ12: 91 | CR12: 92 | CS12: 93 | CT12: 94 | CU12: 95 | CV12: 96 | CW12: 97 | CX12: 98 | CY12: 99 | CZ12: 100 | DA12: 101 | DB12: 102 | DC12: 103 | DD12: 104 | DE12: 105 | DF12: 106 | DG12: 107 | DH12: 108 | DI12: 109 | DJ12: 110 | DK12: 111 | DL12: 112 | DM12: 113 | DN12: 114 | DO12: 115 | DP12: 116 | DQ12: 117 | DR12: 118 | DS12: 119 | DT12: 120 | DU12: 121 | DV12: 122 | DW12: 123 | DX12: 124 | DY12: 125 | DZ12: 126 | EA12: 127 | EB12: 128 | EC12: 129 | ED12: 130 | EE12: 131 | EF12: 132 | EG12: 133 | EH12: 134 | EI12: 135 | EJ12: 136 | EK12: 137 | EL12: 138 | EM12: 139 | EN12: 140 | EO12: 141 | EP12: 142 | EQ12: 143 | ER12: 144 | ES12: 145 | ET12: 146 | EU12: 147 | EV12: 148 | EW12: 149 | EX12: 150 | EY12: 151 | EZ12: 152 | FA12: 153 | FB12: 154 | FC12: 155 | FD12: 156 | FE12: 157 | FF12: 158 | FG12: 159 | FH12: 160 | FI12: 161 | FJ12: 162 | FK12: 163 | FL12: 164 | FM12: 165 | FN12: 166 | FO12: 167 | FP12: 168 | FQ12: 169 | FR12: 170 | FS12: 171 | FT12: 172 | FU12: 173 | FV12: 174 | FW12: 175 | FX12: 176 | FY12: 177 | FZ12: 178 | GA12: 179 | GB12: 180 | GC12: 181 | GD12: 182 | GE12: 183 | GF12: 184 | GG12: 185 | GH12: 186 | GI12: 187 | GJ12: 188 | GK12: 189 | GL12: 190 | GM12: 191 | GN12: 192 | GO12: 193 | GP12: 194 | GQ12: 195 | GR12: 196 | GS12: 197 | GT12: 198 | GU12: 199 | GV12: 200 | GW12: 201 | GX12: 202 | GY12: 203 | GZ12: 204 | HA12: 205 | HB12: 206 | HC12: 207 | HD12: 208 | HE12: 209 | HF12: 210 | HG12: 211 | HH12: 212 | HI12: 213 | HJ12: 214 | HK12: 215 | HL12: 216 | HM12: 217 | HN12: 218 | HO12: 219 | HP12: 220
B13: Opening balance | F13: =E16 -> 100 | G13: =F16 -> 202 | H13: 306.04 | I13: 412.1608 | J13: 520.404016 | K13: 630.8120963 | L13: 743.4283382 | M13: 858.296905 | N13: 975.4628431 | O13: 1094.9721 | P13: 1116.871542 | Q13: 1139.208973 | R13: 1161.993152 | S13: 1185.233015 | T13: 1208.937676 | U13: 1233.116429 | V13: 1257.778758 | W13: 1282.934333 | X13: 1308.59302 | Y13: 1334.76488 | Z13: 1361.460178 | AA13: 1388.689381 | AB13: 1416.463169 | AC13: 1444.792432 | AD13: 1473.688281 | AE13: 1503.162046 | AF13: 1533.225287 | AG13: 1563.889793 | AH13: 1595.167589 | AI13: 1627.070941 | AJ13: 1659.612359 | AK13: 1692.804607 | AL13: 1726.660699 | AM13: 1761.193913 | AN13: 1796.417791 | AO13: 1832.346147 | AP13: 1868.99307 | AQ13: 1906.372931 | AR13: 1944.50039 | AS13: 1983.390398 | AT13: 2023.058206 | AU13: 2063.51937 | AV13: 2104.789757 | AW13: 2146.885552 | AX13: 2189.823263 | AY13: 2233.619728 | AZ13: 2278.292123 | BA13: 2323.857965 | BB13: 2370.335125 | BC13: 2417.741827 | BD13: 2466.096664 | BE13: 2515.418597 | BF13: 2565.726969 | BG13: 2617.041508 | BH13: 2669.382339 | BI13: 2722.769985 | BJ13: 2777.225385 | BK13: 2832.769893 | BL13: 2889.425291 | BM13: 2947.213796 | BN13: 3006.158072 | BO13: 3066.281234 | BP13: 3127.606859 | BQ13: 3190.158996 | BR13: 3253.962176 | BS13: =BR16 -> 3319.041419 | BT13: 3385.422247 | BU13: 3453.130692 | BV13: 3522.193306 | BW13: 3592.637172 | BX13: 3664.489916 | BY13: 3737.779714 | BZ13: 3812.535308 | CA13: 3888.786015 | CB13: 3966.561735 | CC13: 4045.89297 | CD13: 4126.810829 | CE13: 4209.347046 | CF13: 4293.533987 | CG13: 4379.404666 | CH13: 4466.99276 | CI13: 4556.332615 | CJ13: 4647.459267 | CK13: 4740.408452 | CL13: 4835.216621 | CM13: 4931.920954 | CN13: 5030.559373 | CO13: 5131.17056 | CP13: 5233.793972 | CQ13: 5338.469851 | CR13: 5445.239248 | CS13: 5554.144033 | CT13: 5665.226914 | CU13: 5778.531452 | CV13: 5894.102081 | CW13: 6011.984123 | CX13: 6132.223805 | CY13: 6254.868281 | CZ13: 6379.965647 | DA13: 6507.56496 | DB13: 6637.716259 | DC13: 6770.470584 | DD13: 6905.879996 | DE13: 7043.997596 | DF13: 7184.877548 | DG13: 7328.575099 | DH13: 7475.146601 | DI13: 7624.649533 | DJ13: 7777.142523 | DK13: 7932.685374 | DL13: 8091.339081 | DM13: 8253.165863 | DN13: 8418.22918 | DO13: 8586.593764 | DP13: 8758.325639 | DQ13: 8933.492152 | DR13: 9112.161995 | DS13: 9294.405235 | DT13: 9480.293339 | DU13: 9669.899206 | DV13: 9863.29719 | DW13: 10060.56313 | DX13: 10261.7744 | DY13: 10467.00988 | DZ13: 10676.35008 | EA13: 10889.87708 | EB13: 11107.67463 | EC13: 11329.82812 | ED13: 11556.42468 | EE13: =ED16 -> 11787.55317 | EF13: 12023.30424 | EG13: 12263.77032 | EH13: 12509.04573 | EI13: 12759.22664 | EJ13: 13014.41118 | EK13: 13274.6994 | EL13: 13540.19339 | EM13: 13810.99726 | EN13: 14087.2172 | EO13: 14368.96154 | EP13: 14656.34078 | EQ13: 14949.46759 | ER13: 15248.45694 | ES13: 15553.42608 | ET13: 15864.4946 | EU13: 16181.7845 | EV13: 16505.42019 | EW13: 16835.52859 | EX13: 17172.23916 | EY13: 17515.68394 | EZ13: 17865.99762 | FA13: 18223.31758 | FB13: 18587.78393 | FC13: 18959.53961 | FD13: 19338.7304 | FE13: 19725.50501 | FF13: 20120.01511 | FG13: 20522.41541 | FH13: 20932.86372 | FI13: 21351.52099 | FJ13: 21778.55141 | FK13: 22214.12244 | FL13: 22658.40489 | FM13: 23111.57298 | FN13: 23573.80444 | FO13: 24045.28053 | FP13: 24526.18614 | FQ13: 25016.70987 | FR13: 25517.04406 | FS13: 26027.38495 | FT13: 26547.93264 | FU13: 27078.8913 | FV13: 27620.46912 | FW13: 28172.87851 | FX13: 28736.33608 | FY13: 29311.0628 | FZ13: 29897.28405 | GA13: 30495.22973 | GB13: 31105.13433 | GC13: 31727.23702 | GD13: 32361.78176 | GE13: 33009.01739 | GF13: 33669.19774 | GG13: 34342.58169 | GH13: 35029.43333 | GI13: 35730.02199 | GJ13: 36444.62243 | GK13: 37173.51488 | GL13: 37916.98518 | GM13: 38675.32488 | GN13: 39448.83138 | GO13: 40237.80801 | GP13: 41042.56417 | GQ13: =GP16 -> 41863.41545 | GR13: 42700.68376 | GS13: 43554.69744 | GT13: 44425.79139 | GU13: 45314.30721 | GV13: 46220.59336 | GW13: 47145.00522 | GX13: 48087.90533 | GY13: 49049.66344 | GZ13: 50030.6567
B14: Add: CAPEX | E14: 100 | F14: =E14*(1+$E$4) -> 102 | G14: =F14*(1+$E$4) -> 104.04 | H14: 106.1208 | I14: 108.243216 | J14: 110.4080803 | K14: 112.6162419 | L14: 114.8685668 | M14: 117.1659381 | N14: 119.5092569 | O14: 121.899442 | P14: 124.3374308 | Q14: 126.8241795 | R14: 129.360663 | S14: 131.9478763 | T14: 134.5868338 | U14: 137.2785705 | V14: 140.0241419 | W14: 142.8246248 | X14: 145.6811173 | Y14: 148.5947396 | Z14: 151.5666344 | AA14: 154.5979671 | AB14: 157.6899264 | AC14: 160.8437249 | AD14: 164.0605994 | AE14: 167.3418114 | AF14: 170.6886477 | AG14: 174.1024206 | AH14: 177.584469 | AI14: 181.1361584 | AJ14: 184.7588816 | AK14: 188.4540592 | AL14: 192.2231404 | AM14: 196.0676032 | AN14: 199.9889553 | AO14: 203.9887344 | AP14: 208.0685091 | AQ14: 212.2298792 | AR14: 216.4744768 | AS14: 220.8039664 | AT14: 225.2200457 | AU14: 229.7244466 | AV14: 234.3189355 | AW14: 239.0053142 | AX14: 243.7854205 | AY14: 248.6611289 | AZ14: 253.6343515 | BA14: 258.7070385 | BB14: 263.8811793 | BC14: 269.1588029 | BD14: 274.541979 | BE14: 280.0328185 | BF14: 285.6334749 | BG14: 291.3461444 | BH14: 297.1730673 | BI14: 303.1165286 | BJ14: 309.1788592 | BK14: 315.3624364 | BL14: 321.6696851 | BM14: 328.1030788 | BN14: 334.6651404 | BO14: 341.3584432 | BP14: 348.1856121 | BQ14: 355.1493243 | BR14: 362.2523108 | BS14: =BR14*(1+$E$4) -> 369.497357 | BT14: 376.8873042 | BU14: 384.4250503 | BV14: 392.1135513 | BW14: 399.9558223 | BX14: 407.9549387 | BY14: 416.1140375 | BZ14: 424.4363183 | CA14: 432.9250446 | CB14: 441.5835455 | CC14: 450.4152164 | CD14: 459.4235208 | CE14: 468.6119912 | CF14: 477.984231 | CG14: 487.5439156 | CH14: 497.2947939 | CI14: 507.2406898 | CJ14: 517.3855036 | CK14: 527.7332137 | CL14: 538.2878779 | CM14: 549.0536355 | CN14: 560.0347082 | CO14: 571.2354024 | CP14: 582.6601104 | CQ14: 594.3133126 | CR14: 606.1995789 | CS14: 618.3235705 | CT14: 630.6900419 | CU14: 643.3038427 | CV14: 656.1699196 | CW14: 669.293318 | CX14: 682.6791843 | CY14: 696.332768 | CZ14: 710.2594234 | DA14: 724.4646118 | DB14: 738.9539041 | DC14: 753.7329821 | DD14: 768.8076418 | DE14: 784.1837946 | DF14: 799.8674705 | DG14: 815.8648199 | DH14: 832.1821163 | DI14: 848.8257586 | DJ14: 865.8022738 | DK14: 883.1183193 | DL14: 900.7806857 | DM14: 918.7962994 | DN14: 937.1722254 | DO14: 955.9156699 | DP14: 975.0339833 | DQ14: 994.534663 | DR14: 1014.425356 | DS14: 1034.713863 | DT14: 1055.408141 | DU14: 1076.516303 | DV14: 1098.046629 | DW14: 1120.007562 | DX14: 1142.407713 | DY14: 1165.255868 | DZ14: 1188.560985 | EA14: 1212.332205 | EB14: 1236.578849 | EC14: 1261.310426 | ED14: 1286.536634 | EE14: =ED14*(1+$E$4) -> 1312.267367 | EF14: 1338.512714 | EG14: 1365.282969 | EH14: 1392.588628 | EI14: 1420.4404 | EJ14: 1448.849208 | EK14: 1477.826193 | EL14: 1507.382716 | EM14: 1537.530371 | EN14: 1568.280978 | EO14: 1599.646598 | EP14: 1631.63953 | EQ14: 1664.27232 | ER14: 1697.557767 | ES14: 1731.508922 | ET14: 1766.139101 | EU14: 1801.461883 | EV14: 1837.49112 | EW14: 1874.240943 | EX14: 1911.725761 | EY14: 1949.960277 | EZ14: 1988.959482 | FA14: 2028.738672 | FB14: 2069.313445 | FC14: 2110.699714 | FD14: 2152.913708 | FE14: 2195.971983 | FF14: 2239.891422 | FG14: 2284.689251 | FH14: 2330.383036 | FI14: 2376.990696 | FJ14: 2424.53051 | FK14: 2473.021121 | FL14: 2522.481543 | FM14: 2572.931174 | FN14: 2624.389797 | FO14: 2676.877593 | FP14: 2730.415145 | FQ14: 2785.023448 | FR14: 2840.723917 | FS14: 2897.538395 | FT14: 2955.489163 | FU14: 3014.598947 | FV14: 3074.890925 | FW14: 3136.388744 | FX14: 3199.116519 | FY14: 3263.098849 | FZ14: 3328.360826 | GA14: 3394.928043 | GB14: 3462.826604 | GC14: 3532.083136 | GD14: 3602.724798 | GE14: 3674.779294 | GF14: 3748.27488 | GG14: 3823.240378 | GH14: 3899.705185 | GI14: 3977.699289 | GJ14: 4057.253275 | GK14: 4138.39834 | GL14: 4221.166307 | GM14: 4305.589633 | GN14: 4391.701426 | GO14: 4479.535455 | GP14: 4569.126164 | GQ14: =GP14*(1+$E$4) -> 4660.508687 | GR14: 4753.718861 | GS14: 4848.793238 | GT14: 4945.769103 | GU14: 5044.684485 | GV14: 5145.578174 | GW14: 5248.489738 | GX14: 5353.459533 | GY14: 5460.528723 | GZ14: 5569.739298
B15: Less: Asset disposals | E15: =IF(E12>$E$7,OFFSET(E14,0,-$E$7)) -> FALSE | F15: FALSE | G15: FALSE | H15: FALSE | I15: FALSE | J15: FALSE | K15: FALSE | L15: FALSE | M15: FALSE | N15: FALSE | O15: 100 | P15: 102 | Q15: 104.04 | R15: 106.1208 | S15: 108.243216 | T15: =IF(T12>$E$7,OFFSET(T14,0,-$E$7)) -> 110.4080803 | U15: =IF(U12>$E$7,OFFSET(U14,0,-$E$7)) -> 112.6162419 | V15: 114.8685668 | W15: 117.1659381 | X15: 119.5092569 | Y15: 121.899442 | Z15: 124.3374308 | AA15: 126.8241795 | AB15: 129.360663 | AC15: 131.9478763 | AD15: 134.5868338 | AE15: 137.2785705 | AF15: 140.0241419 | AG15: 142.8246248 | AH15: 145.6811173 | AI15: 148.5947396 | AJ15: 151.5666344 | AK15: 154.5979671 | AL15: 157.6899264 | AM15: 160.8437249 | AN15: 164.0605994 | AO15: 167.3418114 | AP15: 170.6886477 | AQ15: 174.1024206 | AR15: 177.584469 | AS15: 181.1361584 | AT15: 184.7588816 | AU15: 188.4540592 | AV15: 192.2231404 | AW15: 196.0676032 | AX15: 199.9889553 | AY15: 203.9887344 | AZ15: 208.0685091 | BA15: 212.2298792 | BB15: 216.4744768 | BC15: 220.8039664 | BD15: 225.2200457 | BE15: 229.7244466 | BF15: 234.3189355 | BG15: 239.0053142 | BH15: 243.7854205 | BI15: 248.6611289 | BJ15: 253.6343515 | BK15: 258.7070385 | BL15: 263.8811793 | BM15: 269.1588029 | BN15: 274.541979 | BO15: 280.0328185 | BP15: 285.6334749 | BQ15: 291.3461444 | BR15: 297.1730673 | BS15: 303.1165286 | BT15: 309.1788592 | BU15: 315.3624364 | BV15: 321.6696851 | BW15: 328.1030788 | BX15: 334.6651404 | BY15: 341.3584432 | BZ15: 348.1856121 | CA15: 355.1493243 | CB15: 362.2523108 | CC15: 369.497357 | CD15: 376.8873042 | CE15: 384.4250503 | CF15: 392.1135513 | CG15: =IF(CG12>$E$7,OFFSET(CG14,0,-$E$7)) -> 399.9558223 | CH15: 407.9549387 | CI15: 416.1140375 | CJ15: 424.4363183 | CK15: 432.9250446 | CL15: 441.5835455 | CM15: 450.4152164 | CN15: 459.4235208 | CO15: 468.6119912 | CP15: 477.984231 | CQ15: 487.5439156 | CR15: 497.2947939 | CS15: 507.2406898 | CT15: 517.3855036 | CU15: 527.7332137 | CV15: 538.2878779 | CW15: 549.0536355 | CX15: 560.0347082 | CY15: 571.2354024 | CZ15: 582.6601104 | DA15: 594.3133126 | DB15: 606.1995789 | DC15: 618.3235705 | DD15: 630.6900419 | DE15: 643.3038427 | DF15: 656.1699196 | DG15: 669.293318 | DH15: 682.6791843 | DI15: 696.332768 | DJ15: 710.2594234 | DK15: 724.4646118 | DL15: 738.9539041 | DM15: 753.7329821 | DN15: 768.8076418 | DO15: 784.1837946 | DP15: 799.8674705 | DQ15: 815.8648199 | DR15: 832.1821163 | DS15: 848.8257586 | DT15: 865.8022738 | DU15: 883.1183193 | DV15: 900.7806857 | DW15: 918.7962994 | DX15: 937.1722254 | DY15: 955.9156699 | DZ15: 975.0339833 | EA15: 994.534663 | EB15: 1014.425356 | EC15: 1034.713863 | ED15: 1055.408141 | EE15: 1076.516303 | EF15: 1098.046629 | EG15: 1120.007562 | EH15: 1142.407713 | EI15: 1165.255868 | EJ15: 1188.560985 | EK15: 1212.332205 | EL15: 1236.578849 | EM15: 1261.310426 | EN15: 1286.536634 | EO15: 1312.267367 | EP15: 1338.512714 | EQ15: 1365.282969 | ER15: 1392.588628 | ES15: =IF(ES12>$E$7,OFFSET(ES14,0,-$E$7)) -> 1420.4404 | ET15: 1448.849208 | EU15: 1477.826193 | EV15: 1507.382716 | EW15: 1537.530371 | EX15: 1568.280978 | EY15: 1599.646598 | EZ15: 1631.63953 | FA15: 1664.27232 | FB15: 1697.557767 | FC15: 1731.508922 | FD15: 1766.139101 | FE15: 1801.461883 | FF15: 1837.49112 | FG15: 1874.240943 | FH15: 1911.725761 | FI15: 1949.960277 | FJ15: 1988.959482 | FK15: 2028.738672 | FL15: 2069.313445 | FM15: 2110.699714 | FN15: 2152.913708 | FO15: 2195.971983 | FP15: 2239.891422 | FQ15: 2284.689251 | FR15: 2330.383036 | FS15: 2376.990696 | FT15: 2424.53051 | FU15: 2473.021121 | FV15: 2522.481543 | FW15: 2572.931174 | FX15: 2624.389797 | FY15: 2676.877593 | FZ15: 2730.415145 | GA15: 2785.023448 | GB15: 2840.723917 | GC15: 2897.538395 | GD15: 2955.489163 | GE15: 3014.598947 | GF15: 3074.890925 | GG15: 3136.388744 | GH15: 3199.116519 | GI15: 3263.098849 | GJ15: 3328.360826 | GK15: 3394.928043 | GL15: 3462.826604 | GM15: 3532.083136 | GN15: 3602.724798 | GO15: 3674.779294 | GP15: 3748.27488 | GQ15: 3823.240378 | GR15: 3899.705185 | GS15: 3977.699289 | GT15: 4057.253275 | GU15: 4138.39834 | GV15: 4221.166307 | GW15: 4305.589633 | GX15: 4391.701426 | GY15: 4479.535455 | GZ15: 4569.126164
B16: Closing balance | E16: =E13+E14-E15 -> 100 | F16: =F13+F14-F15 -> 202 | G16: =G13+G14-G15 -> 306.04 | H16: 412.1608 | I16: =I13+I14-I15 -> 520.404016 | J16: =J13+J14-J15 -> 630.8120963 | K16: =K13+K14-K15 -> 743.4283382 | L16: =L13+L14-L15 -> 858.296905 | M16: =M13+M14-M15 -> 975.4628431 | N16: =N13+N14-N15 -> 1094.9721 | O16: =O13+O14-O15 -> 1116.871542 | P16: =P13+P14-P15 -> 1139.208973 | Q16: =Q13+Q14-Q15 -> 1161.993152 | R16: =R13+R14-R15 -> 1185.233015 | S16: =S13+S14-S15 -> 1208.937676 | T16: =T13+T14-T15 -> 1233.116429 | U16: =U13+U14-U15 -> 1257.778758 | V16: =V13+V14-V15 -> 1282.934333 | W16: =W13+W14-W15 -> 1308.59302 | X16: =X13+X14-X15 -> 1334.76488 | Y16: =Y13+Y14-Y15 -> 1361.460178 | Z16: =Z13+Z14-Z15 -> 1388.689381 | AA16: =AA13+AA14-AA15 -> 1416.463169 | AB16: =AB13+AB14-AB15 -> 1444.792432 | AC16: =AC13+AC14-AC15 -> 1473.688281 | AD16: =AD13+AD14-AD15 -> 1503.162046 | AE16: =AE13+AE14-AE15 -> 1533.225287 | AF16: =AF13+AF14-AF15 -> 1563.889793 | AG16: =AG13+AG14-AG15 -> 1595.167589 | AH16: =AH13+AH14-AH15 -> 1627.070941 | AI16: =AI13+AI14-AI15 -> 1659.612359 | AJ16: =AJ13+AJ14-AJ15 -> 1692.804607 | AK16: =AK13+AK14-AK15 -> 1726.660699 | AL16: =AL13+AL14-AL15 -> 1761.193913 | AM16: =AM13+AM14-AM15 -> 1796.417791 | AN16: =AN13+AN14-AN15 -> 1832.346147 | AO16: =AO13+AO14-AO15 -> 1868.99307 | AP16: =AP13+AP14-AP15 -> 1906.372931 | AQ16: =AQ13+AQ14-AQ15 -> 1944.50039 | AR16: =AR13+AR14-AR15 -> 1983.390398 | AS16: =AS13+AS14-AS15 -> 2023.058206 | AT16: =AT13+AT14-AT15 -> 2063.51937 | AU16: =AU13+AU14-AU15 -> 2104.789757 | AV16: =AV13+AV14-AV15 -> 2146.885552 | AW16: =AW13+AW14-AW15 -> 2189.823263 | AX16: =AX13+AX14-AX15 -> 2233.619728 | AY16: =AY13+AY14-AY15 -> 2278.292123 | AZ16: =AZ13+AZ14-AZ15 -> 2323.857965 | BA16: =BA13+BA14-BA15 -> 2370.335125 | BB16: =BB13+BB14-BB15 -> 2417.741827 | BC16: =BC13+BC14-BC15 -> 2466.096664 | BD16: =BD13+BD14-BD15 -> 2515.418597 | BE16: =BE13+BE14-BE15 -> 2565.726969 | BF16: =BF13+BF14-BF15 -> 2617.041508 | BG16: =BG13+BG14-BG15 -> 2669.382339 | BH16: =BH13+BH14-BH15 -> 2722.769985 | BI16: =BI13+BI14-BI15 -> 2777.225385 | BJ16: =BJ13+BJ14-BJ15 -> 2832.769893 | BK16: =BK13+BK14-BK15 -> 2889.425291 | BL16: =BL13+BL14-BL15 -> 2947.213796 | BM16: =BM13+BM14-BM15 -> 3006.158072 | BN16: =BN13+BN14-BN15 -> 3066.281234 | BO16: =BO13+BO14-BO15 -> 3127.606859 | BP16: =BP13+BP14-BP15 -> 3190.158996 | BQ16: =BQ13+BQ14-BQ15 -> 3253.962176 | BR16: =BR13+BR14-BR15 -> 3319.041419 | BS16: =BS13+BS14-BS15 -> 3385.422247 | BT16: =BT13+BT14-BT15 -> 3453.130692 | BU16: =BU13+BU14-BU15 -> 3522.193306 | BV16: =BV13+BV14-BV15 -> 3592.637172 | BW16: =BW13+BW14-BW15 -> 3664.489916 | BX16: =BX13+BX14-BX15 -> 3737.779714 | BY16: =BY13+BY14-BY15 -> 3812.535308 | BZ16: =BZ13+BZ14-BZ15 -> 3888.786015 | CA16: =CA13+CA14-CA15 -> 3966.561735 | CB16: =CB13+CB14-CB15 -> 4045.89297 | CC16: =CC13+CC14-CC15 -> 4126.810829 | CD16: =CD13+CD14-CD15 -> 4209.347046 | CE16: =CE13+CE14-CE15 -> 4293.533987 | CF16: =CF13+CF14-CF15 -> 4379.404666 | CG16: =CG13+CG14-CG15 -> 4466.99276 | CH16: =CH13+CH14-CH15 -> 4556.332615 | CI16: =CI13+CI14-CI15 -> 4647.459267 | CJ16: =CJ13+CJ14-CJ15 -> 4740.408452 | CK16: =CK13+CK14-CK15 -> 4835.216621 | CL16: =CL13+CL14-CL15 -> 4931.920954 | CM16: =CM13+CM14-CM15 -> 5030.559373 | CN16: =CN13+CN14-CN15 -> 5131.17056 | CO16: =CO13+CO14-CO15 -> 5233.793972 | CP16: =CP13+CP14-CP15 -> 5338.469851 | CQ16: =CQ13+CQ14-CQ15 -> 5445.239248 | CR16: =CR13+CR14-CR15 -> 5554.144033 | CS16: =CS13+CS14-CS15 -> 5665.226914 | CT16: =CT13+CT14-CT15 -> 5778.531452 | CU16: =CU13+CU14-CU15 -> 5894.102081 | CV16: =CV13+CV14-CV15 -> 6011.984123 | CW16: =CW13+CW14-CW15 -> 6132.223805 | CX16: =CX13+CX14-CX15 -> 6254.868281 | CY16: =CY13+CY14-CY15 -> 6379.965647 | CZ16: =CZ13+CZ14-CZ15 -> 6507.56496 | DA16: =DA13+DA14-DA15 -> 6637.716259 | DB16: =DB13+DB14-DB15 -> 6770.470584 | DC16: =DC13+DC14-DC15 -> 6905.879996 | DD16: =DD13+DD14-DD15 -> 7043.997596 | DE16: =DE13+DE14-DE15 -> 7184.877548 | DF16: =DF13+DF14-DF15 -> 7328.575099 | DG16: =DG13+DG14-DG15 -> 7475.146601 | DH16: =DH13+DH14-DH15 -> 7624.649533 | DI16: =DI13+DI14-DI15 -> 7777.142523 | DJ16: =DJ13+DJ14-DJ15 -> 7932.685374 | DK16: =DK13+DK14-DK15 -> 8091.339081 | DL16: =DL13+DL14-DL15 -> 8253.165863 | DM16: =DM13+DM14-DM15 -> 8418.22918 | DN16: =DN13+DN14-DN15 -> 8586.593764 | DO16: =DO13+DO14-DO15 -> 8758.325639 | DP16: =DP13+DP14-DP15 -> 8933.492152 | DQ16: =DQ13+DQ14-DQ15 -> 9112.161995 | DR16: =DR13+DR14-DR15 -> 9294.405235 | DS16: =DS13+DS14-DS15 -> 9480.293339 | DT16: =DT13+DT14-DT15 -> 9669.899206 | DU16: =DU13+DU14-DU15 -> 9863.29719 | DV16: =DV13+DV14-DV15 -> 10060.56313 | DW16: =DW13+DW14-DW15 -> 10261.7744 | DX16: =DX13+DX14-DX15 -> 10467.00988 | DY16: =DY13+DY14-DY15 -> 10676.35008 | DZ16: =DZ13+DZ14-DZ15 -> 10889.87708 | EA16: =EA13+EA14-EA15 -> 11107.67463 | EB16: =EB13+EB14-EB15 -> 11329.82812 | EC16: =EC13+EC14-EC15 -> 11556.42468 | ED16: =ED13+ED14-ED15 -> 11787.55317 | EE16: =EE13+EE14-EE15 -> 12023.30424 | EF16: =EF13+EF14-EF15 -> 12263.77032 | EG16: =EG13+EG14-EG15 -> 12509.04573 | EH16: =EH13+EH14-EH15 -> 12759.22664 | EI16: =EI13+EI14-EI15 -> 13014.41118 | EJ16: =EJ13+EJ14-EJ15 -> 13274.6994 | EK16: =EK13+EK14-EK15 -> 13540.19339 | EL16: =EL13+EL14-EL15 -> 13810.99726 | EM16: =EM13+EM14-EM15 -> 14087.2172 | EN16: =EN13+EN14-EN15 -> 14368.96154 | EO16: =EO13+EO14-EO15 -> 14656.34078 | EP16: =EP13+EP14-EP15 -> 14949.46759 | EQ16: =EQ13+EQ14-EQ15 -> 15248.45694 | ER16: =ER13+ER14-ER15 -> 15553.42608 | ES16: =ES13+ES14-ES15 -> 15864.4946 | ET16: =ET13+ET14-ET15 -> 16181.7845 | EU16: =EU13+EU14-EU15 -> 16505.42019 | EV16: =EV13+EV14-EV15 -> 16835.52859 | EW16: =EW13+EW14-EW15 -> 17172.23916 | EX16: =EX13+EX14-EX15 -> 17515.68394 | EY16: =EY13+EY14-EY15 -> 17865.99762 | EZ16: =EZ13+EZ14-EZ15 -> 18223.31758 | FA16: =FA13+FA14-FA15 -> 18587.78393 | FB16: =FB13+FB14-FB15 -> 18959.53961 | FC16: =FC13+FC14-FC15 -> 19338.7304 | FD16: =FD13+FD14-FD15 -> 19725.50501 | FE16: =FE13+FE14-FE15 -> 20120.01511 | FF16: =FF13+FF14-FF15 -> 20522.41541 | FG16: =FG13+FG14-FG15 -> 20932.86372 | FH16: =FH13+FH14-FH15 -> 21351.52099 | FI16: =FI13+FI14-FI15 -> 21778.55141 | FJ16: =FJ13+FJ14-FJ15 -> 22214.12244 | FK16: =FK13+FK14-FK15 -> 22658.40489 | FL16: =FL13+FL14-FL15 -> 23111.57298 | FM16: =FM13+FM14-FM15 -> 23573.80444 | FN16: =FN13+FN14-FN15 -> 24045.28053 | FO16: =FO13+FO14-FO15 -> 24526.18614 | FP16: =FP13+FP14-FP15 -> 25016.70987 | FQ16: =FQ13+FQ14-FQ15 -> 25517.04406 | FR16: =FR13+FR14-FR15 -> 26027.38495 | FS16: =FS13+FS14-FS15 -> 26547.93264 | FT16: =FT13+FT14-FT15 -> 27078.8913 | FU16: =FU13+FU14-FU15 -> 27620.46912 | FV16: =FV13+FV14-FV15 -> 28172.87851 | FW16: =FW13+FW14-FW15 -> 28736.33608 | FX16: =FX13+FX14-FX15 -> 29311.0628 | FY16: =FY13+FY14-FY15 -> 29897.28405 | FZ16: =FZ13+FZ14-FZ15 -> 30495.22973 | GA16: =GA13+GA14-GA15 -> 31105.13433 | GB16: =GB13+GB14-GB15 -> 31727.23702 | GC16: =GC13+GC14-GC15 -> 32361.78176 | GD16: =GD13+GD14-GD15 -> 33009.01739 | GE16: =GE13+GE14-GE15 -> 33669.19774 | GF16: =GF13+GF14-GF15 -> 34342.58169 | GG16: =GG13+GG14-GG15 -> 35029.43333 | GH16: =GH13+GH14-GH15 -> 35730.02199 | GI16: =GI13+GI14-GI15 -> 36444.62243 | GJ16: =GJ13+GJ14-GJ15 -> 37173.51488 | GK16: =GK13+GK14-GK15 -> 37916.98518 | GL16: =GL13+GL14-GL15 -> 38675.32488 | GM16: =GM13+GM14-GM15 -> 39448.83138 | GN16: =GN13+GN14-GN15 -> 40237.80801 | GO16: =GO13+GO14-GO15 -> 41042.56417 | GP16: =GP13+GP14-GP15 -> 41863.41545 | GQ16: =GQ13+GQ14-GQ15 -> 42700.68376 | GR16: =GR13+GR14-GR15 -> 43554.69744 | GS16: =GS13+GS14-GS15 -> 44425.79139 | GT16: =GT13+GT14-GT15 -> 45314.30721 | GU16: =GU13+GU14-GU15 -> 46220.59336 | GV16: =GV13+GV14-GV15 -> 47145.00522 | GW16: =GW13+GW14-GW15 -> 48087.90533 | GX16: =GX13+GX14-GX15 -> 49049.66344 | GY16: =GY13+GY14-GY15 -> 50030.6567 | GZ16: =GZ13+GZ14-GZ15 -> 51031.26984
B18: Depreciation rate on gross plant | F18: =1/$E$7 -> 0.1 | G18: =1/$E$7 -> 0.1 | H18: 0.1 | I18: 0.1 | J18: 0.1 | K18: 0.1 | L18: 0.1 | M18: 0.1 | N18: 0.1 | O18: 0.1 | P18: 0.1 | Q18: 0.1 | R18: 0.1 | S18: 0.1 | T18: 0.1 | U18: 0.1 | V18: 0.1 | W18: 0.1 | X18: 0.1 | Y18: 0.1 | Z18: 0.1 | AA18: 0.1 | AB18: 0.1 | AC18: 0.1 | AD18: 0.1 | AE18: 0.1 | AF18: 0.1 | AG18: 0.1 | AH18: 0.1 | AI18: 0.1 | AJ18: 0.1 | AK18: 0.1 | AL18: 0.1 | AM18: 0.1 | AN18: 0.1 | AO18: 0.1 | AP18: 0.1 | AQ18: 0.1 | AR18: 0.1 | AS18: 0.1 | AT18: 0.1 | AU18: 0.1 | AV18: 0.1 | AW18: 0.1 | AX18: 0.1 | AY18: 0.1 | AZ18: 0.1 | BA18: 0.1 | BB18: 0.1 | BC18: 0.1 | BD18: 0.1 | BE18: 0.1 | BF18: 0.1 | BG18: 0.1 | BH18: 0.1 | BI18: 0.1 | BJ18: 0.1 | BK18: 0.1 | BL18: 0.1 | BM18: 0.1 | BN18: 0.1 | BO18: 0.1 | BP18: 0.1 | BQ18: 0.1 | BR18: 0.1 | BS18: =1/$E$7 -> 0.1 | BT18: 0.1 | BU18: 0.1 | BV18: 0.1 | BW18: 0.1 | BX18: 0.1 | BY18: 0.1 | BZ18: 0.1 | CA18: 0.1 | CB18: 0.1 | CC18: 0.1 | CD18: 0.1 | CE18: 0.1 | CF18: 0.1 | CG18: 0.1 | CH18: 0.1 | CI18: 0.1 | CJ18: 0.1 | CK18: 0.1 | CL18: 0.1 | CM18: 0.1 | CN18: 0.1 | CO18: 0.1 | CP18: 0.1 | CQ18: 0.1 | CR18: 0.1 | CS18: 0.1 | CT18: 0.1 | CU18: 0.1 | CV18: 0.1 | CW18: 0.1 | CX18: 0.1 | CY18: 0.1 | CZ18: 0.1 | DA18: 0.1 | DB18: 0.1 | DC18: 0.1 | DD18: 0.1 | DE18: 0.1 | DF18: 0.1 | DG18: 0.1 | DH18: 0.1 | DI18: 0.1 | DJ18: 0.1 | DK18: 0.1 | DL18: 0.1 | DM18: 0.1 | DN18: 0.1 | DO18: 0.1 | DP18: 0.1 | DQ18: 0.1 | DR18: 0.1 | DS18: 0.1 | DT18: 0.1 | DU18: 0.1 | DV18: 0.1 | DW18: 0.1 | DX18: 0.1 | DY18: 0.1 | DZ18: 0.1 | EA18: 0.1 | EB18: 0.1 | EC18: 0.1 | ED18: 0.1 | EE18: =1/$E$7 -> 0.1 | EF18: 0.1 | EG18: 0.1 | EH18: 0.1 | EI18: 0.1 | EJ18: 0.1 | EK18: 0.1 | EL18: 0.1 | EM18: 0.1 | EN18: 0.1 | EO18: 0.1 | EP18: 0.1 | EQ18: 0.1 | ER18: 0.1 | ES18: 0.1 | ET18: 0.1 | EU18: 0.1 | EV18: 0.1 | EW18: 0.1 | EX18: 0.1 | EY18: 0.1 | EZ18: 0.1 | FA18: 0.1 | FB18: 0.1 | FC18: 0.1 | FD18: 0.1 | FE18: 0.1 | FF18: 0.1 | FG18: 0.1 | FH18: 0.1 | FI18: 0.1 | FJ18: 0.1 | FK18: 0.1 | FL18: 0.1 | FM18: 0.1 | FN18: 0.1 | FO18: 0.1 | FP18: 0.1 | FQ18: 0.1 | FR18: 0.1 | FS18: 0.1 | FT18: 0.1 | FU18: 0.1 | FV18: 0.1 | FW18: 0.1 | FX18: 0.1 | FY18: 0.1 | FZ18: 0.1 | GA18: 0.1 | GB18: 0.1 | GC18: 0.1 | GD18: 0.1 | GE18: 0.1 | GF18: 0.1 | GG18: 0.1 | GH18: 0.1 | GI18: 0.1 | GJ18: 0.1 | GK18: 0.1 | GL18: 0.1 | GM18: 0.1 | GN18: 0.1 | GO18: 0.1 | GP18: 0.1 | GQ18: =1/$E$7 -> 0.1 | GR18: 0.1 | GS18: 0.1 | GT18: 0.1 | GU18: 0.1 | GV18: 0.1 | GW18: 0.1 | GX18: 0.1 | GY18: 0.1 | GZ18: 0.1
B19: Depreciation expense | F19: =F18*F13 -> 10 | G19: =G18*G13 -> 20.2 | H19: =H18*H13 -> 30.604 | I19: 41.21608 | J19: 52.0404016 | K19: 63.08120963 | L19: 74.34283382 | M19: 85.8296905 | N19: 97.54628431 | O19: 109.49721 | P19: 111.6871542 | Q19: 113.9208973 | R19: 116.1993152 | S19: 118.5233015 | T19: 120.8937676 | U19: 123.3116429 | V19: 125.7778758 | W19: 128.2934333 | X19: 130.859302 | Y19: 133.476488 | Z19: 136.1460178 | AA19: 138.8689381 | AB19: 141.6463169 | AC19: 144.4792432 | AD19: 147.3688281 | AE19: 150.3162046 | AF19: 153.3225287 | AG19: 156.3889793 | AH19: 159.5167589 | AI19: 162.7070941 | AJ19: 165.9612359 | AK19: 169.2804607 | AL19: 172.6660699 | AM19: 176.1193913 | AN19: 179.6417791 | AO19: 183.2346147 | AP19: 186.899307 | AQ19: 190.6372931 | AR19: 194.450039 | AS19: 198.3390398 | AT19: 202.3058206 | AU19: 206.351937 | AV19: 210.4789757 | AW19: 214.6885552 | AX19: 218.9823263 | AY19: 223.3619728 | AZ19: 227.8292123 | BA19: 232.3857965 | BB19: 237.0335125 | BC19: 241.7741827 | BD19: 246.6096664 | BE19: 251.5418597 | BF19: 256.5726969 | BG19: 261.7041508 | BH19: 266.9382339 | BI19: 272.2769985 | BJ19: 277.7225385 | BK19: 283.2769893 | BL19: 288.9425291 | BM19: 294.7213796 | BN19: 300.6158072 | BO19: 306.6281234 | BP19: 312.7606859 | BQ19: 319.0158996 | BR19: 325.3962176 | BS19: =BS18*BS13 -> 331.9041419 | BT19: 338.5422247 | BU19: 345.3130692 | BV19: 352.2193306 | BW19: 359.2637172 | BX19: 366.4489916 | BY19: 373.7779714 | BZ19: 381.2535308 | CA19: 388.8786015 | CB19: 396.6561735 | CC19: 404.589297 | CD19: 412.6810829 | CE19: 420.9347046 | CF19: 429.3533987 | CG19: 437.9404666 | CH19: 446.699276 | CI19: 455.6332615 | CJ19: 464.7459267 | CK19: 474.0408452 | CL19: 483.5216621 | CM19: 493.1920954 | CN19: 503.0559373 | CO19: 513.117056 | CP19: 523.3793972 | CQ19: 533.8469851 | CR19: 544.5239248 | CS19: 555.4144033 | CT19: 566.5226914 | CU19: 577.8531452 | CV19: 589.4102081 | CW19: 601.1984123 | CX19: 613.2223805 | CY19: 625.4868281 | CZ19: 637.9965647 | DA19: 650.756496 | DB19: 663.7716259 | DC19: 677.0470584 | DD19: 690.5879996 | DE19: 704.3997596 | DF19: 718.4877548 | DG19: 732.8575099 | DH19: 747.5146601 | DI19: 762.4649533 | DJ19: 777.7142523 | DK19: 793.2685374 | DL19: 809.1339081 | DM19: 825.3165863 | DN19: 841.822918 | DO19: 858.6593764 | DP19: 875.8325639 | DQ19: 893.3492152 | DR19: 911.2161995 | DS19: 929.4405235 | DT19: 948.0293339 | DU19: 966.9899206 | DV19: 986.329719 | DW19: 1006.056313 | DX19: 1026.17744 | DY19: 1046.700988 | DZ19: 1067.635008 | EA19: 1088.987708 | EB19: 1110.767463 | EC19: 1132.982812 | ED19: 1155.642468 | EE19: =EE18*EE13 -> 1178.755317 | EF19: 1202.330424 | EG19: 1226.377032 | EH19: 1250.904573 | EI19: 1275.922664 | EJ19: 1301.441118 | EK19: 1327.46994 | EL19: 1354.019339 | EM19: 1381.099726 | EN19: 1408.72172 | EO19: 1436.896154 | EP19: 1465.634078 | EQ19: 1494.946759 | ER19: 1524.845694 | ES19: 1555.342608 | ET19: 1586.44946 | EU19: 1618.17845 | EV19: 1650.542019 | EW19: 1683.552859 | EX19: 1717.223916 | EY19: 1751.568394 | EZ19: 1786.599762 | FA19: 1822.331758 | FB19: 1858.778393 | FC19: 1895.953961 | FD19: 1933.87304 | FE19: 1972.550501 | FF19: 2012.001511 | FG19: 2052.241541 | FH19: 2093.286372 | FI19: 2135.152099 | FJ19: 2177.855141 | FK19: 2221.412244 | FL19: 2265.840489 | FM19: 2311.157298 | FN19: 2357.380444 | FO19: 2404.528053 | FP19: 2452.618614 | FQ19: 2501.670987 | FR19: 2551.704406 | FS19: 2602.738495 | FT19: 2654.793264 | FU19: 2707.88913 | FV19: 2762.046912 | FW19: 2817.287851 | FX19: 2873.633608 | FY19: 2931.10628 | FZ19: 2989.728405 | GA19: 3049.522973 | GB19: 3110.513433 | GC19: 3172.723702 | GD19: 3236.178176 | GE19: 3300.901739 | GF19: 3366.919774 | GG19: 3434.258169 | GH19: 3502.943333 | GI19: 3573.002199 | GJ19: 3644.462243 | GK19: 3717.351488 | GL19: 3791.698518 | GM19: 3867.532488 | GN19: 3944.883138 | GO19: 4023.780801 | GP19: 4104.256417 | GQ19: =GQ18*GQ13 -> 4186.341545 | GR19: 4270.068376 | GS19: 4355.469744 | GT19: 4442.579139 | GU19: 4531.430721 | GV19: 4622.059336 | GW19: 4714.500522 | GX19: 4808.790533 | GY19: 4904.966344 | GZ19: 5003.06567
B21: Accumulated depreciation balance
B22: Opening balance | F22: =E25 -> 0 | G22: =F25 -> 10 | H22: 30.2 | I22: 60.804 | J22: 102.02008 | K22: 154.0604816 | L22: 217.1416912 | M22: 291.4845251 | N22: 377.3142156 | O22: 474.8604999 | P22: 484.3577099 | Q22: 494.0448641 | R22: 503.9257613 | S22: 514.0042766 | T22: 524.2843621 | U22: 534.7700493 | V22: 545.4654503 | W22: 556.3747593 | X22: 567.5022545 | Y22: 578.8522996 | Z22: 590.4293456 | AA22: 602.2379325 | AB22: 614.2826912 | AC22: 626.568345 | AD22: 639.0997119 | AE22: 651.8817061 | AF22: 664.9193403 | AG22: 678.2177271 | AH22: 691.7820816 | AI22: 705.6177232 | AJ22: 719.7300777 | AK22: 734.1246793 | AL22: 748.8071728 | AM22: 763.7833163 | AN22: 779.0589826 | AO22: 794.6401623 | AP22: 810.5329655 | AQ22: 826.7436248 | AR22: 843.2784973 | AS22: 860.1440673 | AT22: 877.3469486 | AU22: 894.8938876 | AV22: 912.7917653 | AW22: 931.0476006 | AX22: 949.6685527 | AY22: 968.6619237 | AZ22: 988.0351622 | BA22: 1007.795865 | BB22: 1027.951783 | BC22: 1048.510818 | BD22: 1069.481035 | BE22: 1090.870655 | BF22: 1112.688069 | BG22: 1134.94183 | BH22: 1157.640667 | BI22: 1180.79348 | BJ22: 1204.409349 | BK22: 1228.497536 | BL22: 1253.067487 | BM22: 1278.128837 | BN22: 1303.691414 | BO22: 1329.765242 | BP22: 1356.360547 | BQ22: 1383.487758 | BR22: 1411.157513 | BS22: =BR25 -> 1439.380663 | BT22: 1468.168276 | BU22: 1497.531642 | BV22: 1527.482275 | BW22: 1558.03192 | BX22: 1589.192559 | BY22: 1620.97641 | BZ22: 1653.395938 | CA22: 1686.463857 | CB22: 1720.193134 | CC22: 1754.596997 | CD22: 1789.688937 | CE22: 1825.482715 | CF22: 1861.99237 | CG22: 1899.232217 | CH22: 1937.216861 | CI22: 1975.961199 | CJ22: 2015.480422 | CK22: 2055.790031 | CL22: 2096.905832 | CM22: 2138.843948 | CN22: 2181.620827 | CO22: 2225.253244 | CP22: 2269.758309 | CQ22: 2315.153475 | CR22: 2361.456544 | CS22: 2408.685675 | CT22: 2456.859389 | CU22: 2505.996576 | CV22: 2556.116508 | CW22: 2607.238838 | CX22: 2659.383615 | CY22: 2712.571287 | CZ22: 2766.822713 | DA22: 2822.159167 | DB22: 2878.60235 | DC22: 2936.174397 | DD22: 2994.897885 | DE22: 3054.795843 | DF22: 3115.89176 | DG22: 3178.209595 | DH22: 3241.773787 | DI22: 3306.609263 | DJ22: 3372.741448 | DK22: 3440.196277 | DL22: 3509.000203 | DM22: 3579.180207 | DN22: 3650.763811 | DO22: 3723.779087 | DP22: 3798.254669 | DQ22: 3874.219762 | DR22: 3951.704157 | DS22: 4030.738241 | DT22: 4111.353005 | DU22: 4193.580065 | DV22: 4277.451667 | DW22: 4363.0007 | DX22: 4450.260714 | DY22: 4539.265928 | DZ22: 4630.051247 | EA22: 4722.652272 | EB22: 4817.105317 | EC22: 4913.447424 | ED22: 5011.716372 | EE22: =ED25 -> 5111.9507 | EF22: 5214.189714 | EG22: 5318.473508 | EH22: 5424.842978 | EI22: 5533.339838 | EJ22: 5644.006634 | EK22: 5756.886767 | EL22: 5872.024502 | EM22: 5989.464992 | EN22: 6109.254292 | EO22: 6231.439378 | EP22: 6356.068166 | EQ22: 6483.189529 | ER22: 6612.85332 | ES22: 6745.110386 | ET22: 6880.012594 | EU22: 7017.612846 | EV22: 7157.965102 | EW22: 7301.124404 | EX22: 7447.146893 | EY22: 7596.08983 | EZ22: 7748.011627 | FA22: 7902.97186 | FB22: 8061.031297 | FC22: 8222.251923 | FD22: 8386.696961 | FE22: 8554.4309 | FF22: 8725.519518 | FG22: 8900.029909 | FH22: 9078.030507 | FI22: 9259.591117 | FJ22: 9444.782939 | FK22: 9633.678598 | FL22: 9826.35217 | FM22: 10022.87921 | FN22: 10223.3368 | FO22: 10427.80353 | FP22: 10636.3596 | FQ22: 10849.0868 | FR22: 11066.06853 | FS22: 11287.3899 | FT22: 11513.1377 | FU22: 11743.40046 | FV22: 11978.26846 | FW22: 12217.83383 | FX22: 12462.19051 | FY22: 12711.43432 | FZ22: 12965.66301 | GA22: 13224.97627 | GB22: 13489.47579 | GC22: 13759.26531 | GD22: 14034.45061 | GE22: 14315.13963 | GF22: 14601.44242 | GG22: 14893.47127 | GH22: 15191.34069 | GI22: 15495.16751 | GJ22: 15805.07086 | GK22: 16121.17227 | GL22: 16443.59572 | GM22: 16772.46763 | GN22: 17107.91699 | GO22: 17450.07533 | GP22: 17799.07683 | GQ22: =GP25 -> 18155.05837 | GR22: 18518.15954 | GS22: 18888.52273 | GT22: 19266.29318 | GU22: 19651.61905 | GV22: 20044.65143 | GW22: 20445.54446 | GX22: 20854.45534 | GY22: 21271.54445 | GZ22: 21696.97534
B23: Add: Depreciation expense | F23: =F19 -> 10 | G23: =G19 -> 20.2 | H23: 30.604 | I23: 41.21608 | J23: 52.0404016 | K23: 63.08120963 | L23: 74.34283382 | M23: 85.8296905 | N23: 97.54628431 | O23: 109.49721 | P23: 111.6871542 | Q23: 113.9208973 | R23: 116.1993152 | S23: 118.5233015 | T23: 120.8937676 | U23: 123.3116429 | V23: 125.7778758 | W23: 128.2934333 | X23: 130.859302 | Y23: 133.476488 | Z23: 136.1460178 | AA23: 138.8689381 | AB23: 141.6463169 | AC23: 144.4792432 | AD23: 147.3688281 | AE23: 150.3162046 | AF23: 153.3225287 | AG23: 156.3889793 | AH23: 159.5167589 | AI23: 162.7070941 | AJ23: 165.9612359 | AK23: 169.2804607 | AL23: 172.6660699 | AM23: 176.1193913 | AN23: 179.6417791 | AO23: 183.2346147 | AP23: 186.899307 | AQ23: 190.6372931 | AR23: 194.450039 | AS23: 198.3390398 | AT23: 202.3058206 | AU23: 206.351937 | AV23: 210.4789757 | AW23: 214.6885552 | AX23: 218.9823263 | AY23: 223.3619728 | AZ23: 227.8292123 | BA23: 232.3857965 | BB23: 237.0335125 | BC23: 241.7741827 | BD23: 246.6096664 | BE23: 251.5418597 | BF23: 256.5726969 | BG23: 261.7041508 | BH23: 266.9382339 | BI23: 272.2769985 | BJ23: 277.7225385 | BK23: 283.2769893 | BL23: 288.9425291 | BM23: 294.7213796 | BN23: 300.6158072 | BO23: 306.6281234 | BP23: 312.7606859 | BQ23: 319.0158996 | BR23: 325.3962176 | BS23: =BS19 -> 331.9041419 | BT23: 338.5422247 | BU23: 345.3130692 | BV23: 352.2193306 | BW23: 359.2637172 | BX23: 366.4489916 | BY23: 373.7779714 | BZ23: 381.2535308 | CA23: 388.8786015 | CB23: 396.6561735 | CC23: 404.589297 | CD23: 412.6810829 | CE23: 420.9347046 | CF23: 429.3533987 | CG23: 437.9404666 | CH23: 446.699276 | CI23: 455.6332615 | CJ23: 464.7459267 | CK23: 474.0408452 | CL23: 483.5216621 | CM23: 493.1920954 | CN23: 503.0559373 | CO23: 513.117056 | CP23: 523.3793972 | CQ23: 533.8469851 | CR23: 544.5239248 | CS23: 555.4144033 | CT23: 566.5226914 | CU23: 577.8531452 | CV23: 589.4102081 | CW23: 601.1984123 | CX23: 613.2223805 | CY23: 625.4868281 | CZ23: 637.9965647 | DA23: 650.756496 | DB23: 663.7716259 | DC23: 677.0470584 | DD23: 690.5879996 | DE23: 704.3997596 | DF23: 718.4877548 | DG23: 732.8575099 | DH23: 747.5146601 | DI23: 762.4649533 | DJ23: 777.7142523 | DK23: 793.2685374 | DL23: 809.1339081 | DM23: 825.3165863 | DN23: 841.822918 | DO23: 858.6593764 | DP23: 875.8325639 | DQ23: 893.3492152 | DR23: 911.2161995 | DS23: 929.4405235 | DT23: 948.0293339 | DU23: 966.9899206 | DV23: 986.329719 | DW23: 1006.056313 | DX23: 1026.17744 | DY23: 1046.700988 | DZ23: 1067.635008 | EA23: 1088.987708 | EB23: 1110.767463 | EC23: 1132.982812 | ED23: 1155.642468 | EE23: =EE19 -> 1178.755317 | EF23: 1202.330424 | EG23: 1226.377032 | EH23: 1250.904573 | EI23: 1275.922664 | EJ23: 1301.441118 | EK23: 1327.46994 | EL23: 1354.019339 | EM23: 1381.099726 | EN23: 1408.72172 | EO23: 1436.896154 | EP23: 1465.634078 | EQ23: 1494.946759 | ER23: 1524.845694 | ES23: 1555.342608 | ET23: 1586.44946 | EU23: 1618.17845 | EV23: 1650.542019 | EW23: 1683.552859 | EX23: 1717.223916 | EY23: 1751.568394 | EZ23: 1786.599762 | FA23: 1822.331758 | FB23: 1858.778393 | FC23: 1895.953961 | FD23: 1933.87304 | FE23: 1972.550501 | FF23: 2012.001511 | FG23: 2052.241541 | FH23: 2093.286372 | FI23: 2135.152099 | FJ23: 2177.855141 | FK23: 2221.412244 | FL23: 2265.840489 | FM23: 2311.157298 | FN23: 2357.380444 | FO23: 2404.528053 | FP23: 2452.618614 | FQ23: 2501.670987 | FR23: 2551.704406 | FS23: 2602.738495 | FT23: 2654.793264 | FU23: 2707.88913 | FV23: 2762.046912 | FW23: 2817.287851 | FX23: 2873.633608 | FY23: 2931.10628 | FZ23: 2989.728405 | GA23: 3049.522973 | GB23: 3110.513433 | GC23: 3172.723702 | GD23: 3236.178176 | GE23: 3300.901739 | GF23: 3366.919774 | GG23: 3434.258169 | GH23: 3502.943333 | GI23: 3573.002199 | GJ23: 3644.462243 | GK23: 3717.351488 | GL23: 3791.698518 | GM23: 3867.532488 | GN23: 3944.883138 | GO23: 4023.780801 | GP23: 4104.256417 | GQ23: =GQ19 -> 4186.341545 | GR23: 4270.068376 | GS23: 4355.469744 | GT23: 4442.579139 | GU23: 4531.430721 | GV23: 4622.059336 | GW23: 4714.500522 | GX23: 4808.790533 | GY23: 4904.966344 | GZ23: 5003.06567
B24: Less: Assets disposals | F24: =F15 -> FALSE | G24: =G15 -> FALSE | H24: FALSE | I24: FALSE | J24: FALSE | K24: FALSE | L24: FALSE | M24: FALSE | N24: FALSE | O24: 100 | P24: 102 | Q24: 104.04 | R24: 106.1208 | S24: 108.243216 | T24: 110.4080803 | U24: 112.6162419 | V24: 114.8685668 | W24: 117.1659381 | X24: 119.5092569 | Y24: 121.899442 | Z24: 124.3374308 | AA24: 126.8241795 | AB24: 129.360663 | AC24: 131.9478763 | AD24: 134.5868338 | AE24: 137.2785705 | AF24: 140.0241419 | AG24: 142.8246248 | AH24: 145.6811173 | AI24: 148.5947396 | AJ24: 151.5666344 | AK24: 154.5979671 | AL24: 157.6899264 | AM24: 160.8437249 | AN24: 164.0605994 | AO24: 167.3418114 | AP24: 170.6886477 | AQ24: 174.1024206 | AR24: 177.584469 | AS24: 181.1361584 | AT24: 184.7588816 | AU24: 188.4540592 | AV24: 192.2231404 | AW24: 196.0676032 | AX24: 199.9889553 | AY24: 203.9887344 | AZ24: 208.0685091 | BA24: 212.2298792 | BB24: 216.4744768 | BC24: 220.8039664 | BD24: 225.2200457 | BE24: 229.7244466 | BF24: 234.3189355 | BG24: 239.0053142 | BH24: 243.7854205 | BI24: 248.6611289 | BJ24: 253.6343515 | BK24: 258.7070385 | BL24: 263.8811793 | BM24: 269.1588029 | BN24: 274.541979 | BO24: 280.0328185 | BP24: 285.6334749 | BQ24: 291.3461444 | BR24: 297.1730673 | BS24: =BS15 -> 303.1165286 | BT24: 309.1788592 | BU24: 315.3624364 | BV24: 321.6696851 | BW24: 328.1030788 | BX24: 334.6651404 | BY24: 341.3584432 | BZ24: 348.1856121 | CA24: 355.1493243 | CB24: 362.2523108 | CC24: 369.497357 | CD24: 376.8873042 | CE24: 384.4250503 | CF24: 392.1135513 | CG24: 399.9558223 | CH24: 407.9549387 | CI24: 416.1140375 | CJ24: 424.4363183 | CK24: 432.9250446 | CL24: 441.5835455 | CM24: 450.4152164 | CN24: 459.4235208 | CO24: 468.6119912 | CP24: 477.984231 | CQ24: 487.5439156 | CR24: 497.2947939 | CS24: 507.2406898 | CT24: 517.3855036 | CU24: 527.7332137 | CV24: 538.2878779 | CW24: 549.0536355 | CX24: 560.0347082 | CY24: 571.2354024 | CZ24: 582.6601104 | DA24: 594.3133126 | DB24: 606.1995789 | DC24: 618.3235705 | DD24: 630.6900419 | DE24: 643.3038427 | DF24: 656.1699196 | DG24: 669.293318 | DH24: 682.6791843 | DI24: 696.332768 | DJ24: 710.2594234 | DK24: 724.4646118 | DL24: 738.9539041 | DM24: 753.7329821 | DN24: 768.8076418 | DO24: 784.1837946 | DP24: 799.8674705 | DQ24: 815.8648199 | DR24: 832.1821163 | DS24: 848.8257586 | DT24: 865.8022738 | DU24: 883.1183193 | DV24: 900.7806857 | DW24: 918.7962994 | DX24: 937.1722254 | DY24: 955.9156699 | DZ24: 975.0339833 | EA24: 994.534663 | EB24: 1014.425356 | EC24: 1034.713863 | ED24: 1055.408141 | EE24: =EE15 -> 1076.516303 | EF24: 1098.046629 | EG24: 1120.007562 | EH24: 1142.407713 | EI24: 1165.255868 | EJ24: 1188.560985 | EK24: 1212.332205 | EL24: 1236.578849 | EM24: 1261.310426 | EN24: 1286.536634 | EO24: 1312.267367 | EP24: 1338.512714 | EQ24: 1365.282969 | ER24: 1392.588628 | ES24: 1420.4404 | ET24: 1448.849208 | EU24: 1477.826193 | EV24: 1507.382716 | EW24: 1537.530371 | EX24: 1568.280978 | EY24: 1599.646598 | EZ24: 1631.63953 | FA24: 1664.27232 | FB24: 1697.557767 | FC24: 1731.508922 | FD24: 1766.139101 | FE24: 1801.461883 | FF24: 1837.49112 | FG24: 1874.240943 | FH24: 1911.725761 | FI24: 1949.960277 | FJ24: 1988.959482 | FK24: 2028.738672 | FL24: 2069.313445 | FM24: 2110.699714 | FN24: 2152.913708 | FO24: 2195.971983 | FP24: 2239.891422 | FQ24: 2284.689251 | FR24: 2330.383036 | FS24: 2376.990696 | FT24: 2424.53051 | FU24: 2473.021121 | FV24: 2522.481543 | FW24: 2572.931174 | FX24: 2624.389797 | FY24: 2676.877593 | FZ24: 2730.415145 | GA24: 2785.023448 | GB24: 2840.723917 | GC24: 2897.538395 | GD24: 2955.489163 | GE24: 3014.598947 | GF24: 3074.890925 | GG24: 3136.388744 | GH24: 3199.116519 | GI24: 3263.098849 | GJ24: 3328.360826 | GK24: 3394.928043 | GL24: 3462.826604 | GM24: 3532.083136 | GN24: 3602.724798 | GO24: 3674.779294 | GP24: 3748.27488 | GQ24: =GQ15 -> 3823.240378 | GR24: 3899.705185 | GS24: 3977.699289 | GT24: 4057.253275 | GU24: 4138.39834 | GV24: 4221.166307 | GW24: 4305.589633 | GX24: 4391.701426 | GY24: 4479.535455 | GZ24: 4569.126164
B25: Closing balance | F25: =F22+F23-F24 -> 10 | G25: =G22+G23-G24 -> 30.2 | H25: 60.804 | I25: 102.02008 | J25: 154.0604816 | K25: 217.1416912 | L25: 291.4845251 | M25: 377.3142156 | N25: 474.8604999 | O25: 484.3577099 | P25: 494.0448641 | Q25: 503.9257613 | R25: 514.0042766 | S25: 524.2843621 | T25: 534.7700493 | U25: 545.4654503 | V25: 556.3747593 | W25: 567.5022545 | X25: 578.8522996 | Y25: 590.4293456 | Z25: 602.2379325 | AA25: 614.2826912 | AB25: 626.568345 | AC25: 639.0997119 | AD25: 651.8817061 | AE25: 664.9193403 | AF25: 678.2177271 | AG25: 691.7820816 | AH25: 705.6177232 | AI25: 719.7300777 | AJ25: 734.1246793 | AK25: 748.8071728 | AL25: 763.7833163 | AM25: 779.0589826 | AN25: 794.6401623 | AO25: 810.5329655 | AP25: 826.7436248 | AQ25: 843.2784973 | AR25: 860.1440673 | AS25: 877.3469486 | AT25: 894.8938876 | AU25: 912.7917653 | AV25: 931.0476006 | AW25: 949.6685527 | AX25: 968.6619237 | AY25: 988.0351622 | AZ25: 1007.795865 | BA25: 1027.951783 | BB25: 1048.510818 | BC25: 1069.481035 | BD25: 1090.870655 | BE25: 1112.688069 | BF25: 1134.94183 | BG25: 1157.640667 | BH25: 1180.79348 | BI25: 1204.409349 | BJ25: 1228.497536 | BK25: 1253.067487 | BL25: 1278.128837 | BM25: 1303.691414 | BN25: 1329.765242 | BO25: 1356.360547 | BP25: 1383.487758 | BQ25: 1411.157513 | BR25: 1439.380663 | BS25: =BS22+BS23-BS24 -> 1468.168276 | BT25: 1497.531642 | BU25: 1527.482275 | BV25: 1558.03192 | BW25: 1589.192559 | BX25: 1620.97641 | BY25: 1653.395938 | BZ25: 1686.463857 | CA25: 1720.193134 | CB25: 1754.596997 | CC25: 1789.688937 | CD25: 1825.482715 | CE25: 1861.99237 | CF25: 1899.232217 | CG25: 1937.216861 | CH25: 1975.961199 | CI25: 2015.480422 | CJ25: 2055.790031 | CK25: 2096.905832 | CL25: 2138.843948 | CM25: 2181.620827 | CN25: 2225.253244 | CO25: 2269.758309 | CP25: 2315.153475 | CQ25: 2361.456544 | CR25: 2408.685675 | CS25: 2456.859389 | CT25: 2505.996576 | CU25: 2556.116508 | CV25: 2607.238838 | CW25: 2659.383615 | CX25: 2712.571287 | CY25: 2766.822713 | CZ25: 2822.159167 | DA25: 2878.60235 | DB25: 2936.174397 | DC25: 2994.897885 | DD25: 3054.795843 | DE25: 3115.89176 | DF25: 3178.209595 | DG25: 3241.773787 | DH25: 3306.609263 | DI25: 3372.741448 | DJ25: 3440.196277 | DK25: 3509.000203 | DL25: 3579.180207 | DM25: 3650.763811 | DN25: 3723.779087 | DO25: 3798.254669 | DP25: 3874.219762 | DQ25: 3951.704157 | DR25: 4030.738241 | DS25: 4111.353005 | DT25: 4193.580065 | DU25: 4277.451667 | DV25: 4363.0007 | DW25: 4450.260714 | DX25: 4539.265928 | DY25: 4630.051247 | DZ25: 4722.652272 | EA25: 4817.105317 | EB25: 4913.447424 | EC25: 5011.716372 | ED25: 5111.9507 | EE25: =EE22+EE23-EE24 -> 5214.189714 | EF25: 5318.473508 | EG25: 5424.842978 | EH25: 5533.339838 | EI25: 5644.006634 | EJ25: 5756.886767 | EK25: 5872.024502 | EL25: 5989.464992 | EM25: 6109.254292 | EN25: 6231.439378 | EO25: 6356.068166 | EP25: 6483.189529 | EQ25: 6612.85332 | ER25: 6745.110386 | ES25: 6880.012594 | ET25: 7017.612846 | EU25: 7157.965102 | EV25: 7301.124404 | EW25: 7447.146893 | EX25: 7596.08983 | EY25: 7748.011627 | EZ25: 7902.97186 | FA25: 8061.031297 | FB25: 8222.251923 | FC25: 8386.696961 | FD25: 8554.4309 | FE25: 8725.519518 | FF25: 8900.029909 | FG25: 9078.030507 | FH25: 9259.591117 | FI25: 9444.782939 | FJ25: 9633.678598 | FK25: 9826.35217 | FL25: 10022.87921 | FM25: 10223.3368 | FN25: 10427.80353 | FO25: 10636.3596 | FP25: 10849.0868 | FQ25: 11066.06853 | FR25: 11287.3899 | FS25: 11513.1377 | FT25: 11743.40046 | FU25: 11978.26846 | FV25: 12217.83383 | FW25: 12462.19051 | FX25: 12711.43432 | FY25: 12965.66301 | FZ25: 13224.97627 | GA25: 13489.47579 | GB25: 13759.26531 | GC25: 14034.45061 | GD25: 14315.13963 | GE25: 14601.44242 | GF25: 14893.47127 | GG25: 15191.34069 | GH25: 15495.16751 | GI25: 15805.07086 | GJ25: 16121.17227 | GK25: 16443.59572 | GL25: 16772.46763 | GM25: 17107.91699 | GN25: 17450.07533 | GO25: 17799.07683 | GP25: 18155.05837 | GQ25: =GQ22+GQ23-GQ24 -> 18518.15954 | GR25: 18888.52273 | GS25: 19266.29318 | GT25: 19651.61905 | GU25: 20044.65143 | GV25: 20445.54446 | GW25: 20854.45534 | GX25: 21271.54445 | GY25: 21696.97534 | GZ25: 22130.91485
B27: Net plant | F27: =F13-F22 -> 100 | G27: =G13-G22 -> 192 | H27: 275.84 | I27: 351.3568 | J27: 418.383936 | K27: 476.7516147 | L27: 526.286647 | M27: 566.81238 | N27: 598.1486276 | O27: 620.1116001 | P27: 632.5138321 | Q27: 645.1641087 | R27: 658.0673909 | S27: 671.2287387 | T27: 684.6533135 | U27: 698.3463798 | V27: 712.3133074 | W27: 726.5595735 | X27: 741.090765 | Y27: 755.9125803 | Z27: 771.0308319 | AA27: 786.4514485 | AB27: 802.1804775 | AC27: 818.2240871 | AD27: 834.5885688 | AE27: 851.2803402 | AF27: 868.305947 | AG27: 885.6720659 | AH27: 903.3855072 | AI27: 921.4532174 | AJ27: 939.8822817 | AK27: 958.6799274 | AL27: 977.8535259 | AM27: 997.4105964 | AN27: 1017.358808 | AO27: 1037.705985 | AP27: 1058.460104 | AQ27: 1079.629306 | AR27: 1101.221892 | AS27: 1123.24633 | AT27: 1145.711257 | AU27: 1168.625482 | AV27: 1191.997992 | AW27: 1215.837952 | AX27: 1240.154711 | AY27: 1264.957805 | AZ27: 1290.256961 | BA27: 1316.0621 | BB27: 1342.383342 | BC27: 1369.231009 | BD27: 1396.615629 | BE27: 1424.547942 | BF27: 1453.0389 | BG27: 1482.099679 | BH27: 1511.741672 | BI27: 1541.976506 | BJ27: 1572.816036 | BK27: 1604.272356 | BL27: 1636.357803 | BM27: 1669.08496 | BN27: 1702.466659 | BO27: 1736.515992 | BP27: 1771.246312 | BQ27: 1806.671238 | BR27: 1842.804663 | BS27: =BS13-BS22 -> 1879.660756 | BT27: 1917.253971 | BU27: 1955.599051 | BV27: 1994.711032 | BW27: 2034.605252 | BX27: 2075.297357 | BY27: 2116.803304 | BZ27: 2159.13937 | CA27: 2202.322158 | CB27: 2246.368601 | CC27: 2291.295973 | CD27: 2337.121892 | CE27: 2383.86433 | CF27: 2431.541617 | CG27: 2480.172449 | CH27: 2529.775898 | CI27: 2580.371416 | CJ27: 2631.978845 | CK27: 2684.618421 | CL27: 2738.31079 | CM27: 2793.077006 | CN27: 2848.938546 | CO27: 2905.917317 | CP27: 2964.035663 | CQ27: 3023.316376 | CR27: 3083.782704 | CS27: 3145.458358 | CT27: 3208.367525 | CU27: 3272.534876 | CV27: 3337.985573 | CW27: 3404.745285 | CX27: 3472.84019 | CY27: 3542.296994 | CZ27: 3613.142934 | DA27: 3685.405793 | DB27: 3759.113908 | DC27: 3834.296187 | DD27: 3910.98211 | DE27: 3989.201753 | DF27: 4068.985788 | DG27: 4150.365503 | DH27: 4233.372813 | DI27: 4318.04027 | DJ27: 4404.401075 | DK27: 4492.489097 | DL27: 4582.338879 | DM27: 4673.985656 | DN27: 4767.465369 | DO27: 4862.814677 | DP27: 4960.07097 | DQ27: 5059.27239 | DR27: 5160.457837 | DS27: 5263.666994 | DT27: 5368.940334 | DU27: 5476.319141 | DV27: 5585.845523 | DW27: 5697.562434 | DX27: 5811.513683 | DY27: 5927.743956 | DZ27: 6046.298835 | EA27: 6167.224812 | EB27: 6290.569308 | EC27: 6416.380694 | ED27: 6544.708308 | EE27: =EE13-EE22 -> 6675.602475 | EF27: 6809.114524 | EG27: 6945.296814 | EH27: 7084.202751 | EI27: 7225.886806 | EJ27: 7370.404542 | EK27: 7517.812633 | EL27: 7668.168885 | EM27: 7821.532263 | EN27: 7977.962908 | EO27: 8137.522167 | EP27: 8300.27261 | EQ27: 8466.278062 | ER27: 8635.603623 | ES27: 8808.315696 | ET27: 8984.48201 | EU27: 9164.17165 | EV27: 9347.455083 | EW27: 9534.404185 | EX27: 9725.092268 | EY27: 9919.594114 | EZ27: 10117.986 | FA27: 10320.34572 | FB27: 10526.75263 | FC27: 10737.28768 | FD27: 10952.03344 | FE27: 11171.07411 | FF27: 11394.49559 | FG27: 11622.3855 | FH27: 11854.83321 | FI27: 12091.92987 | FJ27: 12333.76847 | FK27: 12580.44384 | FL27: 12832.05272 | FM27: 13088.69377 | FN27: 13350.46765 | FO27: 13617.477 | FP27: 13889.82654 | FQ27: 14167.62307 | FR27: 14450.97553 | FS27: 14739.99504 | FT27: 15034.79494 | FU27: 15335.49084 | FV27: 15642.20066 | FW27: 15955.04467 | FX27: 16274.14557 | FY27: 16599.62848 | FZ27: 16931.62105 | GA27: 17270.25347 | GB27: 17615.65854 | GC27: 17967.97171 | GD27: 18327.33114 | GE27: 18693.87776 | GF27: 19067.75532 | GG27: 19449.11043 | GH27: 19838.09263 | GI27: 20234.85449 | GJ27: 20639.55158 | GK27: 21052.34261 | GL27: 21473.38946 | GM27: 21902.85725 | GN27: 22340.91439 | GO27: 22787.73268 | GP27: 23243.48734 | GQ27: =GQ13-GQ22 -> 23708.35708 | GR27: 24182.52422 | GS27: 24666.17471 | GT27: 25159.4982 | GU27: 25662.68817 | GV27: 26175.94193 | GW27: 26699.46077 | GX27: 27233.44998 | GY27: 27778.11898 | GZ27: 28333.68136
B28: CAPEX / Depreciation | F28: =F14/F19 -> 10.2 | G28: =G14/G19 -> 5.15049505 | H28: 3.467546726 | I28: 2.626237527 | J28: 2.121583941 | K28: 1.785258123 | L28: 1.545119561 | M28: 1.365097991 | N28: 1.225154374 | O28: 1.113265279 | P28: 1.113265279 | Q28: 1.113265279 | R28: 1.113265279 | S28: 1.113265279 | T28: 1.113265279 | U28: 1.113265279 | V28: 1.113265279 | W28: 1.113265279 | X28: 1.113265279 | Y28: 1.113265279 | Z28: 1.113265279 | AA28: 1.113265279 | AB28: 1.113265279 | AC28: 1.113265279 | AD28: 1.113265279 | AE28: 1.113265279 | AF28: 1.113265279 | AG28: 1.113265279 | AH28: 1.113265279 | AI28: 1.113265279 | AJ28: 1.113265279 | AK28: 1.113265279 | AL28: 1.113265279 | AM28: 1.113265279 | AN28: 1.113265279 | AO28: 1.113265279 | AP28: 1.113265279 | AQ28: 1.113265279 | AR28: 1.113265279 | AS28: 1.113265279 | AT28: 1.113265279 | AU28: 1.113265279 | AV28: 1.113265279 | AW28: 1.113265279 | AX28: 1.113265279 | AY28: 1.113265279 | AZ28: 1.113265279 | BA28: 1.113265279 | BB28: 1.113265279 | BC28: 1.113265279 | BD28: 1.113265279 | BE28: 1.113265279 | BF28: 1.113265279 | BG28: 1.113265279 | BH28: 1.113265279 | BI28: 1.113265279 | BJ28: 1.113265279 | BK28: 1.113265279 | BL28: 1.113265279 | BM28: 1.113265279 | BN28: 1.113265279 | BO28: 1.113265279 | BP28: 1.113265279 | BQ28: 1.113265279 | BR28: 1.113265279 | BS28: =BS14/BS19 -> 1.113265279 | BT28: 1.113265279 | BU28: 1.113265279 | BV28: 1.113265279 | BW28: 1.113265279 | BX28: 1.113265279 | BY28: 1.113265279 | BZ28: 1.113265279 | CA28: 1.113265279 | CB28: 1.113265279 | CC28: 1.113265279 | CD28: 1.113265279 | CE28: 1.113265279 | CF28: 1.113265279 | CG28: 1.113265279 | CH28: 1.113265279 | CI28: 1.113265279 | CJ28: 1.113265279 | CK28: 1.113265279 | CL28: 1.113265279 | CM28: 1.113265279 | CN28: 1.113265279 | CO28: 1.113265279 | CP28: 1.113265279 | CQ28: 1.113265279 | CR28: 1.113265279 | CS28: 1.113265279 | CT28: 1.113265279 | CU28: 1.113265279 | CV28: 1.113265279 | CW28: 1.113265279 | CX28: 1.113265279 | CY28: 1.113265279 | CZ28: 1.113265279 | DA28: 1.113265279 | DB28: 1.113265279 | DC28: 1.113265279 | DD28: 1.113265279 | DE28: 1.113265279 | DF28: 1.113265279 | DG28: 1.113265279 | DH28: 1.113265279 | DI28: 1.113265279 | DJ28: 1.113265279 | DK28: 1.113265279 | DL28: 1.113265279 | DM28: 1.113265279 | DN28: 1.113265279 | DO28: 1.113265279 | DP28: 1.113265279 | DQ28: 1.113265279 | DR28: 1.113265279 | DS28: 1.113265279 | DT28: 1.113265279 | DU28: 1.113265279 | DV28: 1.113265279 | DW28: 1.113265279 | DX28: 1.113265279 | DY28: 1.113265279 | DZ28: 1.113265279 | EA28: 1.113265279 | EB28: 1.113265279 | EC28: 1.113265279 | ED28: 1.113265279 | EE28: =EE14/EE19 -> 1.113265279 | EF28: 1.113265279 | EG28: 1.113265279 | EH28: 1.113265279 | EI28: 1.113265279 | EJ28: 1.113265279 | EK28: 1.113265279 | EL28: 1.113265279 | EM28: 1.113265279 | EN28: 1.113265279 | EO28: 1.113265279 | EP28: 1.113265279 | EQ28: 1.113265279 | ER28: 1.113265279 | ES28: 1.113265279 | ET28: 1.113265279 | EU28: 1.113265279 | EV28: 1.113265279 | EW28: 1.113265279 | EX28: 1.113265279 | EY28: 1.113265279 | EZ28: 1.113265279 | FA28: 1.113265279 | FB28: 1.113265279 | FC28: 1.113265279 | FD28: 1.113265279 | FE28: 1.113265279 | FF28: 1.113265279 | FG28: 1.113265279 | FH28: 1.113265279 | FI28: 1.113265279 | FJ28: 1.113265279 | FK28: 1.113265279 | FL28: 1.113265279 | FM28: 1.113265279 | FN28: 1.113265279 | FO28: 1.113265279 | FP28: 1.113265279 | FQ28: 1.113265279 | FR28: 1.113265279 | FS28: 1.113265279 | FT28: 1.113265279 | FU28: 1.113265279 | FV28: 1.113265279 | FW28: 1.113265279 | FX28: 1.113265279 | FY28: 1.113265279 | FZ28: 1.113265279 | GA28: 1.113265279 | GB28: 1.113265279 | GC28: 1.113265279 | GD28: 1.113265279 | GE28: 1.113265279 | GF28: 1.113265279 | GG28: 1.113265279 | GH28: 1.113265279 | GI28: 1.113265279 | GJ28: 1.113265279 | GK28: 1.113265279 | GL28: 1.113265279 | GM28: 1.113265279 | GN28: 1.113265279 | GO28: 1.113265279 | GP28: 1.113265279 | GQ28: =GQ14/GQ19 -> 1.113265279 | GR28: 1.113265279 | GS28: 1.113265279 | GT28: 1.113265279 | GU28: 1.113265279 | GV28: 1.113265279 | GW28: 1.113265279 | GX28: 1.113265279 | GY28: 1.113265279 | GZ28: 1.113265279
B29: Depreciation expense to net plant | F29: =F19/F27 -> 0.1 | G29: =G19/G27 -> 0.1052083333 | H29: 0.1109483759 | I29: 0.1173054855 | J29: 0.1243843205 | K29: 0.1323146219 | L29: 0.1412592059 | M29: 0.1514252221 | N29: 0.1630803446 | O29: 0.1765766194 | P29: 0.1765766194 | Q29: 0.1765766194 | R29: 0.1765766194 | S29: 0.1765766194 | T29: 0.1765766194 | U29: 0.1765766194 | V29: 0.1765766194 | W29: 0.1765766194 | X29: 0.1765766194 | Y29: 0.1765766194 | Z29: 0.1765766194 | AA29: 0.1765766194 | AB29: 0.1765766194 | AC29: 0.1765766194 | AD29: 0.1765766194 | AE29: 0.1765766194 | AF29: 0.1765766194 | AG29: 0.1765766194 | AH29: 0.1765766194 | AI29: 0.1765766194 | AJ29: 0.1765766194 | AK29: 0.1765766194 | AL29: 0.1765766194 | AM29: 0.1765766194 | AN29: 0.1765766194 | AO29: 0.1765766194 | AP29: 0.1765766194 | AQ29: 0.1765766194 | AR29: 0.1765766194 | AS29: 0.1765766194 | AT29: 0.1765766194 | AU29: 0.1765766194 | AV29: 0.1765766194 | AW29: 0.1765766194 | AX29: 0.1765766194 | AY29: 0.1765766194 | AZ29: 0.1765766194 | BA29: 0.1765766194 | BB29: 0.1765766194 | BC29: 0.1765766194 | BD29: 0.1765766194 | BE29: 0.1765766194 | BF29: 0.1765766194 | BG29: 0.1765766194 | BH29: 0.1765766194 | BI29: 0.1765766194 | BJ29: 0.1765766194 | BK29: 0.1765766194 | BL29: 0.1765766194 | BM29: 0.1765766194 | BN29: 0.1765766194 | BO29: 0.1765766194 | BP29: 0.1765766194 | BQ29: 0.1765766194 | BR29: 0.1765766194 | BS29: =BS19/BS27 -> 0.1765766194 | BT29: 0.1765766194 | BU29: 0.1765766194 | BV29: 0.1765766194 | BW29: 0.1765766194 | BX29: 0.1765766194 | BY29: 0.1765766194 | BZ29: 0.1765766194 | CA29: 0.1765766194 | CB29: 0.1765766194 | CC29: 0.1765766194 | CD29: 0.1765766194 | CE29: 0.1765766194 | CF29: 0.1765766194 | CG29: 0.1765766194 | CH29: 0.1765766194 | CI29: 0.1765766194 | CJ29: 0.1765766194 | CK29: 0.1765766194 | CL29: 0.1765766194 | CM29: 0.1765766194 | CN29: 0.1765766194 | CO29: 0.1765766194 | CP29: 0.1765766194 | CQ29: 0.1765766194 | CR29: 0.1765766194 | CS29: 0.1765766194 | CT29: 0.1765766194 | CU29: 0.1765766194 | CV29: 0.1765766194 | CW29: 0.1765766194 | CX29: 0.1765766194 | CY29: 0.1765766194 | CZ29: 0.1765766194 | DA29: 0.1765766194 | DB29: 0.1765766194 | DC29: 0.1765766194 | DD29: 0.1765766194 | DE29: 0.1765766194 | DF29: 0.1765766194 | DG29: 0.1765766194 | DH29: 0.1765766194 | DI29: 0.1765766194 | DJ29: 0.1765766194 | DK29: 0.1765766194 | DL29: 0.1765766194 | DM29: 0.1765766194 | DN29: 0.1765766194 | DO29: 0.1765766194 | DP29: 0.1765766194 | DQ29: 0.1765766194 | DR29: 0.1765766194 | DS29: 0.1765766194 | DT29: 0.1765766194 | DU29: 0.1765766194 | DV29: 0.1765766194 | DW29: 0.1765766194 | DX29: 0.1765766194 | DY29: 0.1765766194 | DZ29: 0.1765766194 | EA29: 0.1765766194 | EB29: 0.1765766194 | EC29: 0.1765766194 | ED29: 0.1765766194 | EE29: =EE19/EE27 -> 0.1765766194 | EF29: 0.1765766194 | EG29: 0.1765766194 | EH29: 0.1765766194 | EI29: 0.1765766194 | EJ29: 0.1765766194 | EK29: 0.1765766194 | EL29: 0.1765766194 | EM29: 0.1765766194 | EN29: 0.1765766194 | EO29: 0.1765766194 | EP29: 0.1765766194 | EQ29: 0.1765766194 | ER29: 0.1765766194 | ES29: 0.1765766194 | ET29: 0.1765766194 | EU29: 0.1765766194 | EV29: 0.1765766194 | EW29: 0.1765766194 | EX29: 0.1765766194 | EY29: 0.1765766194 | EZ29: 0.1765766194 | FA29: 0.1765766194 | FB29: 0.1765766194 | FC29: 0.1765766194 | FD29: 0.1765766194 | FE29: 0.1765766194 | FF29: 0.1765766194 | FG29: 0.1765766194 | FH29: 0.1765766194 | FI29: 0.1765766194 | FJ29: 0.1765766194 | FK29: 0.1765766194 | FL29: 0.1765766194 | FM29: 0.1765766194 | FN29: 0.1765766194 | FO29: 0.1765766194 | FP29: 0.1765766194 | FQ29: 0.1765766194 | FR29: 0.1765766194 | FS29: 0.1765766194 | FT29: 0.1765766194 | FU29: 0.1765766194 | FV29: 0.1765766194 | FW29: 0.1765766194 | FX29: 0.1765766194 | FY29: 0.1765766194 | FZ29: 0.1765766194 | GA29: 0.1765766194 | GB29: 0.1765766194 | GC29: 0.1765766194 | GD29: 0.1765766194 | GE29: 0.1765766194 | GF29: 0.1765766194 | GG29: 0.1765766194 | GH29: 0.1765766194 | GI29: 0.1765766194 | GJ29: 0.1765766194 | GK29: 0.1765766194 | GL29: 0.1765766194 | GM29: 0.1765766194 | GN29: 0.1765766194 | GO29: 0.1765766194 | GP29: 0.1765766194 | GQ29: =GQ19/GQ27 -> 0.1765766194 | GR29: 0.1765766194 | GS29: 0.1765766194 | GT29: 0.1765766194 | GU29: 0.1765766194 | GV29: 0.1765766194 | GW29: 0.1765766194 | GX29: 0.1765766194 | GY29: 0.1765766194 | GZ29: 0.1765766194
B30: Accumulated depreciation / gross plant | F30: =F22/F13 -> 0 | G30: =G22/G13 -> 0.0495049505 | H30: 0.09867991112 | I30: 0.1475249466 | J30: 0.1960401474 | K30: 0.2442256299 | L30: 0.2920815364 | M30: 0.3396080346 | N30: 0.3868053183 | O30: 0.4336736067 | P30: 0.4336736067 | Q30: 0.4336736067 | R30: 0.4336736067 | S30: 0.4336736067 | T30: 0.4336736067 | U30: 0.4336736067 | V30: 0.4336736067 | W30: 0.4336736067 | X30: 0.4336736067 | Y30: 0.4336736067 | Z30: 0.4336736067 | AA30: 0.4336736067 | AB30: 0.4336736067 | AC30: 0.4336736067 | AD30: 0.4336736067 | AE30: 0.4336736067 | AF30: 0.4336736067 | AG30: 0.4336736067 | AH30: 0.4336736067 | AI30: 0.4336736067 | AJ30: 0.4336736067 | AK30: 0.4336736067 | AL30: 0.4336736067 | AM30: 0.4336736067 | AN30: 0.4336736067 | AO30: 0.4336736067 | AP30: 0.4336736067 | AQ30: 0.4336736067 | AR30: 0.4336736067 | AS30: 0.4336736067 | AT30: 0.4336736067 | AU30: 0.4336736067 | AV30: 0.4336736067 | AW30: 0.4336736067 | AX30: 0.4336736067 | AY30: 0.4336736067 | AZ30: 0.4336736067 | BA30: 0.4336736067 | BB30: 0.4336736067 | BC30: 0.4336736067 | BD30: 0.4336736067 | BE30: 0.4336736067 | BF30: 0.4336736067 | BG30: 0.4336736067 | BH30: 0.4336736067 | BI30: 0.4336736067 | BJ30: 0.4336736067 | BK30: 0.4336736067 | BL30: 0.4336736067 | BM30: 0.4336736067 | BN30: 0.4336736067 | BO30: 0.4336736067 | BP30: 0.4336736067 | BQ30: 0.4336736067 | BR30: 0.4336736067 | BS30: =BS22/BS13 -> 0.4336736067 | BT30: 0.4336736067 | BU30: 0.4336736067 | BV30: 0.4336736067 | BW30: 0.4336736067 | BX30: 0.4336736067 | BY30: 0.4336736067 | BZ30: 0.4336736067 | CA30: 0.4336736067 | CB30: 0.4336736067 | CC30: 0.4336736067 | CD30: 0.4336736067 | CE30: 0.4336736067 | CF30: 0.4336736067 | CG30: 0.4336736067 | CH30: 0.4336736067 | CI30: 0.4336736067 | CJ30: 0.4336736067 | CK30: 0.4336736067 | CL30: 0.4336736067 | CM30: 0.4336736067 | CN30: 0.4336736067 | CO30: 0.4336736067 | CP30: 0.4336736067 | CQ30: 0.4336736067 | CR30: 0.4336736067 | CS30: 0.4336736067 | CT30: 0.4336736067 | CU30: 0.4336736067 | CV30: 0.4336736067 | CW30: 0.4336736067 | CX30: 0.4336736067 | CY30: 0.4336736067 | CZ30: 0.4336736067 | DA30: 0.4336736067 | DB30: 0.4336736067 | DC30: 0.4336736067 | DD30: 0.4336736067 | DE30: 0.4336736067 | DF30: 0.4336736067 | DG30: 0.4336736067 | DH30: 0.4336736067 | DI30: 0.4336736067 | DJ30: 0.4336736067 | DK30: 0.4336736067 | DL30: 0.4336736067 | DM30: 0.4336736067 | DN30: 0.4336736067 | DO30: 0.4336736067 | DP30: 0.4336736067 | DQ30: 0.4336736067 | DR30: 0.4336736067 | DS30: 0.4336736067 | DT30: 0.4336736067 | DU30: 0.4336736067 | DV30: 0.4336736067 | DW30: 0.4336736067 | DX30: 0.4336736067 | DY30: 0.4336736067 | DZ30: 0.4336736067 | EA30: 0.4336736067 | EB30: 0.4336736067 | EC30: 0.4336736067 | ED30: 0.4336736067 | EE30: =EE22/EE13 -> 0.4336736067 | EF30: 0.4336736067 | EG30: 0.4336736067 | EH30: 0.4336736067 | EI30: 0.4336736067 | EJ30: 0.4336736067 | EK30: 0.4336736067 | EL30: 0.4336736067 | EM30: 0.4336736067 | EN30: 0.4336736067 | EO30: 0.4336736067 | EP30: 0.4336736067 | EQ30: 0.4336736067 | ER30: 0.4336736067 | ES30: 0.4336736067 | ET30: 0.4336736067 | EU30: 0.4336736067 | EV30: 0.4336736067 | EW30: 0.4336736067 | EX30: 0.4336736067 | EY30: 0.4336736067 | EZ30: 0.4336736067 | FA30: 0.4336736067 | FB30: 0.4336736067 | FC30: 0.4336736067 | FD30: 0.4336736067 | FE30: 0.4336736067 | FF30: 0.4336736067 | FG30: 0.4336736067 | FH30: 0.4336736067 | FI30: 0.4336736067 | FJ30: 0.4336736067 | FK30: 0.4336736067 | FL30: 0.4336736067 | FM30: 0.4336736067 | FN30: 0.4336736067 | FO30: 0.4336736067 | FP30: 0.4336736067 | FQ30: 0.4336736067 | FR30: 0.4336736067 | FS30: 0.4336736067 | FT30: 0.4336736067 | FU30: 0.4336736067 | FV30: 0.4336736067 | FW30: 0.4336736067 | FX30: 0.4336736067 | FY30: 0.4336736067 | FZ30: 0.4336736067 | GA30: 0.4336736067 | GB30: 0.4336736067 | GC30: 0.4336736067 | GD30: 0.4336736067 | GE30: 0.4336736067 | GF30: 0.4336736067 | GG30: 0.4336736067 | GH30: 0.4336736067 | GI30: 0.4336736067 | GJ30: 0.4336736067 | GK30: 0.4336736067 | GL30: 0.4336736067 | GM30: 0.4336736067 | GN30: 0.4336736067 | GO30: 0.4336736067 | GP30: 0.4336736067 | GQ30: =GQ22/GQ13 -> 0.4336736067 | GR30: 0.4336736067 | GS30: 0.4336736067 | GT30: 0.4336736067 | GU30: 0.4336736067 | GV30: 0.4336736067 | GW30: 0.4336736067 | GX30: 0.4336736067 | GY30: 0.4336736067 | GZ30: 0.4336736067
A32: Enterprise
B34: Opening net invested capital balance | G34: =F37 -> 1000 | H34: =G37 -> 1020 | I34: 1040.4 | J34: 1061.208 | K34: 1082.43216 | L34: 1104.080803 | M34: 1126.162419 | N34: 1148.685668 | O34: 1171.659381 | P34: 1195.092569 | Q34: 1218.99442 | R34: 1243.374308 | S34: 1268.241795 | T34: 1293.60663 | U34: 1319.478763 | V34: 1345.868338 | W34: 1372.785705 | X34: 1400.241419 | Y34: 1428.246248 | Z34: 1456.811173 | AA34: 1485.947396 | AB34: 1515.666344 | AC34: 1545.979671 | AD34: 1576.899264 | AE34: 1608.437249 | AF34: 1640.605994 | AG34: 1673.418114 | AH34: 1706.886477 | AI34: 1741.024206 | AJ34: 1775.84469 | AK34: 1811.361584 | AL34: 1847.588816 | AM34: 1884.540592 | AN34: 1922.231404 | AO34: 1960.676032 | AP34: 1999.889553 | AQ34: 2039.887344 | AR34: 2080.685091 | AS34: 2122.298792 | AT34: 2164.744768 | AU34: 2208.039664 | AV34: 2252.200457 | AW34: 2297.244466 | AX34: 2343.189355 | AY34: 2390.053142 | AZ34: 2437.854205 | BA34: 2486.611289 | BB34: 2536.343515 | BC34: 2587.070385 | BD34: 2638.811793 | BE34: 2691.588029 | BF34: 2745.41979 | BG34: 2800.328185 | BH34: 2856.334749 | BI34: 2913.461444 | BJ34: 2971.730673 | BK34: 3031.165286 | BL34: 3091.788592 | BM34: 3153.624364 | BN34: 3216.696851 | BO34: 3281.030788 | BP34: 3346.651404 | BQ34: 3413.584432 | BR34: 3481.856121 | BS34: 3551.493243 | BT34: =BS37 -> 3622.523108 | BU34: 3694.97357 | BV34: 3768.873042 | BW34: 3844.250503 | BX34: 3921.135513 | BY34: 3999.558223 | BZ34: 4079.549387 | CA34: 4161.140375 | CB34: 4244.363183 | CC34: 4329.250446 | CD34: 4415.835455 | CE34: 4504.152164 | CF34: 4594.235208 | CG34: 4686.119912 | CH34: 4779.84231 | CI34: 4875.439156 | CJ34: 4972.947939 | CK34: 5072.406898 | CL34: 5173.855036 | CM34: 5277.332137 | CN34: 5382.878779 | CO34: 5490.536355 | CP34: 5600.347082 | CQ34: 5712.354024 | CR34: 5826.601104 | CS34: 5943.133126 | CT34: 6061.995789 | CU34: 6183.235705 | CV34: 6306.900419 | CW34: 6433.038427 | CX34: 6561.699196 | CY34: 6692.93318 | CZ34: 6826.791843 | DA34: 6963.32768 | DB34: 7102.594234 | DC34: 7244.646118 | DD34: 7389.539041 | DE34: 7537.329821 | DF34: 7688.076418 | DG34: 7841.837946 | DH34: 7998.674705 | DI34: 8158.648199 | DJ34: 8321.821163 | DK34: 8488.257586 | DL34: 8658.022738 | DM34: 8831.183193 | DN34: 9007.806857 | DO34: 9187.962994 | DP34: 9371.722254 | DQ34: 9559.156699 | DR34: 9750.339833 | DS34: 9945.34663 | DT34: 10144.25356 | DU34: 10347.13863 | DV34: 10554.08141 | DW34: 10765.16303 | DX34: 10980.46629 | DY34: 11200.07562 | DZ34: 11424.07713 | EA34: 11652.55868 | EB34: 11885.60985 | EC34: 12123.32205 | ED34: 12365.78849 | EE34: 12613.10426 | EF34: =EE37 -> 12865.36634 | EG34: 13122.67367 | EH34: 13385.12714 | EI34: 13652.82969 | EJ34: 13925.88628 | EK34: 14204.404 | EL34: 14488.49208 | EM34: 14778.26193 | EN34: 15073.82716 | EO34: 15375.30371 | EP34: 15682.80978 | EQ34: 15996.46598 | ER34: 16316.3953 | ES34: 16642.7232 | ET34: 16975.57767 | EU34: 17315.08922 | EV34: 17661.39101 | EW34: 18014.61883 | EX34: 18374.9112 | EY34: 18742.40943 | EZ34: 19117.25761 | FA34: 19499.60277 | FB34: 19889.59482 | FC34: 20287.38672 | FD34: 20693.13445 | FE34: 21106.99714 | FF34: 21529.13708 | FG34: 21959.71983 | FH34: 22398.91422 | FI34: 22846.89251 | FJ34: 23303.83036 | FK34: 23769.90696 | FL34: 24245.3051 | FM34: 24730.21121 | FN34: 25224.81543 | FO34: 25729.31174 | FP34: 26243.89797 | FQ34: 26768.77593 | FR34: 27304.15145 | FS34: 27850.23448 | FT34: 28407.23917 | FU34: 28975.38395 | FV34: 29554.89163 | FW34: 30145.98947 | FX34: 30748.90925 | FY34: 31363.88744 | FZ34: 31991.16519 | GA34: 32630.98849 | GB34: 33283.60826 | GC34: 33949.28043 | GD34: 34628.26604 | GE34: 35320.83136 | GF34: 36027.24798 | GG34: 36747.79294 | GH34: 37482.7488 | GI34: 38232.40378 | GJ34: 38997.05185 | GK34: 39776.99289 | GL34: 40572.53275 | GM34: 41383.9834 | GN34: 42211.66307 | GO34: 43055.89633 | GP34: 43917.01426 | GQ34: 44795.35455 | GR34: =GQ37 -> 45691.26164 | GS34: 46605.08687 | GT34: 47537.18861 | GU34: 48487.93238 | GV34: 49457.69103 | GW34: 50446.84485 | GX34: 51455.78174 | GY34: 52484.89738 | GZ34: 53534.59533
B35: Less: depreciation | E35: =INDEX(F29:GZ29,E7) -> 0.1765766194 | G35: =$E$35*G34 -> 176.5766194 | H35: =$E$35*H34 -> 180.1081518 | I35: 183.7103148 | J35: 187.3845211 | K35: 191.1322115 | L35: 194.9548558 | M35: 198.8539529 | N35: 202.8310319 | O35: 206.8876526 | P35: 211.0254056 | Q35: 215.2459138 | R35: 219.550832 | S35: 223.9418487 | T35: 228.4206856 | U35: 232.9890994 | V35: 237.6488813 | W35: 242.401859 | X35: 247.2498961 | Y35: 252.1948941 | Z35: 257.2387919 | AA35: 262.3835678 | AB35: 267.6312391 | AC35: 272.9838639 | AD35: 278.4435412 | AE35: 284.012412 | AF35: 289.6926603 | AG35: 295.4865135 | AH35: 301.3962437 | AI35: 307.4241686 | AJ35: 313.572652 | AK35: 319.844105 | AL35: 326.2409871 | AM35: 332.7658069 | AN35: 339.421123 | AO35: 346.2095455 | AP35: 353.1337364 | AQ35: 360.1964111 | AR35: 367.4003393 | AS35: 374.7483461 | AT35: 382.243313 | AU35: 389.8881793 | AV35: 397.6859429 | AW35: 405.6396617 | AX35: 413.752455 | AY35: 422.0275041 | AZ35: 430.4680542 | BA35: 439.0774152 | BB35: 447.8589636 | BC35: 456.8161428 | BD35: 465.9524657 | BE35: 475.271515 | BF35: 484.7769453 | BG35: 494.4724842 | BH35: 504.3619339 | BI35: 514.4491726 | BJ35: 524.738156 | BK35: 535.2329191 | BL35: 545.9375775 | BM35: 556.8563291 | BN35: 567.9934556 | BO35: 579.3533248 | BP35: 590.9403913 | BQ35: 602.7591991 | BR35: 614.8143831 | BS35: 627.1106707 | BT35: =$E$35*BT34 -> 639.6528841 | BU35: 652.4459418 | BV35: 665.4948607 | BW35: 678.8047579 | BX35: 692.380853 | BY35: 706.2284701 | BZ35: 720.3530395 | CA35: 734.7601003 | CB35: 749.4553023 | CC35: 764.4444083 | CD35: 779.7332965 | CE35: 795.3279624 | CF35: 811.2345217 | CG35: 827.4592121 | CH35: 844.0083963 | CI35: 860.8885643 | CJ35: 878.1063356 | CK35: 895.6684623 | CL35: 913.5818315 | CM35: 931.8534681 | CN35: 950.4905375 | CO35: 969.5003483 | CP35: 988.8903552 | CQ35: 1008.668162 | CR35: 1028.841526 | CS35: 1049.418356 | CT35: 1070.406723 | CU35: 1091.814858 | CV35: 1113.651155 | CW35: 1135.924178 | CX35: 1158.642661 | CY35: 1181.815515 | CZ35: 1205.451825 | DA35: 1229.560862 | DB35: 1254.152079 | DC35: 1279.23512 | DD35: 1304.819823 | DE35: 1330.916219 | DF35: 1357.534544 | DG35: 1384.685234 | DH35: 1412.378939 | DI35: 1440.626518 | DJ35: 1469.439048 | DK35: 1498.827829 | DL35: 1528.804386 | DM35: 1559.380474 | DN35: 1590.568083 | DO35: 1622.379445 | DP35: 1654.827034 | DQ35: 1687.923574 | DR35: 1721.682046 | DS35: 1756.115687 | DT35: 1791.238 | DU35: 1827.06276 | DV35: 1863.604016 | DW35: 1900.876096 | DX35: 1938.893618 | DY35: 1977.67149 | DZ35: 2017.22492 | EA35: 2057.569418 | EB35: 2098.720807 | EC35: 2140.695223 | ED35: 2183.509127 | EE35: 2227.17931 | EF35: =$E$35*EF34 -> 2271.722896 | EG35: 2317.157354 | EH35: 2363.500501 | EI35: 2410.770511 | EJ35: 2458.985921 | EK35: 2508.16564 | EL35: 2558.328953 | EM35: 2609.495532 | EN35: 2661.685442 | EO35: 2714.919151 | EP35: 2769.217534 | EQ35: 2824.601885 | ER35: 2881.093922 | ES35: 2938.715801 | ET35: 2997.490117 | EU35: 3057.439919 | EV35: 3118.588718 | EW35: 3180.960492 | EX35: 3244.579702 | EY35: 3309.471296 | EZ35: 3375.660722 | FA35: 3443.173936 | FB35: 3512.037415 | FC35: 3582.278163 | FD35: 3653.923726 | FE35: 3727.002201 | FF35: 3801.542245 | FG35: 3877.57309 | FH35: 3955.124552 | FI35: 4034.227043 | FJ35: 4114.911584 | FK35: 4197.209815 | FL35: 4281.154012 | FM35: 4366.777092 | FN35: 4454.112634 | FO35: 4543.194886 | FP35: 4634.058784 | FQ35: 4726.73996 | FR35: 4821.274759 | FS35: 4917.700254 | FT35: 5016.054259 | FU35: 5116.375344 | FV35: 5218.702851 | FW35: 5323.076908 | FX35: 5429.538446 | FY35: 5538.129215 | FZ35: 5648.8918 | GA35: 5761.869636 | GB35: 5877.107028 | GC35: 5994.649169 | GD35: 6114.542152 | GE35: 6236.832995 | GF35: 6361.569655 | GG35: 6488.801048 | GH35: 6618.577069 | GI35: 6750.948611 | GJ35: 6885.967583 | GK35: 7023.686935 | GL35: 7164.160673 | GM35: 7307.443887 | GN35: 7453.592765 | GO35: 7602.66462 | GP35: 7754.717912 | GQ35: 7909.812271 | GR35: =$E$35*GR34 -> 8068.008516 | GS35: 8229.368686 | GT35: 8393.95606 | GU35: 8561.835181 | GV35: 8733.071885 | GW35: 8907.733322 | GX35: 9085.887989 | GY35: 9267.605749 | GZ35: 9452.957864
B36: Add: CAPEX | E36: =INDEX(F28:GZ28,E7) -> 1.113265279 | G36: =G35*$E$36 -> 196.5766194 | H36: =H35*$E$36 -> 200.5081518 | I36: 204.5183148 | J36: 208.6086811 | K36: 212.7808547 | L36: 217.0364718 | M36: 221.3772013 | N36: 225.8047453 | O36: 230.3208402 | P36: 234.927257 | Q36: 239.6258022 | R36: 244.4183182 | S36: 249.3066846 | T36: 254.2928182 | U36: 259.3786746 | V36: 264.5662481 | W36: 269.8575731 | X36: 275.2547245 | Y36: 280.759819 | Z36: 286.3750154 | AA36: 292.1025157 | AB36: 297.944566 | AC36: 303.9034573 | AD36: 309.9815265 | AE36: 316.181157 | AF36: 322.5047802 | AG36: 328.9548758 | AH36: 335.5339733 | AI36: 342.2446527 | AJ36: 349.0895458 | AK36: 356.0713367 | AL36: 363.1927634 | AM36: 370.4566187 | AN36: 377.8657511 | AO36: 385.4230661 | AP36: 393.1315274 | AQ36: 400.994158 | AR36: 409.0140411 | AS36: 417.194322 | AT36: 425.5382084 | AU36: 434.0489726 | AV36: 442.729952 | AW36: 451.5845511 | AX36: 460.6162421 | AY36: 469.8285669 | AZ36: 479.2251383 | BA36: 488.809641 | BB36: 498.5858339 | BC36: 508.5575505 | BD36: 518.7287015 | BE36: 529.1032756 | BF36: 539.6853411 | BG36: 550.4790479 | BH36: 561.4886289 | BI36: 572.7184014 | BJ36: 584.1727695 | BK36: 595.8562249 | BL36: 607.7733494 | BM36: 619.9288163 | BN36: 632.3273927 | BO36: 644.9739405 | BP36: 657.8734193 | BQ36: 671.0308877 | BR36: 684.4515055 | BS36: 698.1405356 | BT36: =BT35*$E$36 -> 712.1033463 | BU36: 726.3454132 | BV36: 740.8723215 | BW36: 755.6897679 | BX36: 770.8035633 | BY36: 786.2196345 | BZ36: 801.9440272 | CA36: 817.9829078 | CB36: 834.3425659 | CC36: 851.0294173 | CD36: 868.0500056 | CE36: 885.4110057 | CF36: 903.1192258 | CG36: 921.1816103 | CH36: 939.6052425 | CI36: 958.3973474 | CJ36: 977.5652943 | CK36: 997.1166002 | CL36: 1017.058932 | CM36: 1037.400111 | CN36: 1058.148113 | CO36: 1079.311075 | CP36: 1100.897297 | CQ36: 1122.915243 | CR36: 1145.373548 | CS36: 1168.281019 | CT36: 1191.646639 | CU36: 1215.479572 | CV36: 1239.789163 | CW36: 1264.584946 | CX36: 1289.876645 | CY36: 1315.674178 | CZ36: 1341.987662 | DA36: 1368.827415 | DB36: 1396.203963 | DC36: 1424.128043 | DD36: 1452.610604 | DE36: 1481.662816 | DF36: 1511.296072 | DG36: 1541.521993 | DH36: 1572.352433 | DI36: 1603.799482 | DJ36: 1635.875472 | DK36: 1668.592981 | DL36: 1701.964841 | DM36: 1736.004137 | DN36: 1770.72422 | DO36: 1806.138705 | DP36: 1842.261479 | DQ36: 1879.106708 | DR36: 1916.688842 | DS36: 1955.022619 | DT36: 1994.123072 | DU36: 2034.005533 | DV36: 2074.685644 | DW36: 2116.179357 | DX36: 2158.502944 | DY36: 2201.673003 | DZ36: 2245.706463 | EA36: 2290.620592 | EB36: 2336.433004 | EC36: 2383.161664 | ED36: 2430.824897 | EE36: 2479.441395 | EF36: =EF35*$E$36 -> 2529.030223 | EG36: 2579.610827 | EH36: 2631.203044 | EI36: 2683.827105 | EJ36: 2737.503647 | EK36: 2792.25372 | EL36: 2848.098794 | EM36: 2905.06077 | EN36: 2963.161985 | EO36: 3022.425225 | EP36: 3082.87373 | EQ36: 3144.531204 | ER36: 3207.421828 | ES36: 3271.570265 | ET36: 3337.00167 | EU36: 3403.741704 | EV36: 3471.816538 | EW36: 3541.252868 | EX36: 3612.077926 | EY36: 3684.319484 | EZ36: 3758.005874 | FA36: 3833.165992 | FB36: 3909.829311 | FC36: 3988.025898 | FD36: 4067.786416 | FE36: 4149.142144 | FF36: 4232.124987 | FG36: 4316.767486 | FH36: 4403.102836 | FI36: 4491.164893 | FJ36: 4580.988191 | FK36: 4672.607955 | FL36: 4766.060114 | FM36: 4861.381316 | FN36: 4958.608942 | FO36: 5057.781121 | FP36: 5158.936744 | FQ36: 5262.115478 | FR36: 5367.357788 | FS36: 5474.704944 | FT36: 5584.199043 | FU36: 5695.883023 | FV36: 5809.800684 | FW36: 5925.996698 | FX36: 6044.516632 | FY36: 6165.406964 | FZ36: 6288.715103 | GA36: 6414.489406 | GB36: 6542.779194 | GC36: 6673.634778 | GD36: 6807.107473 | GE36: 6943.249623 | GF36: 7082.114615 | GG36: 7223.756907 | GH36: 7368.232045 | GI36: 7515.596686 | GJ36: 7665.90862 | GK36: 7819.226792 | GL36: 7975.611328 | GM36: 8135.123555 | GN36: 8297.826026 | GO36: 8463.782547 | GP36: 8633.058197 | GQ36: 8805.719361 | GR36: =GR35*$E$36 -> 8981.833749 | GS36: 9161.470424 | GT36: 9344.699832 | GU36: 9531.593829 | GV36: 9722.225705 | GW36: 9916.670219 | GX36: 10115.00362 | GY36: 10317.3037 | GZ36: 10523.64977
B37: Closing net invested capital balance | F37: =E9 -> 1000 | G37: =G34-G35+G36 -> 1020 | H37: =H34-H35+H36 -> 1040.4 | I37: 1061.208 | J37: 1082.43216 | K37: 1104.080803 | L37: 1126.162419 | M37: 1148.685668 | N37: 1171.659381 | O37: 1195.092569 | P37: 1218.99442 | Q37: 1243.374308 | R37: 1268.241795 | S37: 1293.60663 | T37: 1319.478763 | U37: 1345.868338 | V37: 1372.785705 | W37: 1400.241419 | X37: 1428.246248 | Y37: 1456.811173 | Z37: 1485.947396 | AA37: 1515.666344 | AB37: 1545.979671 | AC37: 1576.899264 | AD37: 1608.437249 | AE37: 1640.605994 | AF37: 1673.418114 | AG37: 1706.886477 | AH37: 1741.024206 | AI37: 1775.84469 | AJ37: 1811.361584 | AK37: 1847.588816 | AL37: 1884.540592 | AM37: 1922.231404 | AN37: 1960.676032 | AO37: 1999.889553 | AP37: 2039.887344 | AQ37: 2080.685091 | AR37: 2122.298792 | AS37: 2164.744768 | AT37: 2208.039664 | AU37: 2252.200457 | AV37: 2297.244466 | AW37: 2343.189355 | AX37: 2390.053142 | AY37: 2437.854205 | AZ37: 2486.611289 | BA37: 2536.343515 | BB37: 2587.070385 | BC37: 2638.811793 | BD37: 2691.588029 | BE37: 2745.41979 | BF37: 2800.328185 | BG37: 2856.334749 | BH37: 2913.461444 | BI37: 2971.730673 | BJ37: 3031.165286 | BK37: 3091.788592 | BL37: 3153.624364 | BM37: 3216.696851 | BN37: 3281.030788 | BO37: 3346.651404 | BP37: 3413.584432 | BQ37: 3481.856121 | BR37: 3551.493243 | BS37: 3622.523108 | BT37: =BT34-BT35+BT36 -> 3694.97357 | BU37: 3768.873042 | BV37: 3844.250503 | BW37: 3921.135513 | BX37: 3999.558223 | BY37: 4079.549387 | BZ37: 4161.140375 | CA37: 4244.363183 | CB37: 4329.250446 | CC37: 4415.835455 | CD37: 4504.152164 | CE37: 4594.235208 | CF37: 4686.119912 | CG37: 4779.84231 | CH37: 4875.439156 | CI37: 4972.947939 | CJ37: 5072.406898 | CK37: 5173.855036 | CL37: 5277.332137 | CM37: 5382.878779 | CN37: 5490.536355 | CO37: 5600.347082 | CP37: 5712.354024 | CQ37: 5826.601104 | CR37: 5943.133126 | CS37: 6061.995789 | CT37: 6183.235705 | CU37: 6306.900419 | CV37: 6433.038427 | CW37: 6561.699196 | CX37: 6692.93318 | CY37: 6826.791843 | CZ37: 6963.32768 | DA37: 7102.594234 | DB37: 7244.646118 | DC37: 7389.539041 | DD37: 7537.329821 | DE37: 7688.076418 | DF37: 7841.837946 | DG37: 7998.674705 | DH37: 8158.648199 | DI37: 8321.821163 | DJ37: 8488.257586 | DK37: 8658.022738 | DL37: 8831.183193 | DM37: 9007.806857 | DN37: 9187.962994 | DO37: 9371.722254 | DP37: 9559.156699 | DQ37: 9750.339833 | DR37: 9945.34663 | DS37: 10144.25356 | DT37: 10347.13863 | DU37: 10554.08141 | DV37: 10765.16303 | DW37: 10980.46629 | DX37: 11200.07562 | DY37: 11424.07713 | DZ37: 11652.55868 | EA37: 11885.60985 | EB37: 12123.32205 | EC37: 12365.78849 | ED37: 12613.10426 | EE37: 12865.36634 | EF37: =EF34-EF35+EF36 -> 13122.67367 | EG37: 13385.12714 | EH37: 13652.82969 | EI37: 13925.88628 | EJ37: 14204.404 | EK37: 14488.49208 | EL37: 14778.26193 | EM37: 15073.82716 | EN37: 15375.30371 | EO37: 15682.80978 | EP37: 15996.46598 | EQ37: 16316.3953 | ER37: 16642.7232 | ES37: 16975.57767 | ET37: 17315.08922 | EU37: 17661.39101 | EV37: 18014.61883 | EW37: 18374.9112 | EX37: 18742.40943 | EY37: 19117.25761 | EZ37: 19499.60277 | FA37: 19889.59482 | FB37: 20287.38672 | FC37: 20693.13445 | FD37: 21106.99714 | FE37: 21529.13708 | FF37: 21959.71983 | FG37: 22398.91422 | FH37: 22846.89251 | FI37: 23303.83036 | FJ37: 23769.90696 | FK37: 24245.3051 | FL37: 24730.21121 | FM37: 25224.81543 | FN37: 25729.31174 | FO37: 26243.89797 | FP37: 26768.77593 | FQ37: 27304.15145 | FR37: 27850.23448 | FS37: 28407.23917 | FT37: 28975.38395 | FU37: 29554.89163 | FV37: 30145.98947 | FW37: 30748.90925 | FX37: 31363.88744 | FY37: 31991.16519 | FZ37: 32630.98849 | GA37: 33283.60826 | GB37: 33949.28043 | GC37: 34628.26604 | GD37: 35320.83136 | GE37: 36027.24798 | GF37: 36747.79294 | GG37: 37482.7488 | GH37: 38232.40378 | GI37: 38997.05185 | GJ37: 39776.99289 | GK37: 40572.53275 | GL37: 41383.9834 | GM37: 42211.66307 | GN37: 43055.89633 | GO37: 43917.01426 | GP37: 44795.35455 | GQ37: 45691.26164 | GR37: =GR34-GR35+GR36 -> 46605.08687 | GS37: 47537.18861 | GT37: 48487.93238 | GU37: 49457.69103 | GV37: 50446.84485 | GW37: 51455.78174 | GX37: 52484.89738 | GY37: 53534.59533 | GZ37: 54605.28723
B39: ROIC | E39: =E3 -> 0.11 | G39: =$E$39 -> 0.11 | H39: =$E$39 -> 0.11 | I39: 0.11 | J39: 0.11 | K39: 0.11 | L39: 0.11 | M39: 0.11 | N39: 0.11 | O39: 0.11 | P39: 0.11 | Q39: 0.11 | R39: 0.11 | S39: 0.11 | T39: 0.11 | U39: 0.11 | V39: 0.11 | W39: 0.11 | X39: 0.11 | Y39: 0.11 | Z39: 0.11 | AA39: 0.11 | AB39: 0.11 | AC39: 0.11 | AD39: 0.11 | AE39: 0.11 | AF39: 0.11 | AG39: 0.11 | AH39: 0.11 | AI39: 0.11 | AJ39: 0.11 | AK39: 0.11 | AL39: 0.11 | AM39: 0.11 | AN39: 0.11 | AO39: 0.11 | AP39: 0.11 | AQ39: 0.11 | AR39: 0.11 | AS39: 0.11 | AT39: 0.11 | AU39: 0.11 | AV39: 0.11 | AW39: 0.11 | AX39: 0.11 | AY39: 0.11 | AZ39: 0.11 | BA39: 0.11 | BB39: 0.11 | BC39: 0.11 | BD39: 0.11 | BE39: 0.11 | BF39: 0.11 | BG39: 0.11 | BH39: 0.11 | BI39: 0.11 | BJ39: 0.11 | BK39: 0.11 | BL39: 0.11 | BM39: 0.11 | BN39: 0.11 | BO39: 0.11 | BP39: 0.11 | BQ39: 0.11 | BR39: 0.11 | BS39: 0.11 | BT39: =$E$39 -> 0.11 | BU39: 0.11 | BV39: 0.11 | BW39: 0.11 | BX39: 0.11 | BY39: 0.11 | BZ39: 0.11 | CA39: 0.11 | CB39: 0.11 | CC39: 0.11 | CD39: 0.11 | CE39: 0.11 | CF39: 0.11 | CG39: 0.11 | CH39: 0.11 | CI39: 0.11 | CJ39: 0.11 | CK39: 0.11 | CL39: 0.11 | CM39: 0.11 | CN39: 0.11 | CO39: 0.11 | CP39: 0.11 | CQ39: 0.11 | CR39: 0.11 | CS39: 0.11 | CT39: 0.11 | CU39: 0.11 | CV39: 0.11 | CW39: 0.11 | CX39: 0.11 | CY39: 0.11 | CZ39: 0.11 | DA39: 0.11 | DB39: 0.11 | DC39: 0.11 | DD39: 0.11 | DE39: 0.11 | DF39: 0.11 | DG39: 0.11 | DH39: 0.11 | DI39: 0.11 | DJ39: 0.11 | DK39: 0.11 | DL39: 0.11 | DM39: 0.11 | DN39: 0.11 | DO39: 0.11 | DP39: 0.11 | DQ39: 0.11 | DR39: 0.11 | DS39: 0.11 | DT39: 0.11 | DU39: 0.11 | DV39: 0.11 | DW39: 0.11 | DX39: 0.11 | DY39: 0.11 | DZ39: 0.11 | EA39: 0.11 | EB39: 0.11 | EC39: 0.11 | ED39: 0.11 | EE39: 0.11 | EF39: =$E$39 -> 0.11 | EG39: 0.11 | EH39: 0.11 | EI39: 0.11 | EJ39: 0.11 | EK39: 0.11 | EL39: 0.11 | EM39: 0.11 | EN39: 0.11 | EO39: 0.11 | EP39: 0.11 | EQ39: 0.11 | ER39: 0.11 | ES39: 0.11 | ET39: 0.11 | EU39: 0.11 | EV39: 0.11 | EW39: 0.11 | EX39: 0.11 | EY39: 0.11 | EZ39: 0.11 | FA39: 0.11 | FB39: 0.11 | FC39: 0.11 | FD39: 0.11 | FE39: 0.11 | FF39: 0.11 | FG39: 0.11 | FH39: 0.11 | FI39: 0.11 | FJ39: 0.11 | FK39: 0.11 | FL39: 0.11 | FM39: 0.11 | FN39: 0.11 | FO39: 0.11 | FP39: 0.11 | FQ39: 0.11 | FR39: 0.11 | FS39: 0.11 | FT39: 0.11 | FU39: 0.11 | FV39: 0.11 | FW39: 0.11 | FX39: 0.11 | FY39: 0.11 | FZ39: 0.11 | GA39: 0.11 | GB39: 0.11 | GC39: 0.11 | GD39: 0.11 | GE39: 0.11 | GF39: 0.11 | GG39: 0.11 | GH39: 0.11 | GI39: 0.11 | GJ39: 0.11 | GK39: 0.11 | GL39: 0.11 | GM39: 0.11 | GN39: 0.11 | GO39: 0.11 | GP39: 0.11 | GQ39: 0.11 | GR39: =$E$39 -> 0.11 | GS39: 0.11 | GT39: 0.11 | GU39: 0.11 | GV39: 0.11 | GW39: 0.11 | GX39: 0.11 | GY39: 0.11 | GZ39: 0.11
B40: NOPAT | G40: =G39*G34 -> 110 | H40: =H39*H34 -> 112.2 | I40: 114.444 | J40: 116.73288 | K40: 119.0675376 | L40: 121.4488884 | M40: 123.8778661 | N40: 126.3554234 | O40: 128.8825319 | P40: 131.4601825 | Q40: 134.0893862 | R40: 136.7711739 | S40: 139.5065974 | T40: 142.2967293 | U40: 145.1426639 | V40: 148.0455172 | W40: 151.0064276 | X40: 154.0265561 | Y40: 157.1070872 | Z40: 160.249229 | AA40: 163.4542136 | AB40: 166.7232978 | AC40: 170.0577638 | AD40: 173.4589191 | AE40: 176.9280974 | AF40: 180.4666594 | AG40: 184.0759926 | AH40: 187.7575124 | AI40: 191.5126627 | AJ40: 195.3429159 | AK40: 199.2497743 | AL40: 203.2347697 | AM40: 207.2994651 | AN40: 211.4454544 | AO40: 215.6743635 | AP40: 219.9878508 | AQ40: 224.3876078 | AR40: 228.87536 | AS40: 233.4528672 | AT40: 238.1219245 | AU40: 242.884363 | AV40: 247.7420503 | AW40: 252.6968913 | AX40: 257.7508291 | AY40: 262.9058457 | AZ40: 268.1639626 | BA40: 273.5272418 | BB40: 278.9977867 | BC40: 284.5777424 | BD40: 290.2692973 | BE40: 296.0746832 | BF40: 301.9961769 | BG40: 308.0361004 | BH40: 314.1968224 | BI40: 320.4807589 | BJ40: 326.890374 | BK40: 333.4281815 | BL40: 340.0967451 | BM40: 346.89868 | BN40: 353.8366536 | BO40: 360.9133867 | BP40: 368.1316545 | BQ40: 375.4942875 | BR40: 383.0041733 | BS40: 390.6642568 | BT40: =BT39*BT34 -> 398.4775419 | BU40: 406.4470927 | BV40: 414.5760346 | BW40: 422.8675553 | BX40: 431.3249064 | BY40: 439.9514045 | BZ40: 448.7504326 | CA40: 457.7254413 | CB40: 466.8799501 | CC40: 476.2175491 | CD40: 485.7419001 | CE40: 495.4567381 | CF40: 505.3658728 | CG40: 515.4731903 | CH40: 525.7826541 | CI40: 536.2983072 | CJ40: 547.0242733 | CK40: 557.9647588 | CL40: 569.124054 | CM40: 580.506535 | CN40: 592.1166657 | CO40: 603.9589991 | CP40: 616.038179 | CQ40: 628.3589426 | CR40: 640.9261215 | CS40: 653.7446439 | CT40: 666.8195368 | CU40: 680.1559275 | CV40: 693.7590461 | CW40: 707.634227 | CX40: 721.7869115 | CY40: 736.2226497 | CZ40: 750.9471027 | DA40: 765.9660448 | DB40: 781.2853657 | DC40: 796.911073 | DD40: 812.8492945 | DE40: 829.1062804 | DF40: 845.688406 | DG40: 862.6021741 | DH40: 879.8542176 | DI40: 897.4513019 | DJ40: 915.400328 | DK40: 933.7083345 | DL40: 952.3825012 | DM40: 971.4301512 | DN40: 990.8587543 | DO40: 1010.675929 | DP40: 1030.889448 | DQ40: 1051.507237 | DR40: 1072.537382 | DS40: 1093.988129 | DT40: 1115.867892 | DU40: 1138.18525 | DV40: 1160.948955 | DW40: 1184.167934 | DX40: 1207.851292 | DY40: 1232.008318 | DZ40: 1256.648485 | EA40: 1281.781454 | EB40: 1307.417083 | EC40: 1333.565425 | ED40: 1360.236734 | EE40: 1387.441468 | EF40: =EF39*EF34 -> 1415.190298 | EG40: 1443.494104 | EH40: 1472.363986 | EI40: 1501.811265 | EJ40: 1531.847491 | EK40: 1562.48444 | EL40: 1593.734129 | EM40: 1625.608812 | EN40: 1658.120988 | EO40: 1691.283408 | EP40: 1725.109076 | EQ40: 1759.611258 | ER40: 1794.803483 | ES40: 1830.699552 | ET40: 1867.313543 | EU40: 1904.659814 | EV40: 1942.753011 | EW40: 1981.608071 | EX40: 2021.240232 | EY40: 2061.665037 | EZ40: 2102.898338 | FA40: 2144.956304 | FB40: 2187.85543 | FC40: 2231.612539 | FD40: 2276.24479 | FE40: 2321.769686 | FF40: 2368.205079 | FG40: 2415.569181 | FH40: 2463.880565 | FI40: 2513.158176 | FJ40: 2563.421339 | FK40: 2614.689766 | FL40: 2666.983561 | FM40: 2720.323233 | FN40: 2774.729697 | FO40: 2830.224291 | FP40: 2886.828777 | FQ40: 2944.565353 | FR40: 3003.45666 | FS40: 3063.525793 | FT40: 3124.796309 | FU40: 3187.292235 | FV40: 3251.03808 | FW40: 3316.058841 | FX40: 3382.380018 | FY40: 3450.027618 | FZ40: 3519.028171 | GA40: 3589.408734 | GB40: 3661.196909 | GC40: 3734.420847 | GD40: 3809.109264 | GE40: 3885.291449 | GF40: 3962.997278 | GG40: 4042.257224 | GH40: 4123.102368 | GI40: 4205.564416 | GJ40: 4289.675704 | GK40: 4375.469218 | GL40: 4462.978602 | GM40: 4552.238174 | GN40: 4643.282938 | GO40: 4736.148597 | GP40: 4830.871569 | GQ40: 4927.489 | GR40: =GR39*GR34 -> 5026.03878 | GS40: 5126.559556 | GT40: 5229.090747 | GU40: 5333.672562 | GV40: 5440.346013 | GW40: 5549.152933 | GX40: 5660.135992 | GY40: 5773.338712 | GZ40: 5888.805486
B41: Tax rate | E41: =E8 -> 0 | G41: =$E$41 -> 0 | H41: =$E$41 -> 0 | I41: 0 | J41: 0 | K41: 0 | L41: 0 | M41: 0 | N41: 0 | O41: 0 | P41: 0 | Q41: 0 | R41: 0 | S41: 0 | T41: 0 | U41: 0 | V41: 0 | W41: 0 | X41: 0 | Y41: 0 | Z41: 0 | AA41: 0 | AB41: 0 | AC41: 0 | AD41: 0 | AE41: 0 | AF41: 0 | AG41: 0 | AH41: 0 | AI41: 0 | AJ41: 0 | AK41: 0 | AL41: 0 | AM41: 0 | AN41: 0 | AO41: 0 | AP41: 0 | AQ41: 0 | AR41: 0 | AS41: 0 | AT41: 0 | AU41: 0 | AV41: 0 | AW41: 0 | AX41: 0 | AY41: 0 | AZ41: 0 | BA41: 0 | BB41: 0 | BC41: 0 | BD41: 0 | BE41: 0 | BF41: 0 | BG41: 0 | BH41: 0 | BI41: 0 | BJ41: 0 | BK41: 0 | BL41: 0 | BM41: 0 | BN41: 0 | BO41: 0 | BP41: 0 | BQ41: 0 | BR41: 0 | BS41: 0 | BT41: =$E$41 -> 0 | BU41: 0 | BV41: 0 | BW41: 0 | BX41: 0 | BY41: 0 | BZ41: 0 | CA41: 0 | CB41: 0 | CC41: 0 | CD41: 0 | CE41: 0 | CF41: 0 | CG41: 0 | CH41: 0 | CI41: 0 | CJ41: 0 | CK41: 0 | CL41: 0 | CM41: 0 | CN41: 0 | CO41: 0 | CP41: 0 | CQ41: 0 | CR41: 0 | CS41: 0 | CT41: 0 | CU41: 0 | CV41: 0 | CW41: 0 | CX41: 0 | CY41: 0 | CZ41: 0 | DA41: 0 | DB41: 0 | DC41: 0 | DD41: 0 | DE41: 0 | DF41: 0 | DG41: 0 | DH41: 0 | DI41: 0 | DJ41: 0 | DK41: 0 | DL41: 0 | DM41: 0 | DN41: 0 | DO41: 0 | DP41: 0 | DQ41: 0 | DR41: 0 | DS41: 0 | DT41: 0 | DU41: 0 | DV41: 0 | DW41: 0 | DX41: 0 | DY41: 0 | DZ41: 0 | EA41: 0 | EB41: 0 | EC41: 0 | ED41: 0 | EE41: 0 | EF41: =$E$41 -> 0 | EG41: 0 | EH41: 0 | EI41: 0 | EJ41: 0 | EK41: 0 | EL41: 0 | EM41: 0 | EN41: 0 | EO41: 0 | EP41: 0 | EQ41: 0 | ER41: 0 | ES41: 0 | ET41: 0 | EU41: 0 | EV41: 0 | EW41: 0 | EX41: 0 | EY41: 0 | EZ41: 0 | FA41: 0 | FB41: 0 | FC41: 0 | FD41: 0 | FE41: 0 | FF41: 0 | FG41: 0 | FH41: 0 | FI41: 0 | FJ41: 0 | FK41: 0 | FL41: 0 | FM41: 0 | FN41: 0 | FO41: 0 | FP41: 0 | FQ41: 0 | FR41: 0 | FS41: 0 | FT41: 0 | FU41: 0 | FV41: 0 | FW41: 0 | FX41: 0 | FY41: 0 | FZ41: 0 | GA41: 0 | GB41: 0 | GC41: 0 | GD41: 0 | GE41: 0 | GF41: 0 | GG41: 0 | GH41: 0 | GI41: 0 | GJ41: 0 | GK41: 0 | GL41: 0 | GM41: 0 | GN41: 0 | GO41: 0 | GP41: 0 | GQ41: 0 | GR41: =$E$41 -> 0 | GS41: 0 | GT41: 0 | GU41: 0 | GV41: 0 | GW41: 0 | GX41: 0 | GY41: 0 | GZ41: 0
B42: EBIT = NOPAT / (1-T) | G42: =G40/(1-G41) -> 110 | H42: =H40/(1-H41) -> 112.2 | I42: 114.444 | J42: 116.73288 | K42: 119.0675376 | L42: 121.4488884 | M42: 123.8778661 | N42: 126.3554234 | O42: 128.8825319 | P42: 131.4601825 | Q42: 134.0893862 | R42: 136.7711739 | S42: 139.5065974 | T42: 142.2967293 | U42: 145.1426639 | V42: 148.0455172 | W42: 151.0064276 | X42: 154.0265561 | Y42: 157.1070872 | Z42: 160.249229 | AA42: 163.4542136 | AB42: 166.7232978 | AC42: 170.0577638 | AD42: 173.4589191 | AE42: 176.9280974 | AF42: 180.4666594 | AG42: 184.0759926 | AH42: 187.7575124 | AI42: 191.5126627 | AJ42: 195.3429159 | AK42: 199.2497743 | AL42: 203.2347697 | AM42: 207.2994651 | AN42: 211.4454544 | AO42: 215.6743635 | AP42: 219.9878508 | AQ42: 224.3876078 | AR42: 228.87536 | AS42: 233.4528672 | AT42: 238.1219245 | AU42: 242.884363 | AV42: 247.7420503 | AW42: 252.6968913 | AX42: 257.7508291 | AY42: 262.9058457 | AZ42: 268.1639626 | BA42: 273.5272418 | BB42: 278.9977867 | BC42: 284.5777424 | BD42: 290.2692973 | BE42: 296.0746832 | BF42: 301.9961769 | BG42: 308.0361004 | BH42: 314.1968224 | BI42: 320.4807589 | BJ42: 326.890374 | BK42: 333.4281815 | BL42: 340.0967451 | BM42: 346.89868 | BN42: 353.8366536 | BO42: 360.9133867 | BP42: 368.1316545 | BQ42: 375.4942875 | BR42: 383.0041733 | BS42: 390.6642568 | BT42: =BT40/(1-BT41) -> 398.4775419 | BU42: 406.4470927 | BV42: 414.5760346 | BW42: 422.8675553 | BX42: 431.3249064 | BY42: 439.9514045 | BZ42: 448.7504326 | CA42: 457.7254413 | CB42: 466.8799501 | CC42: 476.2175491 | CD42: 485.7419001 | CE42: 495.4567381 | CF42: 505.3658728 | CG42: 515.4731903 | CH42: 525.7826541 | CI42: 536.2983072 | CJ42: 547.0242733 | CK42: 557.9647588 | CL42: 569.124054 | CM42: 580.506535 | CN42: 592.1166657 | CO42: 603.9589991 | CP42: 616.038179 | CQ42: 628.3589426 | CR42: 640.9261215 | CS42: 653.7446439 | CT42: 666.8195368 | CU42: 680.1559275 | CV42: 693.7590461 | CW42: 707.634227 | CX42: 721.7869115 | CY42: 736.2226497 | CZ42: 750.9471027 | DA42: 765.9660448 | DB42: 781.2853657 | DC42: 796.911073 | DD42: 812.8492945 | DE42: 829.1062804 | DF42: 845.688406 | DG42: 862.6021741 | DH42: 879.8542176 | DI42: 897.4513019 | DJ42: 915.400328 | DK42: 933.7083345 | DL42: 952.3825012 | DM42: 971.4301512 | DN42: 990.8587543 | DO42: 1010.675929 | DP42: 1030.889448 | DQ42: 1051.507237 | DR42: 1072.537382 | DS42: 1093.988129 | DT42: 1115.867892 | DU42: 1138.18525 | DV42: 1160.948955 | DW42: 1184.167934 | DX42: 1207.851292 | DY42: 1232.008318 | DZ42: 1256.648485 | EA42: 1281.781454 | EB42: 1307.417083 | EC42: 1333.565425 | ED42: 1360.236734 | EE42: 1387.441468 | EF42: =EF40/(1-EF41) -> 1415.190298 | EG42: 1443.494104 | EH42: 1472.363986 | EI42: 1501.811265 | EJ42: 1531.847491 | EK42: 1562.48444 | EL42: 1593.734129 | EM42: 1625.608812 | EN42: 1658.120988 | EO42: 1691.283408 | EP42: 1725.109076 | EQ42: 1759.611258 | ER42: 1794.803483 | ES42: 1830.699552 | ET42: 1867.313543 | EU42: 1904.659814 | EV42: 1942.753011 | EW42: 1981.608071 | EX42: 2021.240232 | EY42: 2061.665037 | EZ42: 2102.898338 | FA42: 2144.956304 | FB42: 2187.85543 | FC42: 2231.612539 | FD42: 2276.24479 | FE42: 2321.769686 | FF42: 2368.205079 | FG42: 2415.569181 | FH42: 2463.880565 | FI42: 2513.158176 | FJ42: 2563.421339 | FK42: 2614.689766 | FL42: 2666.983561 | FM42: 2720.323233 | FN42: 2774.729697 | FO42: 2830.224291 | FP42: 2886.828777 | FQ42: 2944.565353 | FR42: 3003.45666 | FS42: 3063.525793 | FT42: 3124.796309 | FU42: 3187.292235 | FV42: 3251.03808 | FW42: 3316.058841 | FX42: 3382.380018 | FY42: 3450.027618 | FZ42: 3519.028171 | GA42: 3589.408734 | GB42: 3661.196909 | GC42: 3734.420847 | GD42: 3809.109264 | GE42: 3885.291449 | GF42: 3962.997278 | GG42: 4042.257224 | GH42: 4123.102368 | GI42: 4205.564416 | GJ42: 4289.675704 | GK42: 4375.469218 | GL42: 4462.978602 | GM42: 4552.238174 | GN42: 4643.282938 | GO42: 4736.148597 | GP42: 4830.871569 | GQ42: 4927.489 | GR42: =GR40/(1-GR41) -> 5026.03878 | GS42: 5126.559556 | GT42: 5229.090747 | GU42: 5333.672562 | GV42: 5440.346013 | GW42: 5549.152933 | GX42: 5660.135992 | GY42: 5773.338712 | GZ42: 5888.805486
B43: EBITDA | G43: =G42+G35 -> 286.5766194 | H43: =H42+H35 -> 292.3081518 | I43: 298.1543148 | J43: 304.1174011 | K43: 310.1997491 | L43: 316.4037441 | M43: 322.731819 | N43: 329.1864554 | O43: 335.7701845 | P43: 342.4855882 | Q43: 349.3352999 | R43: 356.3220059 | S43: 363.4484461 | T43: 370.717415 | U43: 378.1317633 | V43: 385.6943986 | W43: 393.4082865 | X43: 401.2764523 | Y43: 409.3019813 | Z43: 417.4880209 | AA43: 425.8377813 | AB43: 434.354537 | AC43: 443.0416277 | AD43: 451.9024603 | AE43: 460.9405095 | AF43: 470.1593197 | AG43: 479.5625061 | AH43: 489.1537562 | AI43: 498.9368313 | AJ43: 508.9155679 | AK43: 519.0938793 | AL43: 529.4757569 | AM43: 540.065272 | AN43: 550.8665774 | AO43: 561.883909 | AP43: 573.1215872 | AQ43: 584.5840189 | AR43: 596.2756993 | AS43: 608.2012133 | AT43: 620.3652375 | AU43: 632.7725423 | AV43: 645.4279931 | AW43: 658.336553 | AX43: 671.5032841 | AY43: 684.9333498 | AZ43: 698.6320167 | BA43: 712.6046571 | BB43: 726.8567502 | BC43: 741.3938852 | BD43: 756.2217629 | BE43: 771.3461982 | BF43: 786.7731222 | BG43: 802.5085846 | BH43: 818.5587563 | BI43: 834.9299314 | BJ43: 851.62853 | BK43: 868.6611006 | BL43: 886.0343227 | BM43: 903.7550091 | BN43: 921.8301093 | BO43: 940.2667115 | BP43: 959.0720457 | BQ43: 978.2534866 | BR43: 997.8185564 | BS43: 1017.774927 | BT43: =BT42+BT35 -> 1038.130426 | BU43: 1058.893035 | BV43: 1080.070895 | BW43: 1101.672313 | BX43: 1123.705759 | BY43: 1146.179875 | BZ43: 1169.103472 | CA43: 1192.485542 | CB43: 1216.335252 | CC43: 1240.661957 | CD43: 1265.475197 | CE43: 1290.7847 | CF43: 1316.600394 | CG43: 1342.932402 | CH43: 1369.79105 | CI43: 1397.186871 | CJ43: 1425.130609 | CK43: 1453.633221 | CL43: 1482.705885 | CM43: 1512.360003 | CN43: 1542.607203 | CO43: 1573.459347 | CP43: 1604.928534 | CQ43: 1637.027105 | CR43: 1669.767647 | CS43: 1703.163 | CT43: 1737.22626 | CU43: 1771.970785 | CV43: 1807.410201 | CW43: 1843.558405 | CX43: 1880.429573 | CY43: 1918.038164 | CZ43: 1956.398928 | DA43: 1995.526906 | DB43: 2035.437444 | DC43: 2076.146193 | DD43: 2117.669117 | DE43: 2160.0225 | DF43: 2203.22295 | DG43: 2247.287409 | DH43: 2292.233157 | DI43: 2338.07782 | DJ43: 2384.839376 | DK43: 2432.536164 | DL43: 2481.186887 | DM43: 2530.810625 | DN43: 2581.426837 | DO43: 2633.055374 | DP43: 2685.716481 | DQ43: 2739.430811 | DR43: 2794.219427 | DS43: 2850.103816 | DT43: 2907.105892 | DU43: 2965.24801 | DV43: 3024.55297 | DW43: 3085.04403 | DX43: 3146.74491 | DY43: 3209.679808 | DZ43: 3273.873405 | EA43: 3339.350873 | EB43: 3406.13789 | EC43: 3474.260648 | ED43: 3543.745861 | EE43: 3614.620778 | EF43: =EF42+EF35 -> 3686.913194 | EG43: 3760.651458 | EH43: 3835.864487 | EI43: 3912.581776 | EJ43: 3990.833412 | EK43: 4070.65008 | EL43: 4152.063082 | EM43: 4235.104343 | EN43: 4319.80643 | EO43: 4406.202559 | EP43: 4494.32661 | EQ43: 4584.213142 | ER43: 4675.897405 | ES43: 4769.415353 | ET43: 4864.80366 | EU43: 4962.099734 | EV43: 5061.341728 | EW43: 5162.568563 | EX43: 5265.819934 | EY43: 5371.136333 | EZ43: 5478.559059 | FA43: 5588.130241 | FB43: 5699.892845 | FC43: 5813.890702 | FD43: 5930.168516 | FE43: 6048.771887 | FF43: 6169.747324 | FG43: 6293.142271 | FH43: 6419.005116 | FI43: 6547.385219 | FJ43: 6678.332923 | FK43: 6811.899581 | FL43: 6948.137573 | FM43: 7087.100325 | FN43: 7228.842331 | FO43: 7373.419178 | FP43: 7520.887561 | FQ43: 7671.305312 | FR43: 7824.731419 | FS43: 7981.226047 | FT43: 8140.850568 | FU43: 8303.667579 | FV43: 8469.740931 | FW43: 8639.13575 | FX43: 8811.918465 | FY43: 8988.156834 | FZ43: 9167.91997 | GA43: 9351.27837 | GB43: 9538.303937 | GC43: 9729.070016 | GD43: 9923.651416 | GE43: 10122.12444 | GF43: 10324.56693 | GG43: 10531.05827 | GH43: 10741.67944 | GI43: 10956.51303 | GJ43: 11175.64329 | GK43: 11399.15615 | GL43: 11627.13928 | GM43: 11859.68206 | GN43: 12096.8757 | GO43: 12338.81322 | GP43: 12585.58948 | GQ43: 12837.30127 | GR43: =GR42+GR35 -> 13094.0473 | GS43: 13355.92824 | GT43: 13623.04681 | GU43: 13895.50774 | GV43: 14173.4179 | GW43: 14456.88626 | GX43: 14746.02398 | GY43: 15040.94446 | GZ43: 15341.76335
B45: FCF
B46: EBITDA | G46: =G43 -> 286.5766194 | H46: =H43 -> 292.3081518 | I46: 298.1543148 | J46: 304.1174011 | K46: 310.1997491 | L46: 316.4037441 | M46: 322.731819 | N46: 329.1864554 | O46: 335.7701845 | P46: 342.4855882 | Q46: 349.3352999 | R46: 356.3220059 | S46: 363.4484461 | T46: 370.717415 | U46: 378.1317633 | V46: 385.6943986 | W46: 393.4082865 | X46: 401.2764523 | Y46: 409.3019813 | Z46: 417.4880209 | AA46: 425.8377813 | AB46: 434.354537 | AC46: 443.0416277 | AD46: 451.9024603 | AE46: 460.9405095 | AF46: 470.1593197 | AG46: 479.5625061 | AH46: 489.1537562 | AI46: 498.9368313 | AJ46: 508.9155679 | AK46: 519.0938793 | AL46: 529.4757569 | AM46: 540.065272 | AN46: 550.8665774 | AO46: 561.883909 | AP46: 573.1215872 | AQ46: 584.5840189 | AR46: 596.2756993 | AS46: 608.2012133 | AT46: 620.3652375 | AU46: 632.7725423 | AV46: 645.4279931 | AW46: 658.336553 | AX46: 671.5032841 | AY46: 684.9333498 | AZ46: 698.6320167 | BA46: 712.6046571 | BB46: 726.8567502 | BC46: 741.3938852 | BD46: 756.2217629 | BE46: 771.3461982 | BF46: 786.7731222 | BG46: 802.5085846 | BH46: 818.5587563 | BI46: 834.9299314 | BJ46: 851.62853 | BK46: 868.6611006 | BL46: 886.0343227 | BM46: 903.7550091 | BN46: 921.8301093 | BO46: 940.2667115 | BP46: 959.0720457 | BQ46: 978.2534866 | BR46: 997.8185564 | BS46: 1017.774927 | BT46: =BT43 -> 1038.130426 | BU46: 1058.893035 | BV46: 1080.070895 | BW46: 1101.672313 | BX46: 1123.705759 | BY46: 1146.179875 | BZ46: 1169.103472 | CA46: 1192.485542 | CB46: 1216.335252 | CC46: 1240.661957 | CD46: 1265.475197 | CE46: 1290.7847 | CF46: 1316.600394 | CG46: 1342.932402 | CH46: 1369.79105 | CI46: 1397.186871 | CJ46: 1425.130609 | CK46: 1453.633221 | CL46: 1482.705885 | CM46: 1512.360003 | CN46: 1542.607203 | CO46: 1573.459347 | CP46: 1604.928534 | CQ46: 1637.027105 | CR46: 1669.767647 | CS46: 1703.163 | CT46: 1737.22626 | CU46: 1771.970785 | CV46: 1807.410201 | CW46: 1843.558405 | CX46: 1880.429573 | CY46: 1918.038164 | CZ46: 1956.398928 | DA46: 1995.526906 | DB46: 2035.437444 | DC46: 2076.146193 | DD46: 2117.669117 | DE46: 2160.0225 | DF46: 2203.22295 | DG46: 2247.287409 | DH46: 2292.233157 | DI46: 2338.07782 | DJ46: 2384.839376 | DK46: 2432.536164 | DL46: 2481.186887 | DM46: 2530.810625 | DN46: 2581.426837 | DO46: 2633.055374 | DP46: 2685.716481 | DQ46: 2739.430811 | DR46: 2794.219427 | DS46: 2850.103816 | DT46: 2907.105892 | DU46: 2965.24801 | DV46: 3024.55297 | DW46: 3085.04403 | DX46: 3146.74491 | DY46: 3209.679808 | DZ46: 3273.873405 | EA46: 3339.350873 | EB46: 3406.13789 | EC46: 3474.260648 | ED46: 3543.745861 | EE46: 3614.620778 | EF46: =EF43 -> 3686.913194 | EG46: 3760.651458 | EH46: 3835.864487 | EI46: 3912.581776 | EJ46: 3990.833412 | EK46: 4070.65008 | EL46: 4152.063082 | EM46: 4235.104343 | EN46: 4319.80643 | EO46: 4406.202559 | EP46: 4494.32661 | EQ46: 4584.213142 | ER46: 4675.897405 | ES46: 4769.415353 | ET46: 4864.80366 | EU46: 4962.099734 | EV46: 5061.341728 | EW46: 5162.568563 | EX46: 5265.819934 | EY46: 5371.136333 | EZ46: 5478.559059 | FA46: 5588.130241 | FB46: 5699.892845 | FC46: 5813.890702 | FD46: 5930.168516 | FE46: 6048.771887 | FF46: 6169.747324 | FG46: 6293.142271 | FH46: 6419.005116 | FI46: 6547.385219 | FJ46: 6678.332923 | FK46: 6811.899581 | FL46: 6948.137573 | FM46: 7087.100325 | FN46: 7228.842331 | FO46: 7373.419178 | FP46: 7520.887561 | FQ46: 7671.305312 | FR46: 7824.731419 | FS46: 7981.226047 | FT46: 8140.850568 | FU46: 8303.667579 | FV46: 8469.740931 | FW46: 8639.13575 | FX46: 8811.918465 | FY46: 8988.156834 | FZ46: 9167.91997 | GA46: 9351.27837 | GB46: 9538.303937 | GC46: 9729.070016 | GD46: 9923.651416 | GE46: 10122.12444 | GF46: 10324.56693 | GG46: 10531.05827 | GH46: 10741.67944 | GI46: 10956.51303 | GJ46: 11175.64329 | GK46: 11399.15615 | GL46: 11627.13928 | GM46: 11859.68206 | GN46: 12096.8757 | GO46: 12338.81322 | GP46: 12585.58948 | GQ46: 12837.30127 | GR46: =GR43 -> 13094.0473 | GS46: 13355.92824 | GT46: 13623.04681 | GU46: 13895.50774 | GV46: 14173.4179 | GW46: 14456.88626 | GX46: 14746.02398 | GY46: 15040.94446 | GZ46: 15341.76335
B47: Less: CAPEX | G47: =G36 -> 196.5766194 | H47: =H36 -> 200.5081518 | I47: 204.5183148 | J47: 208.6086811 | K47: 212.7808547 | L47: 217.0364718 | M47: 221.3772013 | N47: 225.8047453 | O47: 230.3208402 | P47: 234.927257 | Q47: 239.6258022 | R47: 244.4183182 | S47: 249.3066846 | T47: 254.2928182 | U47: 259.3786746 | V47: 264.5662481 | W47: 269.8575731 | X47: 275.2547245 | Y47: 280.759819 | Z47: 286.3750154 | AA47: 292.1025157 | AB47: 297.944566 | AC47: 303.9034573 | AD47: 309.9815265 | AE47: 316.181157 | AF47: 322.5047802 | AG47: 328.9548758 | AH47: 335.5339733 | AI47: 342.2446527 | AJ47: 349.0895458 | AK47: 356.0713367 | AL47: 363.1927634 | AM47: 370.4566187 | AN47: 377.8657511 | AO47: 385.4230661 | AP47: 393.1315274 | AQ47: 400.994158 | AR47: 409.0140411 | AS47: 417.194322 | AT47: 425.5382084 | AU47: 434.0489726 | AV47: 442.729952 | AW47: 451.5845511 | AX47: 460.6162421 | AY47: 469.8285669 | AZ47: 479.2251383 | BA47: 488.809641 | BB47: 498.5858339 | BC47: 508.5575505 | BD47: 518.7287015 | BE47: 529.1032756 | BF47: 539.6853411 | BG47: 550.4790479 | BH47: 561.4886289 | BI47: 572.7184014 | BJ47: 584.1727695 | BK47: 595.8562249 | BL47: 607.7733494 | BM47: 619.9288163 | BN47: 632.3273927 | BO47: 644.9739405 | BP47: 657.8734193 | BQ47: 671.0308877 | BR47: 684.4515055 | BS47: 698.1405356 | BT47: =BT36 -> 712.1033463 | BU47: 726.3454132 | BV47: 740.8723215 | BW47: 755.6897679 | BX47: 770.8035633 | BY47: 786.2196345 | BZ47: 801.9440272 | CA47: 817.9829078 | CB47: 834.3425659 | CC47: 851.0294173 | CD47: 868.0500056 | CE47: 885.4110057 | CF47: 903.1192258 | CG47: 921.1816103 | CH47: 939.6052425 | CI47: 958.3973474 | CJ47: 977.5652943 | CK47: 997.1166002 | CL47: 1017.058932 | CM47: 1037.400111 | CN47: 1058.148113 | CO47: 1079.311075 | CP47: 1100.897297 | CQ47: 1122.915243 | CR47: 1145.373548 | CS47: 1168.281019 | CT47: 1191.646639 | CU47: 1215.479572 | CV47: 1239.789163 | CW47: 1264.584946 | CX47: 1289.876645 | CY47: 1315.674178 | CZ47: 1341.987662 | DA47: 1368.827415 | DB47: 1396.203963 | DC47: 1424.128043 | DD47: 1452.610604 | DE47: 1481.662816 | DF47: 1511.296072 | DG47: 1541.521993 | DH47: 1572.352433 | DI47: 1603.799482 | DJ47: 1635.875472 | DK47: 1668.592981 | DL47: 1701.964841 | DM47: 1736.004137 | DN47: 1770.72422 | DO47: 1806.138705 | DP47: 1842.261479 | DQ47: 1879.106708 | DR47: 1916.688842 | DS47: 1955.022619 | DT47: 1994.123072 | DU47: 2034.005533 | DV47: 2074.685644 | DW47: 2116.179357 | DX47: 2158.502944 | DY47: 2201.673003 | DZ47: 2245.706463 | EA47: 2290.620592 | EB47: 2336.433004 | EC47: 2383.161664 | ED47: 2430.824897 | EE47: 2479.441395 | EF47: =EF36 -> 2529.030223 | EG47: 2579.610827 | EH47: 2631.203044 | EI47: 2683.827105 | EJ47: 2737.503647 | EK47: 2792.25372 | EL47: 2848.098794 | EM47: 2905.06077 | EN47: 2963.161985 | EO47: 3022.425225 | EP47: 3082.87373 | EQ47: 3144.531204 | ER47: 3207.421828 | ES47: 3271.570265 | ET47: 3337.00167 | EU47: 3403.741704 | EV47: 3471.816538 | EW47: 3541.252868 | EX47: 3612.077926 | EY47: 3684.319484 | EZ47: 3758.005874 | FA47: 3833.165992 | FB47: 3909.829311 | FC47: 3988.025898 | FD47: 4067.786416 | FE47: 4149.142144 | FF47: 4232.124987 | FG47: 4316.767486 | FH47: 4403.102836 | FI47: 4491.164893 | FJ47: 4580.988191 | FK47: 4672.607955 | FL47: 4766.060114 | FM47: 4861.381316 | FN47: 4958.608942 | FO47: 5057.781121 | FP47: 5158.936744 | FQ47: 5262.115478 | FR47: 5367.357788 | FS47: 5474.704944 | FT47: 5584.199043 | FU47: 5695.883023 | FV47: 5809.800684 | FW47: 5925.996698 | FX47: 6044.516632 | FY47: 6165.406964 | FZ47: 6288.715103 | GA47: 6414.489406 | GB47: 6542.779194 | GC47: 6673.634778 | GD47: 6807.107473 | GE47: 6943.249623 | GF47: 7082.114615 | GG47: 7223.756907 | GH47: 7368.232045 | GI47: 7515.596686 | GJ47: 7665.90862 | GK47: 7819.226792 | GL47: 7975.611328 | GM47: 8135.123555 | GN47: 8297.826026 | GO47: 8463.782547 | GP47: 8633.058197 | GQ47: 8805.719361 | GR47: =GR36 -> 8981.833749 | GS47: 9161.470424 | GT47: 9344.699832 | GU47: 9531.593829 | GV47: 9722.225705 | GW47: 9916.670219 | GX47: 10115.00362 | GY47: 10317.3037 | GZ47: 10523.64977
B48: Less: Taxes | G48: =G42*G41 -> 0 | H48: =H42*H41 -> 0 | I48: 0 | J48: 0 | K48: 0 | L48: 0 | M48: 0 | N48: 0 | O48: 0 | P48: 0 | Q48: 0 | R48: 0 | S48: 0 | T48: 0 | U48: 0 | V48: 0 | W48: 0 | X48: 0 | Y48: 0 | Z48: 0 | AA48: 0 | AB48: 0 | AC48: 0 | AD48: 0 | AE48: 0 | AF48: 0 | AG48: 0 | AH48: 0 | AI48: 0 | AJ48: 0 | AK48: 0 | AL48: 0 | AM48: 0 | AN48: 0 | AO48: 0 | AP48: 0 | AQ48: 0 | AR48: 0 | AS48: 0 | AT48: 0 | AU48: 0 | AV48: 0 | AW48: 0 | AX48: 0 | AY48: 0 | AZ48: 0 | BA48: 0 | BB48: 0 | BC48: 0 | BD48: 0 | BE48: 0 | BF48: 0 | BG48: 0 | BH48: 0 | BI48: 0 | BJ48: 0 | BK48: 0 | BL48: 0 | BM48: 0 | BN48: 0 | BO48: 0 | BP48: 0 | BQ48: 0 | BR48: 0 | BS48: 0 | BT48: =BT42*BT41 -> 0 | BU48: 0 | BV48: 0 | BW48: 0 | BX48: 0 | BY48: 0 | BZ48: 0 | CA48: 0 | CB48: 0 | CC48: 0 | CD48: 0 | CE48: 0 | CF48: 0 | CG48: 0 | CH48: 0 | CI48: 0 | CJ48: 0 | CK48: 0 | CL48: 0 | CM48: 0 | CN48: 0 | CO48: 0 | CP48: 0 | CQ48: 0 | CR48: 0 | CS48: 0 | CT48: 0 | CU48: 0 | CV48: 0 | CW48: 0 | CX48: 0 | CY48: 0 | CZ48: 0 | DA48: 0 | DB48: 0 | DC48: 0 | DD48: 0 | DE48: 0 | DF48: 0 | DG48: 0 | DH48: 0 | DI48: 0 | DJ48: 0 | DK48: 0 | DL48: 0 | DM48: 0 | DN48: 0 | DO48: 0 | DP48: 0 | DQ48: 0 | DR48: 0 | DS48: 0 | DT48: 0 | DU48: 0 | DV48: 0 | DW48: 0 | DX48: 0 | DY48: 0 | DZ48: 0 | EA48: 0 | EB48: 0 | EC48: 0 | ED48: 0 | EE48: 0 | EF48: =EF42*EF41 -> 0 | EG48: 0 | EH48: 0 | EI48: 0 | EJ48: 0 | EK48: 0 | EL48: 0 | EM48: 0 | EN48: 0 | EO48: 0 | EP48: 0 | EQ48: 0 | ER48: 0 | ES48: 0 | ET48: 0 | EU48: 0 | EV48: 0 | EW48: 0 | EX48: 0 | EY48: 0 | EZ48: 0 | FA48: 0 | FB48: 0 | FC48: 0 | FD48: 0 | FE48: 0 | FF48: 0 | FG48: 0 | FH48: 0 | FI48: 0 | FJ48: 0 | FK48: 0 | FL48: 0 | FM48: 0 | FN48: 0 | FO48: 0 | FP48: 0 | FQ48: 0 | FR48: 0 | FS48: 0 | FT48: 0 | FU48: 0 | FV48: 0 | FW48: 0 | FX48: 0 | FY48: 0 | FZ48: 0 | GA48: 0 | GB48: 0 | GC48: 0 | GD48: 0 | GE48: 0 | GF48: 0 | GG48: 0 | GH48: 0 | GI48: 0 | GJ48: 0 | GK48: 0 | GL48: 0 | GM48: 0 | GN48: 0 | GO48: 0 | GP48: 0 | GQ48: 0 | GR48: =GR42*GR41 -> 0 | GS48: 0 | GT48: 0 | GU48: 0 | GV48: 0 | GW48: 0 | GX48: 0 | GY48: 0 | GZ48: 0
B49: Less: Working Capital changes
B50: FCF | G50: =G46-G47-G48-G49 -> 90 | H50: =H46-H47-H48-H49 -> 91.8 | I50: 93.636 | J50: 95.50872 | K50: 97.4188944 | L50: 99.36727229 | M50: 101.3546177 | N50: 103.3817101 | O50: 105.4493443 | P50: 107.5583312 | Q50: 109.7094978 | R50: 111.9036878 | S50: 114.1417615 | T50: 116.4245967 | U50: 118.7530887 | V50: 121.1281504 | W50: 123.5507135 | X50: 126.0217277 | Y50: 128.5421623 | Z50: 131.1130055 | AA50: 133.7352656 | AB50: 136.409971 | AC50: 139.1381704 | AD50: 141.9209338 | AE50: 144.7593525 | AF50: 147.6545395 | AG50: 150.6076303 | AH50: 153.6197829 | AI50: 156.6921786 | AJ50: 159.8260221 | AK50: 163.0225426 | AL50: 166.2829934 | AM50: 169.6086533 | AN50: 173.0008264 | AO50: 176.4608429 | AP50: 179.9900597 | AQ50: 183.5898609 | AR50: 187.2616582 | AS50: 191.0068913 | AT50: 194.8270291 | AU50: 198.7235697 | AV50: 202.6980411 | AW50: 206.7520019 | AX50: 210.887042 | AY50: 215.1047828 | AZ50: 219.4068785 | BA50: 223.795016 | BB50: 228.2709164 | BC50: 232.8363347 | BD50: 237.4930614 | BE50: 242.2429226 | BF50: 247.0877811 | BG50: 252.0295367 | BH50: 257.0701274 | BI50: 262.21153 | BJ50: 267.4557606 | BK50: 272.8048758 | BL50: 278.2609733 | BM50: 283.8261928 | BN50: 289.5027166 | BO50: 295.292771 | BP50: 301.1986264 | BQ50: 307.2225989 | BR50: 313.3670509 | BS50: 319.6343919 | BT50: =BT46-BT47-BT48-BT49 -> 326.0270797 | BU50: 332.5476213 | BV50: 339.1985738 | BW50: 345.9825452 | BX50: 352.9021961 | BY50: 359.9602401 | BZ50: 367.1594449 | CA50: 374.5026338 | CB50: 381.9926864 | CC50: 389.6325402 | CD50: 397.425191 | CE50: 405.3736948 | CF50: 413.4811687 | CG50: 421.750792 | CH50: 430.1858079 | CI50: 438.789524 | CJ50: 447.5653145 | CK50: 456.5166208 | CL50: 465.6469532 | CM50: 474.9598923 | CN50: 484.4590901 | CO50: 494.148272 | CP50: 504.0312374 | CQ50: 514.1118621 | CR50: 524.3940994 | CS50: 534.8819814 | CT50: 545.579621 | CU50: 556.4912134 | CV50: 567.6210377 | CW50: 578.9734584 | CX50: 590.5529276 | CY50: 602.3639862 | CZ50: 614.4112659 | DA50: 626.6994912 | DB50: 639.233481 | DC50: 652.0181506 | DD50: 665.0585137 | DE50: 678.3596839 | DF50: 691.9268776 | DG50: 705.7654152 | DH50: 719.8807235 | DI50: 734.2783379 | DJ50: 748.9639047 | DK50: 763.9431828 | DL50: 779.2220464 | DM50: 794.8064874 | DN50: 810.7026171 | DO50: 826.9166695 | DP50: 843.4550028 | DQ50: 860.3241029 | DR50: 877.530585 | DS50: 895.0811967 | DT50: 912.9828206 | DU50: 931.242477 | DV50: 949.8673265 | DW50: 968.8646731 | DX50: 988.2419665 | DY50: 1008.006806 | DZ50: 1028.166942 | EA50: 1048.730281 | EB50: 1069.704886 | EC50: 1091.098984 | ED50: 1112.920964 | EE50: 1135.179383 | EF50: =EF46-EF47-EF48-EF49 -> 1157.882971 | EG50: 1181.04063 | EH50: 1204.661443 | EI50: 1228.754672 | EJ50: 1253.329765 | EK50: 1278.39636 | EL50: 1303.964288 | EM50: 1330.043573 | EN50: 1356.644445 | EO50: 1383.777334 | EP50: 1411.45288 | EQ50: 1439.681938 | ER50: 1468.475577 | ES50: 1497.845088 | ET50: 1527.80199 | EU50: 1558.35803 | EV50: 1589.52519 | EW50: 1621.315694 | EX50: 1653.742008 | EY50: 1686.816848 | EZ50: 1720.553185 | FA50: 1754.964249 | FB50: 1790.063534 | FC50: 1825.864805 | FD50: 1862.382101 | FE50: 1899.629743 | FF50: 1937.622338 | FG50: 1976.374784 | FH50: 2015.90228 | FI50: 2056.220326 | FJ50: 2097.344732 | FK50: 2139.291627 | FL50: 2182.077459 | FM50: 2225.719009 | FN50: 2270.233389 | FO50: 2315.638057 | FP50: 2361.950818 | FQ50: 2409.189834 | FR50: 2457.373631 | FS50: 2506.521103 | FT50: 2556.651525 | FU50: 2607.784556 | FV50: 2659.940247 | FW50: 2713.139052 | FX50: 2767.401833 | FY50: 2822.74987 | FZ50: 2879.204867 | GA50: 2936.788964 | GB50: 2995.524744 | GC50: 3055.435238 | GD50: 3116.543943 | GE50: 3178.874822 | GF50: 3242.452319 | GG50: 3307.301365 | GH50: 3373.447392 | GI50: 3440.91634 | GJ50: 3509.734667 | GK50: 3579.92936 | GL50: 3651.527947 | GM50: 3724.558506 | GN50: 3799.049677 | GO50: 3875.03067 | GP50: 3952.531283 | GQ50: 4031.581909 | GR50: =GR46-GR47-GR48-GR49 -> 4112.213547 | GS50: 4194.457818 | GT50: 4278.346975 | GU50: 4363.913914 | GV50: 4451.192192 | GW50: 4540.216036 | GX50: 4631.020357 | GY50: 4723.640764 | GZ50: 4818.113579
B52: EV = NPV of FCF | G52: =NPV($E$5,50:50) -> 2991.40754
B53: EV / EBITDA | G53: =G52/G46 -> 10.43842148
B54: EV / NOPAT | G54: =G52/G40 -> 27.194614
B55: EV / Invested Capital | G55: =G52/G34 -> 2.99140754

Sheet Historic Data
C1: 2002 | D1: 2003 | E1: 2004 | F1: 2005 | G1: 2006 | H1: 2007 | I1: 2008 | J1: 2009 | K1: 2010 | L1: 2011 | M1: 2012 | N1: 2013 | O1: 2014 | P1: 2015 | Q1: 2016
B2: HIGHLIGHTS
B3: INCOME STATEMENT
B4: Revenue | C4: 1395 | D4: 1653 | E4: 2363 | F4: 3583 | G4: 3854 | H4: 4861 | I4: 5904 | J4: 5079 | K4: 6920 | L4: 5836 | M4: 7216 | N4: 6084 | O4: 6910 | P4: 8423 | Q4: 10237
B5: Gross profit | C5: 142 | D5: 150 | E5: 120 | F5: 84 | G5: 461 | H5: 825 | I5: 1125 | J5: 836 | K5: 1175 | L5: 725 | M5: 796 | N5: 896 | O5: 1178 | P5: 1505 | Q5: 2126
B6: EBITDA Before Special Items | C6: 124 | D6: 142 | E6: 64 | F6: 9 | G6: 328 | H6: 579 | I6: 749 | J6: 469 | K6: 747 | L6: 305 | M6: 473 | N6: 610 | O6: 929 | P6: 1212 | Q6: 1826
B7: EBIT Before Special Items | C7: 74 | D7: 74 | E7: -49 | F7: -116 | G7: 201 | H7: 443 | I7: 614 | J7: 251 | K7: 468 | L7: -38 | M7: 4 | N7: 211 | O7: 559 | P7: 860 | Q7: 1421
B8: Implied Depreciation | C8: =C6-C7 -> 50 | D8: =D6-D7 -> 68 | E8: 113 | F8: 125 | G8: 127 | H8: 136 | I8: 135 | J8: 218 | K8: 279 | L8: 343 | M8: 469 | N8: 399 | O8: 370 | P8: 352 | Q8: 405
B9: EBITDA After Special Items | I9: 749 | J9: 469 | K9: 684 | L9: 305 | M9: 299 | N9: 530 | O9: 977 | P9: 1258 | Q9: 1826
B10: EBIT After Special Items | I10: 614 | J10: 251 | K10: 310 | L10: -60 | M10: -697 | N10: 102 | O10: 607 | P10: 906 | Q10: 1421
B11: Net financial items | C11: 60 | D11: 53 | E11: -41 | F11: -42 | G11: -40 | H11: 0 | I11: 46 | J11: -48 | K11: -72 | L11: -93 | M11: -14 | N11: -138 | O11: -53 | P11: -15 | Q11: -33
B12: Profit/loss before tax | C12: 60 | D12: 54 | E12: -89 | F12: -158 | G12: 161 | H12: 443 | I12: 660 | J12: 204 | K12: 238 | L12: -153 | M12: -713 | N12: -36 | O12: 523 | P12: 925 | Q12: 1287
B13: Profit/loss for the year | C13: 45 | D13: 36 | E13: -61 | F13: -192 | G13: 111 | H13: 291 | I13: 470 | J13: 125 | K13: 156 | L13: -166 | M13: -963 | N13: -82 | O13: 392 | P13: 685 | Q13: 965
B15: Balance sheet total | C15: 1269 | D15: 1390 | E15: 2881 | F15: 3085 | G15: 3654 | H15: 4296 | I15: 6327 | J15: 7959 | K15: 7066 | L15: 7689 | M15: 6972 | N15: 5640 | O15: 6997 | P15: 8587 | Q15: 9931
B16: Equity | C16: 596 | D16: 613 | E16: 1162 | F16: 962 | G16: 1262 | H16: 1516 | I16: 1587 | J16: 2542 | K16: 2754 | L16: 2576 | M16: 1622 | N16: 1524 | O16: 2379 | P16: 2899 | Q16: 3190
B17: Provisions | C17: 130 | D17: 166 | E17: 181 | F17: 239 | G17: 265 | H17: 305 | I17: 393 | J17: 534 | K17: 370 | L17: 329 | M17: 353 | N17: 388 | O17: 390 | P17: 458 | Q17: 622
B18: Average interest bearing position net | C18: 173 | D18: 236 | E18: -625 | F18: -560 | G18: -299 | H18: 179 | I18: 395 | J18: -55 | K18: -593 | L18: -990 | M18: -1189 | N18: -862 | O18: 494 | P18: 1721 | Q18: 2111
B19: Net working capital | C19: 627 | D19: 603 | E19: 686 | F19: 498 | G19: 122 | H19: -68 | I19: -73 | J19: 317 | K19: 672 | L19: -71 | M19: 233 | N19: -596 | O19: -957 | P19: -1383 | Q19: -1941
B20: Investments in property plant and equipment | E20: 89 | F20: 95 | G20: 153 | H20: 265 | I20: 509 | J20: 606 | K20: 458 | L20: 406 | M20: 167 | N20: 73 | O20: 163 | P20: 220 | Q20: 304
B22: Cash flow from operating activities | C22: -126 | D22: 153 | E22: -30 | F22: 148 | G22: 598 | H22: 701 | I22: 277 | J22: -34 | K22: 56 | L22: 840 | M22: -73 | N22: 1248 | O22: 1126 | P22: 1472 | Q22: 2181
B23: Cash flow from investing activities | C23: 3 | D23: -119 | E23: -201 | F23: -137 | G23: -144 | H23: -317 | I23: -680 | J23: -808 | K23: -789 | L23: -761 | M23: -286 | N23: -239 | O23: -285 | P23: -425 | Q23: -817
B24: Free cash flow | E24: 458 | F24: -46 | G24: -101 | H24: -54 | I24: -403 | J24: -842 | K24: -733 | L24: 79 | M24: -359 | N24: 1009 | O24: 841 | P24: 1047 | Q24: 1364
B25: Cash flow from financing activities | I25: -91 | J25: 1075 | K25: 568 | L25: -13 | M25: 832 | N25: -1150 | O25: 389 | P25: -360 | Q25: -611
B27: Change in cash and cash equivalents less current | C27: -106 | D27: 15 | E27: 227 | F27: -35 | G27: 353 | H27: 330 | I27: -494 | J27: 233 | K27: -165 | L27: 66 | M27: 473 | N27: -141 | O27: 1230 | P27: 687 | Q27: 753
B29: FINANCIAL RATIOS
B30: Gross margin | C30: 10.2 | D30: 9.1 | E30: 5.1 | F30: 2.4 | G30: 12 | H30: 17 | I30: 19.1 | J30: 16.5 | K30: 17 | L30: 12.4 | M30: 11 | N30: 14.7 | O30: 17 | P30: 17.9 | Q30: 20.8
B31: EBITDA margin before special items | C31: 8.9 | D31: 8.6 | E31: 5 | F31: 0.3 | G31: 8.5 | H31: 11.9 | I31: 12.7 | J31: 9.2 | K31: 10.8 | L31: 5.2 | M31: 6.6 | N31: 10 | O31: 13.4 | P31: 14.4 | Q31: 17.8
B32: EBIT margin before special items | C32: 5.3 | D32: 4.5 | E32: -2.1 | F32: -3.2 | G32: 5.2 | H32: 9.1 | I32: 10.4 | J32: 4.9 | K32: 6.8 | L32: -0.7 | M32: 0.1 | N32: 3.5 | O32: 8.1 | P32: 10.2 | Q32: 13.9
B33: EBITDA margin after special items | I33: 12.7 | J33: 9.2 | K33: 9.9 | L33: 5.2 | M33: 4.1 | N33: 8.7 | O33: 14.1 | P33: 14.9 | Q33: 17.8
B34: EBIT margin after special items | I34: 10.4 | J34: 4.9 | K34: 4.5 | L34: -1 | M34: -9.7 | N34: 1.7 | O34: 8.8 | P34: 10.8 | Q34: 13.9
B35: Return on invested capital ROIC before special items | C35: 9.6 | D35: 8.1 | E35: -3.8 | F35: -13.2 | G35: 11.9 | H35: 30.9 | I35: 43.4 | J35: 9.5 | K35: 10.8 | L35: -1.3 | M35: 0.2 | N35: 7.7 | O35: 35.3 | P35: 117.2 | Q35: 265.2
B36: Solvency ratio | C36: 47 | D36: 44.1 | E36: 40.3 | F36: 31.2 | G36: 34.5 | H36: 35.3 | I36: 25.1 | J36: 31.9 | K36: 39 | L36: 33.5 | M36: 23.3 | N36: 27 | O36: 34 | P36: 33.8 | Q36: 32.1
B37: Net interest bearing debt/EBITDA before special items | I37: -0.1 | J37: -0.3 | K37: 0.8 | L37: 1.8 | M37: 1.9 | N37: -0.1 | O37: -1.5 | P37: -1.9 | Q37: -1.8
B38: Return on equity | C38: 7.8 | D38: 5.9 | E38: -6.9 | F38: -18.1 | G38: 10 | H38: 21 | I38: 33.9 | J38: 6.1 | K38: 5.9 | L38: -6.2 | M38: -45.9 | N38: -5.2 | O38: 20.1 | P38: 26.2 | Q38: 32.6
B39: Gearing | C39: 44.5 | D39: 40.4 | E39: 50.1 | F39: 51.2 | G39: 13.8 | H39: 9.9 | I39: 7.8 | J39: 13.8 | K39: 33.2 | L39: 35.7 | M39: 108 | N39: 39.9 | O39: 25.5 | P39: 17.1 | Q39: 15.5
B40: SHARE RATIOS
B41: Earnings per share EUR | C41: 0.4 | D41: 0.3 | E41: -0.5 | F41: -1.1 | G41: 0.6 | H41: 1.6 | I41: 2.5 | J41: 0.6 | K41: 0.8 | L41: -0.8 | M41: -4.8 | N41: -0.4 | O41: 1.8 | P41: 3.1 | Q41: 4.4
B42: Book value per share EUR | C42: 5.7 | D42: 5.8 | E42: 6.6 | F42: 5.5 | G42: 6.8 | H42: 8.2 | I42: 8.6 | J42: 12.5 | K42: 13.5 | L42: 12.6 | M42: 8 | N42: 7.5 | O42: 10.6 | P42: 12.9 | Q42: 14.4
B43: Price / book value EUR | C43: 1.7 | D43: 2.2 | E43: 1.3 | F43: 2.5 | G43: 4.7 | H43: 9 | I43: 4.7 | J43: 3.4 | K43: 1.7 | L43: 0.7 | M43: 0.5 | N43: 2.9 | O43: 2.9 | P43: 5 | Q43: 4.3
B44: P / E ratio | C44: 21.9 | D44: 38.6 | E44: -18.2 | F44: -12.7 | G44: 52.8 | H44: 47.1 | I44: 16.3 | J44: 71 | K44: 30.8 | L44: -10.3
B45: Cash flow from operating activities per share EUR | C45: -1.2 | D45: 1.5 | E45: -0.2 | F45: 0.8 | G45: 3.2 | H45: 3.8 | I45: 1.5 | J45: -0.2 | K45: 0.3 | L45: 4.1 | M45: -0.4 | N45: 6.1 | O45: 5 | P45: 6.6 | Q45: 9.8
B46: Dividend per share EUR | C46: 0.1 | D46: 0 | E46: 0 | F46: 0 | G46: 0 | H46: 0 | I46: 0 | J46: 0 | K46: 0 | L46: 0 | M46: 0 | N46: 0 | O46: 0.52 | P46: 0.91
B47: Payout ratio | C47: 23.5 | D47: 0 | E47: 0 | F47: 0 | G47: 0 | H47: 0 | I47: 0 | J47: 0 | K47: 0 | L47: 0 | M47: 0 | N47: 0 | O47: 29.9 | P47: 29.9
B48: Share price December EUR | C48: 9.4 | D48: 13.1 | E48: 8.8 | F48: 13.9 | G48: 32 | H48: 74 | I48: 40.7 | J48: 42.6 | K48: 23.6 | L48: 8.3 | M48: 4.3 | N48: 21.5 | O48: 30.4 | P48: 64.8 | Q48: 61.7
B49: Average number of shares | C49: 104892414 | D49: 105003966 | E49: 150815322 | F49: 174911173 | G49: 182722520 | H49: 185204103 | I49: 185204103 | J49: 197723281 | K49: 203704103 | L49: 203704103 | M49: 203704103 | N49: 203704103 | O49: 221674711 | P49: 224074513 | Q49: 222360341
B50: Number of shares at the end of the year | C50: 105003966 | D50: 105003966 | I50: 185204103 | J50: 203704103 | K50: 203704103 | L50: 203704103 | M50: 203704103 | N50: 203704103 | O50: 224074513 | P50: 224074513 | Q50: 221544727
B51: Produced and shipped wind turbines MW | C51: 2670 | D51: 2667 | E51: 2784 | F51: 3185 | G51: 4239 | H51: 4502 | I51: 6160 | J51: 6131 | K51: 4057 | L51: 5054 | M51: 6171 | N51: 4513 | O51: 6125 | P51: 7948 | Q51: 9957
F54: 2005 | G54: 2006 | H54: 2007 | I54: 2008 | J54: 2009 | K54: 2010 | L54: 2011 | M54: 2012 | N54: 2013 | O54: 2014 | P54: 2015 | Q54: 2016
B55: Revenue | F55: 3582.6 | G55: 3854.3 | H55: 4861 | I55: 6035 | J55: 5079 | K55: 6920 | L55: 5836 | M55: 7216 | N55: 6084 | O55: 6910 | P55: 8423 | Q55: 10237
B56: Production costs | F56: -3498.1 | G56: -3393.1 | H56: -4036 | I56: -4856 | J56: -4243 | K56: -5745 | L56: -5111 | M56: -6420 | N56: -5188 | O56: -5732 | P56: -6918 | Q56: -8111
B57: Gross profit | F57: =F55+F56 -> 84.5 | G57: 461.2 | H57: 825 | I57: 1179 | J57: 836 | K57: 1175 | L57: 725 | M57: 796 | N57: 896 | O57: 1178 | P57: 1505 | Q57: 2126
B58: Research and development costs | F58: -72.7 | G58: -93.4 | H58: -124 | I58: -119 | J58: -92 | K58: -150 | L58: -203 | M58: -255 | N58: -246 | O58: -213 | P58: -211 | Q58: -227
B59: Distribution costs | F59: -42.7 | G59: -69.5 | H59: -99 | I59: -181 | J59: -178 | K59: -206 | L59: -208 | M59: -204 | N59: -195 | O59: -158 | P59: -186 | Q59: -190
B60: Administration costs | F60: -84.8 | G60: -113.4 | H60: -159 | I60: -211 | J60: -315 | K60: -351 | L60: -352 | M60: -333 | N60: -244 | O60: -248 | P60: -248 | Q60: -288
B61: Operating profit EBIT before special items | F61: =F57+F58+F59+F60 -> -115.7 | G61: =G57+G58+G59+G60 -> 184.9 | H61: 443 | I61: 668 | J61: 251 | K61: 468 | L61: -38 | M61: 4 | N61: 211 | O61: 559 | P61: 860 | Q61: 1421
B62: Special items | F62: 0 | G62: 15.7 | J62: 0 | K62: -158 | L62: -22 | M62: -701 | N62: -109 | O62: 48 | P62: 46 | Q62: 0
B63: Operating profit EBIT | F63: -115.7 | G63: 200.6 | H63: 443 | I63: 668 | J63: =J61+J62 -> 251 | K63: 310 | L63: -60 | M63: -697 | N63: 102 | O63: 607 | P63: 906 | Q63: 1421
B64: Income/loss from investments in associates and joint ventures | F64: -0.1 | G64: -0.1 | H64: 0 | I64: 0 | J64: 1 | K64: 0 | L64: 1 | M64: -2 | N64: 0 | O64: -31 | P64: 34 | Q64: -101
B65: Financial income | F65: 15.7 | G65: 10.5 | H65: 19 | I65: 66 | J65: 14 | K65: 22 | L65: 26 | M65: 78 | N65: 20 | O65: 50 | P65: 61 | Q65: 56
B66: Financial costs | F66: -58.1 | G66: -50.1 | H66: -19 | I66: -20 | J66: -62 | K66: -94 | L66: -120 | M66: -92 | N66: -158 | O66: -103 | P66: -76 | Q66: -89
B67: Profit before tax | F67: =F63+F64+F65+F66 -> -158.2 | G67: 160.9 | H67: 443 | I67: 714 | J67: 204 | K67: 238 | L67: -153 | M67: -713 | N67: -36 | O67: 523 | P67: 925 | Q67: 1287
B68: Income tax | F68: -33.3 | G68: -50 | H68: -152 | I68: -203 | J68: -79 | K68: -82 | L68: -13 | M68: -250 | N68: -46 | O68: -131 | P68: -240 | Q68: -322
B69: Profit for the year | F69: =F67+F68 -> -191.5 | G69: 110.9 | H69: 291 | I69: 511 | J69: 125 | K69: 156 | L69: -166 | M69: -963 | N69: -82 | O69: 392 | P69: 685 | Q69: 965
B70: Earnings per share EPS | F70: 12 | H70: 11 | J70: 12 | L70: 12 | N70: 12 | P70: 4.2
B71: Earnings per share EUR | F71: -1.1 | G71: 0.61 | H71: 1.58 | I71: 2.77 | J71: 0.63 | K71: 0.77 | L71: -0.82 | M71: -4.76 | N71: -0.41 | O71: 1.79 | P71: 3.1 | Q71: 4.41
B72: Earnings per share EUR diluted | F72: -1.1 | G72: 0.61 | H72: 1.57 | I72: 2.76 | J72: 0.63 | K72: 0.77 | L72: -0.82 | M72: -4.76 | N72: -0.41 | O72: 1.77 | P72: 3.07 | Q72: 4.39
F75: 2005 | G75: 2006 | H75: 2007 | I75: 2008 | J75: 2009 | K75: 2010 | L75: 2011 | M75: 2012 | N75: 2013 | O75: 2014 | P75: 2015 | Q75: 2016
B76: Goodwill | F76: 321.5 | G76: 319.7000122 | H76: 320 | I76: 320 | J76: 320 | K76: 320 | L76: 320 | M76: 216 | N76: 215 | O76: 215 | P76: 0 | Q76: 0
B77: Completed development projects | F77: 89.19999695 | G77: 69.30000305 | H77: 48 | I77: 60 | J77: 99 | K77: 169 | L77: 577 | M77: 485 | N77: 331 | O77: 274 | P77: 0 | Q77: 0
B78: Software | F78: 1 | G78: 7.699999809 | H78: 34 | I78: 62 | J78: 73 | K78: 88 | L78: 90 | M78: 64 | N78: 42 | O78: 32 | P78: 0 | Q78: 0
B79: Development projects in progress | F79: 65.59999847 | G79: 80.80000305 | H79: 105 | I79: 202 | J79: 320 | K79: 457 | L79: 256 | M79: 251 | N79: 153 | O79: 137 | P79: 0 | Q79: 0
B80: Total intangible assets | F80: 477.2999878 | G80: 477.5 | H80: 507 | I80: 644 | J80: 812 | K80: 1034 | L80: 1243 | M80: 1016 | N80: 741 | O80: 658 | P80: 687 | Q80: 828
B81: Land and buildings | F81: 216.6999969 | G81: 229.6999969 | H81: 261 | I81: 433 | J81: 661 | K81: 867 | L81: 1020 | M81: 785 | N81: 803 | O81: 695 | P81: 0 | Q81: 0
B82: Plant and machinery | F82: 139.3000031 | G82: 128.1000061 | H82: 143 | I82: 159 | J82: 230 | K82: 304 | L82: 387 | M82: 220 | N82: 219 | O82: 211 | P82: 0 | Q82: 0
B83: Other fixtures and fittings tools and equipment | F83: 95.30000305 | G83: 99 | H83: 116 | I83: 167 | J83: 216 | K83: 248 | L83: 326 | M83: 218 | N83: 151 | O83: 168 | P83: 0 | Q83: 0
B84: Property plant and equipment in progress | F84: 15.10000038 | G84: 33.09999847 | H84: 118 | I84: 271 | J84: 354 | K84: 285 | L84: 165 | M84: 63 | N84: 48 | O84: 58 | P84: 0 | Q84: 0
B85: Property plant and equipment | F85: 466.3999939 | G85: 489.8999939 | H85: 638 | I85: 1030 | J85: 1461 | K85: 1704 | L85: 1898 | M85: 1286 | N85: 1221 | O85: 1132 | P85: 1279 | Q85: 1329
B86: Investments in associates and joint ventures | F86: 2.900000095 | G86: 0.400000006 | H86: 1 | I86: 1 | J86: 1 | K86: 4 | L86: 4 | M86: 1 | N86: 1 | O86: 188 | P86: 225 | Q86: 201
B87: Other investments | F87: 0 | G87: 0 | H87: 0 | I87: 0 | J87: 0 | K87: 0 | L87: 0 | M87: 0 | N87: 0 | O87: 14 | P87: 20 | Q87: 26
B88: Receivables from associated companies | F88: 0.400000006 | G88: 0.3000000119 | H88: 0 | I88: 0 | J88: 0 | K88: 0 | L88: 0 | M88: 0 | N88: 0 | O88: 0 | P88: 0 | Q88: 0
B89: Other receivables | F89: 4.699999809 | G89: 11.30000019 | H89: 13 | I89: 25 | J89: 16 | K89: 25 | L89: 44 | M89: 32 | N89: 34 | O89: 36 | P89: 39 | Q89: 55
B90: Deferred tax | F90: 139.6000061 | G90: 162 | H90: 154 | I90: 186 | J90: 384 | K90: 224 | L90: 333 | M90: 146 | N90: 155 | O90: 170 | P90: 149 | Q90: 208
B91: Marketable securities | F91: 0 | G91: 0 | H91: 0 | I91: 0 | J91: 0 | K91: 0 | L91: 0 | M91: 0 | N91: 0 | O91: 0 | P91: 0 | Q91: 190
B92: Total other non current assets | F92: =SUM(F86:F91) -> 147.600006 | G92: 174.0000002 | H92: 168 | I92: 212 | J92: 401 | K92: 253 | L92: 381 | M92: 179 | N92: 190 | O92: 408 | P92: 433 | Q92: 680
B93: Total non current assets | F93: =F92+F85+F80 -> 1091.299988 | G93: 1141.399994 | H93: 1313 | I93: 1886 | J93: 2674 | K93: 2991 | L93: 3522 | M93: 2481 | N93: 2152 | O93: 2198 | P93: 2399 | Q93: 2837
B94: Inventories | F94: 698.2999878 | G94: 880.7000122 | H94: 1107 | I94: 2867 | J94: 3929 | K94: 2735 | L94: 2546 | M94: 2244 | N94: 1425 | O94: 1509 | P94: 1899 | Q94: 1985
B95: Trade receivables | F95: 620.7999878 | G95: 710.9000244 | H95: 660 | I95: 938 | J95: 525 | K95: 624 | L95: 663 | M95: 792 | N95: 626 | O95: 598 | P95: 795 | Q95: 1038
B96: Sales orders in progress | F96: 378.2999878 | G96: 328.8999939 | H96: 0 | I96: 0 | J96: 0 | K96: 0 | L96: 0 | M96: 0 | N96: 0 | O96: 0 | P96: 0 | Q96: 0
B97: Tax receivables | F97: 0 | G97: 0 | H97: 0 | I97: 0 | J97: 0 | K97: 0 | L97: 0 | M97: 0 | N97: 57 | O97: 65 | P97: 109 | Q97: 49
B98: Corporation tax | F98: 18.79999924 | G98: 14 | H98: 35 | I98: 49 | J98: 93 | K98: 64 | L98: 41 | M98: 63 | N98: 0 | O98: 0 | P98: 0 | Q98: 0
B99: Investments | F99: 9.100000381 | G99: 10.80000019 | H99: 0 | I99: 121 | J99: 0 | K99: 0 | L99: 0 | M99: 0 | N99: 0 | O99: 0 | P99: 0 | Q99: 0
B100: Cash and cash equivalents | F100: 126.3000031 | G100: 444.6000061 | H100: 764 | I100: 162 | J100: 488 | K100: 335 | L100: 375 | M100: 851 | N100: 694 | O100: 2018 | P100: 2765 | Q100: 3550
B101: Other | F101: 133.400034 | G101: 112.2999144 | H101: 417 | I101: 304 | J101: 250 | K101: 317 | L101: 542 | M101: 410 | N101: 354 | O101: 506 | P101: 408 | Q101: 328
B102: Total current assets | F102: =SUM(F94:F101) -> 1985 | G102: 2502.199951 | H102: 2983 | I102: 4441 | J102: 5285 | K102: 4075 | L102: 4167 | M102: 4360 | N102: 3156 | O102: 4696 | P102: 5976 | Q102: 6950
B103: Current and non current assets held for sale | F103: 0 | G103: 0 | H103: 0 | I103: 0 | J103: 0 | K103: 0 | L103: 0 | M103: 0 | N103: 332 | O103: 103 | P103: 0 | Q103: 0
B104: Non current assets held for sale | F104: 0 | G104: 0 | H104: 0 | I104: 0 | J104: 0 | K104: 0 | L104: 0 | M104: 131 | N104: 0 | O104: 0 | P104: 103 | Q104: 95
B105: Other | F105: 9.09991464 | G105: 10.79995707 | H105: 0 | I105: 0 | J105: 0 | K105: 0 | L105: 0 | M105: 0 | N105: 0 | O105: 0 | P105: 109 | Q105: 49
B106: Total assets | F106: =F93+F102+F103+F104+F105 -> 3085.399902 | G106: 3654.399902 | H106: 4296 | I106: 6327 | J106: 7959 | K106: 7066 | L106: 7689 | M106: 6972 | N106: 5640 | O106: 6997 | P106: 8587 | Q106: 9931
B108: Liabilities and Capital
B109: Share capital | F109: 23.5 | G109: 24.89999962 | H109: 25 | I109: 25 | J109: 27 | K109: 27 | L109: 27 | M109: 27 | N109: 27 | O109: 30 | P109: 30 | Q109: 30
B110: Other reserves | F110: 0.3000000119 | G110: 5.900000095 | H110: -3 | I110: -78 | J110: -41 | K110: 9 | L110: 7 | M110: 5 | N110: -10 | O110: 498 | P110: 138 | Q110: 61
B111: Retained earnings | F111: 938 | G111: 1230.900024 | H111: 1494 | I111: 1640 | J111: 2556 | K111: 2718 | L111: 2542 | M111: 1590 | N111: 1507 | O111: 1851 | P111: 2731 | Q111: 3099
B112: Shareholders in Vestas Wind Systems A/S’ share of equity | F112: 0 | G112: 0 | H112: 1516 | I112: 0 | J112: 0 | K112: 0 | L112: 0 | M112: 0 | N112: 0 | O112: 0 | P112: 0 | Q112: 0
B113: Total equity | F113: 961.7999878 | G113: 1261.699951 | H113: 1516 | I113: 1587 | J113: 2542 | K113: 2754 | L113: 2576 | M113: 1622 | N113: 1524 | O113: 2379 | P113: 2899 | Q113: 3190
B114: Minority interests | F114: 0 | G114: 0 | H114: 0 | I114: 0 | J114: 0 | K114: 0 | L114: 0 | M114: 0 | N114: 0 | O114: 0 | P114: 0 | Q114: 0
B115: Provisions | F115: 88.59999847 | G115: 98.80000305 | H115: 107 | I115: 122 | J115: 137 | K115: 139 | L115: 145 | M115: 175 | N115: 200 | O115: 231 | P115: 314 | Q115: 457
B116: Pension obligations | F116: 2 | G116: 2.799999952 | H116: 2 | I116: 2 | J116: 2 | K116: 2 | L116: 2 | M116: 2 | N116: 0 | O116: 0 | P116: 0 | Q116: 0
B117: Tax payables | F117: 0 | G117: 0 | H117: 0 | I117: 0 | J117: 0 | K117: 0 | L117: 0 | M117: 0 | N117: 39 | O117: 41 | P117: 44 | Q117: 37
B118: Other liabilities | F118: 333.7000122 | G118: 187.8000031 | H118: 271 | I118: 395 | J118: 436 | K118: 323 | L118: 356 | M118: 412 | N118: 2 | O118: 10 | P118: 10 | Q118: 90
B119: Construction contracts in progress | F119: 0 | G119: 0 | H119: 260 | I119: 123 | J119: 16 | K119: 40 | L119: 147 | M119: 21 | N119: 47 | O119: 104 | P119: 15 | Q119: 19
B120: Financial debts | F120: 0 | G120: 0 | H120: 125 | I120: 14 | J120: 339 | K120: 910 | L120: 914 | M120: 1458 | N120: 604 | O120: 3 | P120: 495 | Q120: 496
B121: Other | F121: 110.2999649 | G121: -21.29999995 | H121: -528 | I121: -509 | J121: -331 | K121: -357 | L121: -491 | M121: -416 | N121: -65 | O121: -128 | P121: 5 | Q121: 15
B122: Total non current liabilities | F122: 534.5999756 | G122: 268.1000061 | H122: 237 | I122: 147 | J122: 599 | K122: 1057 | L122: 1073 | M122: 1652 | N122: 827 | O122: 261 | P122: 883 | Q122: 1114
B123: Prepayments from customers | F123: 488.7000122 | G123: 925.7999878 | H123: 82 | I123: 2677 | J123: 2889 | K123: 1546 | L123: 1865 | M123: 1716 | N123: 1568 | O123: 2156 | P123: 2258 | Q123: 3002
B124: Trade payables | F124: 519.7999878 | G124: 807.5999756 | H124: 889 | I124: 1030 | J124: 1062 | K124: 1120 | L124: 1563 | M124: 1008 | N124: 832 | O124: 945 | P124: 1760 | Q124: 1666
B125: Financial liabilities | F125: 139.3999939 | G125: 227.9001312 | H125: 1572 | I125: 886 | J125: 867 | K125: 589 | L125: 612 | M125: 974 | N125: 403 | O125: 1256 | P125: 787 | Q125: 959
B126: Liabilities directly associated with current and non current assets held for sale | F126: 441.1 | G126: 163.3 | H126: 0 | I126: 0 | J126: 0 | K126: 0 | L126: 0 | M126: 0 | N126: 486 | O126: 0 | P126: 0 | Q126: 0
B127: Total current liabilities | F127: =SUM(F123:F126) -> 1588.999994 | G127: 2124.600095 | H127: 2543 | I127: 4593 | J127: 4818 | K127: 3255 | L127: 4040 | M127: 3698 | N127: 3289 | O127: 4357 | P127: 4805 | Q127: 5627
B128: Total liabilities | F128: =F127+F122 -> 2123.599969 | G128: 2392.700101 | H128: 2780 | I128: 4740 | J128: 5417 | K128: 4312 | L128: 5113 | M128: 5350 | N128: 4116 | O128: 4618 | P128: 5688 | Q128: 6741
B129: Total equity and liabilities | F129: =F128+F113 -> 3085.399957 | G129: 3654.400052 | H129: 4296 | I129: 6327 | J129: 7959 | K129: 7066 | L129: 7689 | M129: 6972 | N129: 5640 | O129: 6997 | P129: 8587 | Q129: 9931
F131: 2005 | G131: 2006 | H131: 2007 | I131: 2008 | J131: 2009 | K131: 2010 | L131: 2011 | M131: 2012 | N131: 2013 | O131: 2014 | P131: 2015 | Q131: 2016
B132: Profit for the year | F132: -191.5 | G132: 110.9000015 | H132: 291 | I132: 511 | J132: 125 | K132: 156 | L132: -166 | M132: -963 | N132: -82 | O132: 392 | P132: 685 | Q132: 965
B133: Adjustments for non cash transactions | F133: 235.6000061 | G133: 241.6000061 | H133: 348 | I133: 258 | J133: 369 | K133: 411 | L133: 366 | M133: 1345 | N133: 677 | O133: 676 | P133: 603 | Q133: 1086
B134: Interest received etc | F134: 15.69999981 | G134: 10.5 | H134: 19 | I134: 32 | J134: 8 | K134: 22 | L134: 22 | M134: 38 | N134: 5 | O134: 8 | P134: 14 | Q134: 25
B135: Financial costs paid | F135: -58.09999847 | G135: -50.09999847 | H135: -19 | I135: -9 | J135: -31 | K135: -49 | L135: -60 | M135: -92 | N135: -124 | O135: -62 | P135: -43 | Q135: -71
B136: Income tax paid | F136: -40.59999847 | G136: -90.90000153 | H136: -128 | I136: -148 | J136: -114 | K136: -131 | L136: -69 | M136: -97 | N136: -57 | O136: -148 | P136: -184 | Q136: -212
B137: Cash flow from operating activities before change in net working capital | F137: -38.90000153 | G137: 222 | H137: 511 | I137: 644 | J137: 357 | K137: 409 | L137: 93 | M137: 231 | N137: 419 | O137: 866 | P137: 1075 | Q137: 1793
B138: Change in net working capital | F138: 186.8000031 | G138: 375.5 | H138: 190 | I138: -367 | J138: -391 | K138: -353 | L138: 747 | M138: -304 | N138: 829 | O138: 260 | P138: 397 | Q138: 388
B139: Cash flow from operating activities | F139: 147.8999939 | G139: 597.5 | H139: 701 | I139: 277 | J139: -34 | K139: 56 | L139: 840 | M139: -73 | N139: 1248 | O139: 1126 | P139: 1472 | Q139: 2181
B140: Purchase of intangible assets | F140: -50.09999847 | G140: -34.79999924 | H140: -82 | I140: -169 | J140: -227 | K140: -328 | L140: -327 | M140: -169 | N140: -189 | O140: -115 | P140: -148 | Q140: -202
B141: Purchase of property plant and equipment | F141: -94.69999695 | G141: -153.3999939 | H141: -265 | I141: -509 | J141: -606 | K141: -458 | L141: -406 | M141: -167 | N141: -73 | O141: -163 | P141: -220 | Q141: -287
B142: Purchase of other non current assets | F142: -5.400000095 | G142: -6.599999905 | H142: 0 | I142: -12 | J142: 0 | K142: -12 | L142: -19 | M142: 0 | N142: 0 | O142: -16 | P142: -3 | Q142: 0
B143: Disposal of property plant and equipment | F143: 18.20000076 | G143: 20 | H143: 30 | I143: 10 | J143: 15 | K143: 11 | L143: 12 | M143: 45 | N143: 20 | O143: 8 | P143: 1 | Q143: 21
B144: Purchase of marketable securities | F144: 0 | G144: 0 | H144: 0 | I144: 0 | J144: 0 | K144: 0 | L144: 0 | M144: 0 | N144: 0 | O144: 0 | P144: 0 | Q144: -200
B145: Acquisition of subsidiaries net of cash | F145: -6.400000095 | G145: 0 | H145: 0 | I145: 0 | J145: 0 | K145: -2 | L145: -21 | M145: 0 | N145: 0 | O145: 0 | P145: -55 | Q145: -83
B146: Disposal of other non current assets | F146: 1.600000024 | G146: 1 | H146: 0 | I146: 0 | J146: 10 | K146: 0 | L146: 0 | M146: 5 | N146: 3 | O146: 1 | P146: 0 | Q146: 0
B147: Acquisition of associates and joint ventures | F147: 0 | G147: 0 | H147: 0 | I147: 0 | J147: 0 | K147: 0 | L147: 0 | M147: 0 | N147: 0 | O147: 0 | P147: 0 | Q147: -66
B148: Disposal of companies | F148: 0 | G148: 29.79999924 | H148: 0 | I148: 0 | J148: 0 | K148: 0 | L148: 0 | M148: 0 | N148: 0 | O148: 0 | P148: 0 | Q148: 0
B149: Cash flow from investing activities | F149: -136.8000031 | G149: -144 | H149: -317 | I149: -680 | J149: -808 | K149: -789 | L149: -761 | M149: -286 | N149: -239 | O149: -285 | P149: -425 | Q149: -817
B150: Capital infusion gross | F150: 0 | G150: 186.1000061 | H150: 0 | I150: 0 | J150: 0 | K150: 0 | L150: 0 | M150: 0 | N150: 0 | O150: 0 | P150: 0 | Q150: 0
B151: Free cash flow | F151: 0 | G151: 0 | H151: 0 | I151: 0 | J151: 792 | K151: 0 | L151: 79 | M151: -359 | N151: 1009 | O151: 841 | P151: 1047 | Q151: 1364
B152: Capital increase net of transaction costs | F152: 0 | G152: 0 | H152: 0 | I152: 0 | J152: 0 | K152: 0 | L152: 0 | M152: 0 | N152: 0 | O152: 432 | P152: 0 | Q152: 0
B153: Capital increase | F153: 0 | G153: 0 | H153: 0 | I153: 0 | J153: -1 | K153: 0 | L153: 0 | M153: 0 | N153: 0 | O153: 0 | P153: 0 | Q153: 0
B154: Disposal of treasury shares | F154: 0 | G154: 0 | H154: 0 | I154: 0 | J154: 0 | K154: 0 | L154: 0 | M154: 0 | N154: 0 | O154: 0 | P154: 40 | Q154: 11
B155: Repayment of non current liabilities | F155: -62.59999847 | G155: -289.7000122 | H155: -24 | I155: -91 | J155: 284 | K155: 596 | L155: 0 | M155: 0 | N155: 0 | O155: 0 | P155: 0 | Q155: 0
B156: Acquisition of treasury shares | F156: 0 | G156: -3.400000095 | H156: -30 | I156: 0 | J156: 0 | K156: -28 | L156: -17 | M156: 0 | N156: -7 | O156: -43 | P156: -176 | Q156: -417
B157: Dividends paid | F157: 0 | G157: 0 | H157: 0 | I157: 0 | J157: 0 | K157: 0 | L157: 0 | M157: 0 | N157: 0 | O157: 0 | P157: -116 | Q157: -201
B158: Raising of financial debt | F158: 0 | G158: 0 | H158: 0 | I158: 0 | J158: 0 | K158: 0 | L158: 0 | M158: 0 | N158: 0 | O158: 0 | P158: 496 | Q158: 0
B159: Repayment of financial debts | F159: 0 | G159: 0 | H159: 0 | I159: 0 | J159: 0 | K159: 0 | L159: 0 | M159: -50 | N159: -1143 | O159: 0 | P159: -604 | Q159: -4
B160: Raising of financial debts | F160: 0 | G160: 0 | H160: 0 | I160: 0 | J160: 0 | K160: 0 | L160: 4 | M160: 882 | N160: 0 | O160: 0 | P160: 0 | Q160: 0
B161: Raising of non current liabilities | F161: 16.29999924 | G161: 6.599999905 | H161: 0 | I161: 0 | J161: 1075 | K161: 568 | L161: 0 | M161: 0 | N161: 0 | O161: 0 | P161: 0 | Q161: 0
B162: Cash flow from financing activities | F162: -46.29999924 | G162: -100.4000015 | H162: -54 | I162: -91 | J162: 233 | K162: -165 | L162: -13 | M162: 832 | N162: -1150 | O162: 389 | P162: -360 | Q162: -611
B163: Net increase in cash and cash equivalents | F163: -35.20000076 | G163: 353.1000061 | H163: 330 | I163: -494 | J163: 219 | K163: 479 | L163: 66 | M163: 473 | N163: -141 | O163: 1230 | P163: 687 | Q163: 753
B164: Cash and cash equivalents at January | F164: 114 | G164: 89.90000153 | H164: 443 | I164: 763 | J164: 27 | K164: 18 | L164: 332 | M164: 370 | N164: 847 | O164: 690 | P164: 2014 | Q164: 2765
B165: Exchange rate adjustments on cash and cash equivalents | F165: 11.10000038 | G165: 0.1000000015 | H165: -10 | I165: -50 | J165: 479 | K165: 332 | L165: -28 | M165: 4 | N165: -16 | O165: 94 | P165: 64 | Q165: 32
B166: Cash and cash equivalents without disposal restrictions | F166: 76 | G166: 406.8999939 | H166: 750 | I166: 150 | J166: 0 | K166: 0 | L166: 351 | M166: 691 | N166: 623 | O166: 1819 | P166: 2569 | Q166: 3215
B167: Cash and cash equivalents with disposal restrictions | F167: 50.29999924 | G167: 37.70000076 | H167: 0 | I167: 0 | J167: 0 | K167: 0 | L167: 0 | M167: 0 | N167: 0 | O167: 0 | P167: 196 | Q167: 335
B168: Cash at bank and in hand with disposal restrictions | F168: 0 | G168: 0 | H168: 14 | I168: 12 | J168: 0 | K168: 0 | L168: 24 | M168: 160 | N168: 71 | O168: 199 | P168: 0 | Q168: 0
B169: Investments | F169: 0 | G169: 0 | H169: 0 | I169: 121 | J169: 488 | K169: 335 | L169: 0 | M169: 0 | N169: 0 | O169: 0 | P169: 0 | Q169: 0
B170: Total cash and cash equivalents | F170: 126.3000031 | G170: 444.6000061 | H170: 0 | I170: 0 | J170: 0 | K170: 0 | L170: 0 | M170: 0 | N170: 0 | O170: 0 | P170: 0 | Q170: 0
B171: Total cash at bank and in hand | F171: 0 | G171: 0 | H171: 764 | I171: 283 | J171: -9 | K171: -3 | L171: 375 | M171: 851 | N171: 694 | O171: 2018 | P171: 0 | Q171: 0
B172: Current portion of bank debt | F172: -36.40000153 | G172: -1.5 | H172: -1 | I172: -64 | J172: 479 | K172: 332 | L172: -5 | M172: -4 | N172: -4 | O172: -4 | P172: 0 | Q172: 0
B173: Cash and cash equivalents at December | F173: 89.90000153 | G173: 443.1000061 | H173: 763 | I173: 219 | J173: 20 | K173: 10 | L173: 370 | M173: 847 | N173: 690 | O173: 2014 | P173: 2765 | Q173: 3550

Sheet Financial Model
A1: Timeline
B2: Year | I2: 2005 | J2: 2006 | K2: 2007 | L2: 2008 | M2: 2009 | N2: 2010 | O2: 2011 | P2: 2012 | Q2: 2013 | R2: 2014 | S2: 2015 | T2: 2016 | U2: 2017 | V2: 2018 | W2: 2019 | X2: 2020 | Y2: 2021 | Z2: 2022 | AA2: 2023 | AB2: 2024 | AC2: 2025
B3: Historic Switch | F3: 2016 | I3: =I2<=$F$3 -> TRUE | J3: TRUE | K3: TRUE | L3: TRUE | M3: TRUE | N3: TRUE | O3: TRUE | P3: TRUE | Q3: TRUE | R3: TRUE | S3: TRUE | T3: TRUE | U3: FALSE | V3: FALSE | W3: FALSE | X3: FALSE | Y3: FALSE | Z3: FALSE | AA3: FALSE | AB3: FALSE | AC3: FALSE
B4: Last Historic Year | F4: ='Financial Model'!F3 -> 2016 | I4: =I2=$F$4 -> FALSE | J4: FALSE | K4: FALSE | L4: FALSE | M4: FALSE | N4: FALSE | O4: FALSE | P4: FALSE | Q4: FALSE | R4: FALSE | S4: FALSE | T4: TRUE | U4: FALSE | V4: FALSE | W4: FALSE | X4: FALSE | Y4: FALSE | Z4: FALSE | AA4: FALSE | AB4: FALSE | AC4: FALSE
A7: Historic Profit and Loss
B8: MW Delivered | I8: ='Historic Data'!F51 -> 3185 | J8: ='Historic Data'!G51 -> 4239 | K8: ='Historic Data'!H51 -> 4502 | L8: ='Historic Data'!I51 -> 6160 | M8: ='Historic Data'!J51 -> 6131 | N8: ='Historic Data'!K51 -> 4057 | O8: ='Historic Data'!L51 -> 5054 | P8: ='Historic Data'!M51 -> 6171 | Q8: ='Historic Data'!N51 -> 4513 | R8: ='Historic Data'!O51 -> 6125 | S8: ='Historic Data'!P51 -> 7948 | T8: ='Historic Data'!Q51 -> 9957 | U8: ='Historic Data'!R51 -> 0 | V8: ='Historic Data'!S51 -> 0 | W8: ='Historic Data'!T51 -> 0 | X8: ='Historic Data'!U51 -> 0 | Y8: ='Historic Data'!V51 -> 0 | Z8: ='Historic Data'!W51 -> 0 | AA8: ='Historic Data'!X51 -> 0 | AB8: ='Historic Data'!Y51 -> 0 | AC8: ='Historic Data'!Z51 -> 0
B9: Revenues | I9: ='Historic Data'!F55 -> 3582.6 | J9: ='Historic Data'!G55 -> 3854.3 | K9: ='Historic Data'!H55 -> 4861 | L9: ='Historic Data'!I55 -> 6035 | M9: ='Historic Data'!J55 -> 5079 | N9: ='Historic Data'!K55 -> 6920 | O9: ='Historic Data'!L55 -> 5836 | P9: ='Historic Data'!M55 -> 7216 | Q9: ='Historic Data'!N55 -> 6084 | R9: ='Historic Data'!O55 -> 6910 | S9: ='Historic Data'!P55 -> 8423 | T9: ='Historic Data'!Q55 -> 10237 | U9: ='Historic Data'!R55 -> 0 | V9: ='Historic Data'!S55 -> 0 | W9: ='Historic Data'!T55 -> 0 | X9: ='Historic Data'!U55 -> 0 | Y9: ='Historic Data'!V55 -> 0 | Z9: ='Historic Data'!W55 -> 0 | AA9: ='Historic Data'!X55 -> 0 | AB9: ='Historic Data'!Y55 -> 0 | AC9: ='Historic Data'!Z55 -> 0
B10: Average Price per MW | I10: =IF(I8,I9/I8) -> 1.124835165 | J10: 0.909247464 | K10: 1.079742337 | L10: 0.9797077922 | M10: 0.8284129832 | N10: 1.705693862 | O10: 1.154728928 | P10: 1.169340463 | Q10: 1.348105473 | R10: 1.128163265 | S10: 1.059763463 | T10: 1.02812092 | U10: FALSE | V10: FALSE | W10: FALSE | X10: FALSE | Y10: FALSE | Z10: FALSE | AA10: FALSE | AB10: FALSE | AC10: FALSE
B12: Production Cost | I12: =-'Historic Data'!F56 -> 3498.1 | J12: =-'Historic Data'!G56 -> 3393.1 | K12: =-'Historic Data'!H56 -> 4036 | L12: =-'Historic Data'!I56 -> 4856 | M12: =-'Historic Data'!J56 -> 4243 | N12: =-'Historic Data'!K56 -> 5745 | O12: =-'Historic Data'!L56 -> 5111 | P12: =-'Historic Data'!M56 -> 6420 | Q12: =-'Historic Data'!N56 -> 5188 | R12: =-'Historic Data'!O56 -> 5732 | S12: =-'Historic Data'!P56 -> 6918 | T12: =-'Historic Data'!Q56 -> 8111 | U12: =-'Historic Data'!R56 -> 0 | V12: =-'Historic Data'!S56 -> 0 | W12: =-'Historic Data'!T56 -> 0 | X12: =-'Historic Data'!U56 -> 0 | Y12: =-'Historic Data'!V56 -> 0 | Z12: =-'Historic Data'!W56 -> 0 | AA12: =-'Historic Data'!X56 -> 0 | AB12: =-'Historic Data'!Y56 -> 0 | AC12: =-'Historic Data'!Z56 -> 0
B13: Research and development costs | I13: =-'Historic Data'!F58 -> 72.7 | J13: =-'Historic Data'!G58 -> 93.4 | K13: =-'Historic Data'!H58 -> 124 | L13: =-'Historic Data'!I58 -> 119 | M13: =-'Historic Data'!J58 -> 92 | N13: =-'Historic Data'!K58 -> 150 | O13: =-'Historic Data'!L58 -> 203 | P13: =-'Historic Data'!M58 -> 255 | Q13: =-'Historic Data'!N58 -> 246 | R13: =-'Historic Data'!O58 -> 213 | S13: =-'Historic Data'!P58 -> 211 | T13: =-'Historic Data'!Q58 -> 227 | U13: =-'Historic Data'!R58 -> 0 | V13: =-'Historic Data'!S58 -> 0 | W13: =-'Historic Data'!T58 -> 0 | X13: =-'Historic Data'!U58 -> 0 | Y13: =-'Historic Data'!V58 -> 0 | Z13: =-'Historic Data'!W58 -> 0 | AA13: =-'Historic Data'!X58 -> 0 | AB13: =-'Historic Data'!Y58 -> 0 | AC13: =-'Historic Data'!Z58 -> 0
B14: Distribution costs | I14: =-'Historic Data'!F59 -> 42.7 | J14: =-'Historic Data'!G59 -> 69.5 | K14: =-'Historic Data'!H59 -> 99 | L14: =-'Historic Data'!I59 -> 181 | M14: =-'Historic Data'!J59 -> 178 | N14: =-'Historic Data'!K59 -> 206 | O14: =-'Historic Data'!L59 -> 208 | P14: =-'Historic Data'!M59 -> 204 | Q14: =-'Historic Data'!N59 -> 195 | R14: =-'Historic Data'!O59 -> 158 | S14: =-'Historic Data'!P59 -> 186 | T14: =-'Historic Data'!Q59 -> 190 | U14: =-'Historic Data'!R59 -> 0 | V14: =-'Historic Data'!S59 -> 0 | W14: =-'Historic Data'!T59 -> 0 | X14: =-'Historic Data'!U59 -> 0 | Y14: =-'Historic Data'!V59 -> 0 | Z14: =-'Historic Data'!W59 -> 0 | AA14: =-'Historic Data'!X59 -> 0 | AB14: =-'Historic Data'!Y59 -> 0 | AC14: =-'Historic Data'!Z59 -> 0
B15: Administration costs | I15: =-'Historic Data'!F60 -> 84.8 | J15: =-'Historic Data'!G60 -> 113.4 | K15: =-'Historic Data'!H60 -> 159 | L15: =-'Historic Data'!I60 -> 211 | M15: =-'Historic Data'!J60 -> 315 | N15: =-'Historic Data'!K60 -> 351 | O15: =-'Historic Data'!L60 -> 352 | P15: =-'Historic Data'!M60 -> 333 | Q15: =-'Historic Data'!N60 -> 244 | R15: =-'Historic Data'!O60 -> 248 | S15: =-'Historic Data'!P60 -> 248 | T15: =-'Historic Data'!Q60 -> 288 | U15: =-'Historic Data'!R60 -> 0 | V15: =-'Historic Data'!S60 -> 0 | W15: =-'Historic Data'!T60 -> 0 | X15: =-'Historic Data'!U60 -> 0 | Y15: =-'Historic Data'!V60 -> 0 | Z15: =-'Historic Data'!W60 -> 0 | AA15: =-'Historic Data'!X60 -> 0 | AB15: =-'Historic Data'!Y60 -> 0 | AC15: =-'Historic Data'!Z60 -> 0
B16: Total Operating Costs | I16: =SUM(I12:I15) -> 3698.3 | J16: 3669.4 | K16: 4418 | L16: 5367 | M16: 4828 | N16: 6452 | O16: 5874 | P16: 7212 | Q16: 5873 | R16: 6351 | S16: 7563 | T16: 8816 | U16: 0 | V16: 0 | W16: 0 | X16: 0 | Y16: 0 | Z16: 0 | AA16: 0 | AB16: 0 | AC16: 0
B17: Operating Profit Before Special Items (EBIT) | I17: =I9-I16 -> -115.7 | J17: =J9-J16 -> 184.9 | K17: 443 | L17: 668 | M17: 251 | N17: 468 | O17: -38 | P17: 4 | Q17: 211 | R17: 559 | S17: 860 | T17: 1421 | U17: 0 | V17: 0 | W17: 0 | X17: 0 | Y17: 0 | Z17: 0 | AA17: 0 | AB17: 0 | AC17: 0
B18: From Summary | I18: ='Historic Data'!F7 -> -116 | J18: ='Historic Data'!G7 -> 201 | K18: ='Historic Data'!H7 -> 443 | L18: ='Historic Data'!I7 -> 614 | M18: ='Historic Data'!J7 -> 251 | N18: ='Historic Data'!K7 -> 468 | O18: ='Historic Data'!L7 -> -38 | P18: ='Historic Data'!M7 -> 4 | Q18: ='Historic Data'!N7 -> 211 | R18: ='Historic Data'!O7 -> 559 | S18: ='Historic Data'!P7 -> 860 | T18: ='Historic Data'!Q7 -> 1421 | U18: ='Historic Data'!R7 -> 0 | V18: ='Historic Data'!S7 -> 0 | W18: ='Historic Data'!T7 -> 0 | X18: ='Historic Data'!U7 -> 0 | Y18: ='Historic Data'!V7 -> 0 | Z18: ='Historic Data'!W7 -> 0 | AA18: ='Historic Data'!X7 -> 0 | AB18: ='Historic Data'!Y7 -> 0 | AC18: ='Historic Data'!Z7 -> 0
B19: Difference | I19: =I18-I17 -> -0.3 | J19: =J18-J17 -> 16.1 | K19: 0 | L19: -54 | M19: 0 | N19: 0 | O19: 0 | P19: 0 | Q19: 0 | R19: 0 | S19: 0 | T19: 0 | U19: 0 | V19: 0 | W19: 0 | X19: 0 | Y19: 0 | Z19: 0 | AA19: 0 | AB19: 0 | AC19: 0
B20: EBITDA Before Special Items | I20: ='Historic Data'!F6 -> 9 | J20: ='Historic Data'!G6 -> 328 | K20: ='Historic Data'!H6 -> 579 | L20: ='Historic Data'!I6 -> 749 | M20: ='Historic Data'!J6 -> 469 | N20: ='Historic Data'!K6 -> 747 | O20: ='Historic Data'!L6 -> 305 | P20: ='Historic Data'!M6 -> 473 | Q20: ='Historic Data'!N6 -> 610 | R20: ='Historic Data'!O6 -> 929 | S20: ='Historic Data'!P6 -> 1212 | T20: ='Historic Data'!Q6 -> 1826 | U20: ='Historic Data'!R6 -> 0 | V20: ='Historic Data'!S6 -> 0 | W20: ='Historic Data'!T6 -> 0 | X20: ='Historic Data'!U6 -> 0 | Y20: ='Historic Data'!V6 -> 0 | Z20: ='Historic Data'!W6 -> 0 | AA20: ='Historic Data'!X6 -> 0 | AB20: ='Historic Data'!Y6 -> 0 | AC20: ='Historic Data'!Z6 -> 0
B21: Implied Depreciation | I21: =I20-I17 -> 124.7 | J21: =J20-J17 -> 143.1 | K21: 136 | L21: 81 | M21: 218 | N21: 279 | O21: 343 | P21: 469 | Q21: 399 | R21: 370 | S21: 352 | T21: 405 | U21: 0 | V21: 0 | W21: 0 | X21: 0 | Y21: 0 | Z21: 0 | AA21: 0 | AB21: 0 | AC21: 0
B22: ='Historic Data'!B62 -> Special items | I22: ='Historic Data'!F62 -> 0 | J22: ='Historic Data'!G62 -> 15.7 | K22: ='Historic Data'!H62 -> 0 | L22: ='Historic Data'!I62 -> 0 | M22: ='Historic Data'!J62 -> 0 | N22: ='Historic Data'!K62 -> -158 | O22: ='Historic Data'!L62 -> -22 | P22: ='Historic Data'!M62 -> -701 | Q22: ='Historic Data'!N62 -> -109 | R22: ='Historic Data'!O62 -> 48 | S22: ='Historic Data'!P62 -> 46 | T22: ='Historic Data'!Q62 -> 0 | U22: ='Historic Data'!R62 -> 0 | V22: ='Historic Data'!S62 -> 0 | W22: ='Historic Data'!T62 -> 0 | X22: ='Historic Data'!U62 -> 0 | Y22: ='Historic Data'!V62 -> 0 | Z22: ='Historic Data'!W62 -> 0 | AA22: ='Historic Data'!X62 -> 0 | AB22: ='Historic Data'!Y62 -> 0 | AC22: ='Historic Data'!Z62 -> 0
B23: Income/loss from investments in associates and joint ventures | I23: ='Historic Data'!F64 -> -0.1 | J23: ='Historic Data'!G64 -> -0.1 | K23: ='Historic Data'!H64 -> 0 | L23: ='Historic Data'!I64 -> 0 | M23: ='Historic Data'!J64 -> 1 | N23: ='Historic Data'!K64 -> 0 | O23: ='Historic Data'!L64 -> 1 | P23: ='Historic Data'!M64 -> -2 | Q23: ='Historic Data'!N64 -> 0 | R23: ='Historic Data'!O64 -> -31 | S23: ='Historic Data'!P64 -> 34 | T23: ='Historic Data'!Q64 -> -101 | U23: ='Historic Data'!R64 -> 0 | V23: ='Historic Data'!S64 -> 0 | W23: ='Historic Data'!T64 -> 0 | X23: ='Historic Data'!U64 -> 0 | Y23: ='Historic Data'!V64 -> 0 | Z23: ='Historic Data'!W64 -> 0 | AA23: ='Historic Data'!X64 -> 0 | AB23: ='Historic Data'!Y64 -> 0 | AC23: ='Historic Data'!Z64 -> 0
B24: Financial income | I24: ='Historic Data'!F65 -> 15.7 | J24: ='Historic Data'!G65 -> 10.5 | K24: ='Historic Data'!H65 -> 19 | L24: ='Historic Data'!I65 -> 66 | M24: ='Historic Data'!J65 -> 14 | N24: ='Historic Data'!K65 -> 22 | O24: ='Historic Data'!L65 -> 26 | P24: ='Historic Data'!M65 -> 78 | Q24: ='Historic Data'!N65 -> 20 | R24: ='Historic Data'!O65 -> 50 | S24: ='Historic Data'!P65 -> 61 | T24: ='Historic Data'!Q65 -> 56 | U24: ='Historic Data'!R65 -> 0 | V24: ='Historic Data'!S65 -> 0 | W24: ='Historic Data'!T65 -> 0 | X24: ='Historic Data'!U65 -> 0 | Y24: ='Historic Data'!V65 -> 0 | Z24: ='Historic Data'!W65 -> 0 | AA24: ='Historic Data'!X65 -> 0 | AB24: ='Historic Data'!Y65 -> 0 | AC24: ='Historic Data'!Z65 -> 0
B25: Financial costs | I25: ='Historic Data'!F66 -> -58.1 | J25: ='Historic Data'!G66 -> -50.1 | K25: ='Historic Data'!H66 -> -19 | L25: ='Historic Data'!I66 -> -20 | M25: ='Historic Data'!J66 -> -62 | N25: ='Historic Data'!K66 -> -94 | O25: ='Historic Data'!L66 -> -120 | P25: ='Historic Data'!M66 -> -92 | Q25: ='Historic Data'!N66 -> -158 | R25: ='Historic Data'!O66 -> -103 | S25: ='Historic Data'!P66 -> -76 | T25: ='Historic Data'!Q66 -> -89 | U25: ='Historic Data'!R66 -> 0 | V25: ='Historic Data'!S66 -> 0 | W25: ='Historic Data'!T66 -> 0 | X25: ='Historic Data'!U66 -> 0 | Y25: ='Historic Data'!V66 -> 0 | Z25: ='Historic Data'!W66 -> 0 | AA25: ='Historic Data'!X66 -> 0 | AB25: ='Historic Data'!Y66 -> 0 | AC25: ='Historic Data'!Z66 -> 0
B26: Profit Before Tax | I26: =I9-I16+I22+I23+I24+I25 -> -158.2 | J26: =J9-J16+J22+J23+J24+J25 -> 160.9 | K26: 443 | L26: 714 | M26: 204 | N26: 238 | O26: -153 | P26: -713 | Q26: -36 | R26: 523 | S26: 925 | T26: 1287 | U26: 0 | V26: 0 | W26: 0 | X26: 0 | Y26: 0 | Z26: 0 | AA26: 0 | AB26: 0 | AC26: 0
B27: Check | I27: ='Historic Data'!F67 -> -158.2 | J27: ='Historic Data'!G67 -> 160.9 | K27: ='Historic Data'!H67 -> 443 | L27: ='Historic Data'!I67 -> 714 | M27: ='Historic Data'!J67 -> 204 | N27: ='Historic Data'!K67 -> 238 | O27: ='Historic Data'!L67 -> -153 | P27: ='Historic Data'!M67 -> -713 | Q27: ='Historic Data'!N67 -> -36 | R27: ='Historic Data'!O67 -> 523 | S27: ='Historic Data'!P67 -> 925 | T27: ='Historic Data'!Q67 -> 1287 | U27: ='Historic Data'!R67 -> 0 | V27: ='Historic Data'!S67 -> 0 | W27: ='Historic Data'!T67 -> 0 | X27: ='Historic Data'!U67 -> 0 | Y27: ='Historic Data'!V67 -> 0 | Z27: ='Historic Data'!W67 -> 0 | AA27: ='Historic Data'!X67 -> 0 | AB27: ='Historic Data'!Y67 -> 0 | AC27: ='Historic Data'!Z67 -> 0
B28: Difference | I28: =I27-I26 -> 0 | J28: 0 | K28: 0 | L28: 0 | M28: 0 | N28: 0 | O28: 0 | P28: 0 | Q28: 0 | R28: 0 | S28: 0 | T28: 0 | U28: 0 | V28: 0 | W28: 0 | X28: 0 | Y28: 0 | Z28: 0 | AA28: 0 | AB28: 0 | AC28: 0
B29: Income Taxes | I29: ='Historic Data'!F68 -> -33.3 | J29: ='Historic Data'!G68 -> -50 | K29: ='Historic Data'!H68 -> -152 | L29: ='Historic Data'!I68 -> -203 | M29: ='Historic Data'!J68 -> -79 | N29: ='Historic Data'!K68 -> -82 | O29: ='Historic Data'!L68 -> -13 | P29: ='Historic Data'!M68 -> -250 | Q29: ='Historic Data'!N68 -> -46 | R29: ='Historic Data'!O68 -> -131 | S29: ='Historic Data'!P68 -> -240 | T29: ='Historic Data'!Q68 -> -322 | U29: ='Historic Data'!R68 -> 0 | V29: ='Historic Data'!S68 -> 0 | W29: ='Historic Data'!T68 -> 0 | X29: ='Historic Data'!U68 -> 0 | Y29: ='Historic Data'!V68 -> 0 | Z29: ='Historic Data'!W68 -> 0 | AA29: ='Historic Data'!X68 -> 0 | AB29: ='Historic Data'!Y68 -> 0 | AC29: ='Historic Data'!Z68 -> 0
B30: Profit After Tax | I30: =I27+I29 -> -191.5 | J30: =J27+J29 -> 110.9 | K30: 291 | L30: 511 | M30: 125 | N30: 156 | O30: -166 | P30: -963 | Q30: -82 | R30: 392 | S30: 685 | T30: 965 | U30: 0 | V30: 0 | W30: 0 | X30: 0 | Y30: 0 | Z30: 0 | AA30: 0 | AB30: 0 | AC30: 0
A32: Historic Balance Sheet | E32: Direct | F32: Financing | G32: Bridge
B33: ='Historic Data'!B80 -> Total intangible assets | E33: 1 | I33: ='Historic Data'!F80 -> 477.2999878 | J33: ='Historic Data'!G80 -> 477.5 | K33: ='Historic Data'!H80 -> 507 | L33: ='Historic Data'!I80 -> 644 | M33: ='Historic Data'!J80 -> 812 | N33: ='Historic Data'!K80 -> 1034 | O33: ='Historic Data'!L80 -> 1243 | P33: ='Historic Data'!M80 -> 1016 | Q33: ='Historic Data'!N80 -> 741 | R33: ='Historic Data'!O80 -> 658 | S33: ='Historic Data'!P80 -> 687 | T33: ='Historic Data'!Q80 -> 828 | U33: ='Historic Data'!R80 -> 0 | V33: ='Historic Data'!S80 -> 0 | W33: ='Historic Data'!T80 -> 0 | X33: ='Historic Data'!U80 -> 0 | Y33: ='Historic Data'!V80 -> 0 | Z33: ='Historic Data'!W80 -> 0 | AA33: ='Historic Data'!X80 -> 0 | AB33: ='Historic Data'!Y80 -> 0 | AC33: ='Historic Data'!Z80 -> 0
B34: ='Historic Data'!B85 -> Property plant and equipment | E34: 1 | I34: ='Historic Data'!F85 -> 466.3999939 | J34: ='Historic Data'!G85 -> 489.8999939 | K34: ='Historic Data'!H85 -> 638 | L34: ='Historic Data'!I85 -> 1030 | M34: ='Historic Data'!J85 -> 1461 | N34: ='Historic Data'!K85 -> 1704 | O34: ='Historic Data'!L85 -> 1898 | P34: ='Historic Data'!M85 -> 1286 | Q34: ='Historic Data'!N85 -> 1221 | R34: ='Historic Data'!O85 -> 1132 | S34: ='Historic Data'!P85 -> 1279 | T34: ='Historic Data'!Q85 -> 1329 | U34: ='Historic Data'!R85 -> 0 | V34: ='Historic Data'!S85 -> 0 | W34: ='Historic Data'!T85 -> 0 | X34: ='Historic Data'!U85 -> 0 | Y34: ='Historic Data'!V85 -> 0 | Z34: ='Historic Data'!W85 -> 0 | AA34: ='Historic Data'!X85 -> 0 | AB34: ='Historic Data'!Y85 -> 0 | AC34: ='Historic Data'!Z85 -> 0
B35: ='Historic Data'!B86 -> Investments in associates and joint ventures | F35: -1 | I35: ='Historic Data'!F86 -> 2.900000095 | J35: ='Historic Data'!G86 -> 0.400000006 | K35: ='Historic Data'!H86 -> 1 | L35: ='Historic Data'!I86 -> 1 | M35: ='Historic Data'!J86 -> 1 | N35: ='Historic Data'!K86 -> 4 | O35: ='Historic Data'!L86 -> 4 | P35: ='Historic Data'!M86 -> 1 | Q35: ='Historic Data'!N86 -> 1 | R35: ='Historic Data'!O86 -> 188 | S35: ='Historic Data'!P86 -> 225 | T35: ='Historic Data'!Q86 -> 201 | U35: ='Historic Data'!R86 -> 0 | V35: ='Historic Data'!S86 -> 0 | W35: ='Historic Data'!T86 -> 0 | X35: ='Historic Data'!U86 -> 0 | Y35: ='Historic Data'!V86 -> 0 | Z35: ='Historic Data'!W86 -> 0 | AA35: ='Historic Data'!X86 -> 0 | AB35: ='Historic Data'!Y86 -> 0 | AC35: ='Historic Data'!Z86 -> 0
B36: ='Historic Data'!B87 -> Other investments | F36: -1 | I36: ='Historic Data'!F87 -> 0 | J36: ='Historic Data'!G87 -> 0 | K36: ='Historic Data'!H87 -> 0 | L36: ='Historic Data'!I87 -> 0 | M36: ='Historic Data'!J87 -> 0 | N36: ='Historic Data'!K87 -> 0 | O36: ='Historic Data'!L87 -> 0 | P36: ='Historic Data'!M87 -> 0 | Q36: ='Historic Data'!N87 -> 0 | R36: ='Historic Data'!O87 -> 14 | S36: ='Historic Data'!P87 -> 20 | T36: ='Historic Data'!Q87 -> 26 | U36: ='Historic Data'!R87 -> 0 | V36: ='Historic Data'!S87 -> 0 | W36: ='Historic Data'!T87 -> 0 | X36: ='Historic Data'!U87 -> 0 | Y36: ='Historic Data'!V87 -> 0 | Z36: ='Historic Data'!W87 -> 0 | AA36: ='Historic Data'!X87 -> 0 | AB36: ='Historic Data'!Y87 -> 0 | AC36: ='Historic Data'!Z87 -> 0
B37: ='Historic Data'!B88 -> Receivables from associated companies | F37: -1 | I37: ='Historic Data'!F88 -> 0.400000006 | J37: ='Historic Data'!G88 -> 0.3000000119 | K37: ='Historic Data'!H88 -> 0 | L37: ='Historic Data'!I88 -> 0 | M37: ='Historic Data'!J88 -> 0 | N37: ='Historic Data'!K88 -> 0 | O37: ='Historic Data'!L88 -> 0 | P37: ='Historic Data'!M88 -> 0 | Q37: ='Historic Data'!N88 -> 0 | R37: ='Historic Data'!O88 -> 0 | S37: ='Historic Data'!P88 -> 0 | T37: ='Historic Data'!Q88 -> 0 | U37: ='Historic Data'!R88 -> 0 | V37: ='Historic Data'!S88 -> 0 | W37: ='Historic Data'!T88 -> 0 | X37: ='Historic Data'!U88 -> 0 | Y37: ='Historic Data'!V88 -> 0 | Z37: ='Historic Data'!W88 -> 0 | AA37: ='Historic Data'!X88 -> 0 | AB37: ='Historic Data'!Y88 -> 0 | AC37: ='Historic Data'!Z88 -> 0
B38: ='Historic Data'!B89 -> Other receivables | E38: 1 | I38: ='Historic Data'!F89 -> 4.699999809 | J38: ='Historic Data'!G89 -> 11.30000019 | K38: ='Historic Data'!H89 -> 13 | L38: ='Historic Data'!I89 -> 25 | M38: ='Historic Data'!J89 -> 16 | N38: ='Historic Data'!K89 -> 25 | O38: ='Historic Data'!L89 -> 44 | P38: ='Historic Data'!M89 -> 32 | Q38: ='Historic Data'!N89 -> 34 | R38: ='Historic Data'!O89 -> 36 | S38: ='Historic Data'!P89 -> 39 | T38: ='Historic Data'!Q89 -> 55 | U38: ='Historic Data'!R89 -> 0 | V38: ='Historic Data'!S89 -> 0 | W38: ='Historic Data'!T89 -> 0 | X38: ='Historic Data'!U89 -> 0 | Y38: ='Historic Data'!V89 -> 0 | Z38: ='Historic Data'!W89 -> 0 | AA38: ='Historic Data'!X89 -> 0 | AB38: ='Historic Data'!Y89 -> 0 | AC38: ='Historic Data'!Z89 -> 0
B39: ='Historic Data'!B90 -> Deferred tax | E39: 1 | I39: ='Historic Data'!F90 -> 139.6000061 | J39: ='Historic Data'!G90 -> 162 | K39: ='Historic Data'!H90 -> 154 | L39: ='Historic Data'!I90 -> 186 | M39: ='Historic Data'!J90 -> 384 | N39: ='Historic Data'!K90 -> 224 | O39: ='Historic Data'!L90 -> 333 | P39: ='Historic Data'!M90 -> 146 | Q39: ='Historic Data'!N90 -> 155 | R39: ='Historic Data'!O90 -> 170 | S39: ='Historic Data'!P90 -> 149 | T39: ='Historic Data'!Q90 -> 208 | U39: ='Historic Data'!R90 -> 0 | V39: ='Historic Data'!S90 -> 0 | W39: ='Historic Data'!T90 -> 0 | X39: ='Historic Data'!U90 -> 0 | Y39: ='Historic Data'!V90 -> 0 | Z39: ='Historic Data'!W90 -> 0 | AA39: ='Historic Data'!X90 -> 0 | AB39: ='Historic Data'!Y90 -> 0 | AC39: ='Historic Data'!Z90 -> 0
B40: ='Historic Data'!B91 -> Marketable securities | F40: -1 | I40: ='Historic Data'!F91 -> 0 | J40: ='Historic Data'!G91 -> 0 | K40: ='Historic Data'!H91 -> 0 | L40: ='Historic Data'!I91 -> 0 | M40: ='Historic Data'!J91 -> 0 | N40: ='Historic Data'!K91 -> 0 | O40: ='Historic Data'!L91 -> 0 | P40: ='Historic Data'!M91 -> 0 | Q40: ='Historic Data'!N91 -> 0 | R40: ='Historic Data'!O91 -> 0 | S40: ='Historic Data'!P91 -> 0 | T40: ='Historic Data'!Q91 -> 190 | U40: ='Historic Data'!R91 -> 0 | V40: ='Historic Data'!S91 -> 0 | W40: ='Historic Data'!T91 -> 0 | X40: ='Historic Data'!U91 -> 0 | Y40: ='Historic Data'!V91 -> 0 | Z40: ='Historic Data'!W91 -> 0 | AA40: ='Historic Data'!X91 -> 0 | AB40: ='Historic Data'!Y91 -> 0 | AC40: ='Historic Data'!Z91 -> 0
B41: ='Historic Data'!B94 -> Inventories | E41: 1 | I41: ='Historic Data'!F94 -> 698.2999878 | J41: ='Historic Data'!G94 -> 880.7000122 | K41: ='Historic Data'!H94 -> 1107 | L41: ='Historic Data'!I94 -> 2867 | M41: ='Historic Data'!J94 -> 3929 | N41: ='Historic Data'!K94 -> 2735 | O41: ='Historic Data'!L94 -> 2546 | P41: ='Historic Data'!M94 -> 2244 | Q41: ='Historic Data'!N94 -> 1425 | R41: ='Historic Data'!O94 -> 1509 | S41: ='Historic Data'!P94 -> 1899 | T41: ='Historic Data'!Q94 -> 1985 | U41: ='Historic Data'!R94 -> 0 | V41: ='Historic Data'!S94 -> 0 | W41: ='Historic Data'!T94 -> 0 | X41: ='Historic Data'!U94 -> 0 | Y41: ='Historic Data'!V94 -> 0 | Z41: ='Historic Data'!W94 -> 0 | AA41: ='Historic Data'!X94 -> 0 | AB41: ='Historic Data'!Y94 -> 0 | AC41: ='Historic Data'!Z94 -> 0
B42: ='Historic Data'!B95 -> Trade receivables | E42: 1 | I42: ='Historic Data'!F95 -> 620.7999878 | J42: ='Historic Data'!G95 -> 710.9000244 | K42: ='Historic Data'!H95 -> 660 | L42: ='Historic Data'!I95 -> 938 | M42: ='Historic Data'!J95 -> 525 | N42: ='Historic Data'!K95 -> 624 | O42: ='Historic Data'!L95 -> 663 | P42: ='Historic Data'!M95 -> 792 | Q42: ='Historic Data'!N95 -> 626 | R42: ='Historic Data'!O95 -> 598 | S42: ='Historic Data'!P95 -> 795 | T42: ='Historic Data'!Q95 -> 1038 | U42: ='Historic Data'!R95 -> 0 | V42: ='Historic Data'!S95 -> 0 | W42: ='Historic Data'!T95 -> 0 | X42: ='Historic Data'!U95 -> 0 | Y42: ='Historic Data'!V95 -> 0 | Z42: ='Historic Data'!W95 -> 0 | AA42: ='Historic Data'!X95 -> 0 | AB42: ='Historic Data'!Y95 -> 0 | AC42: ='Historic Data'!Z95 -> 0
B43: ='Historic Data'!B99 -> Investments | F43: -1 | I43: ='Historic Data'!F99 -> 9.100000381 | J43: ='Historic Data'!G99 -> 10.80000019 | K43: ='Historic Data'!H99 -> 0 | L43: ='Historic Data'!I99 -> 121 | M43: ='Historic Data'!J99 -> 0 | N43: ='Historic Data'!K99 -> 0 | O43: ='Historic Data'!L99 -> 0 | P43: ='Historic Data'!M99 -> 0 | Q43: ='Historic Data'!N99 -> 0 | R43: ='Historic Data'!O99 -> 0 | S43: ='Historic Data'!P99 -> 0 | T43: ='Historic Data'!Q99 -> 0 | U43: ='Historic Data'!R99 -> 0 | V43: ='Historic Data'!S99 -> 0 | W43: ='Historic Data'!T99 -> 0 | X43: ='Historic Data'!U99 -> 0 | Y43: ='Historic Data'!V99 -> 0 | Z43: ='Historic Data'!W99 -> 0 | AA43: ='Historic Data'!X99 -> 0 | AB43: ='Historic Data'!Y99 -> 0 | AC43: ='Historic Data'!Z99 -> 0
B44: ='Historic Data'!B100 -> Cash and cash equivalents | F44: -1 | I44: ='Historic Data'!F100 -> 126.3000031 | J44: ='Historic Data'!G100 -> 444.6000061 | K44: ='Historic Data'!H100 -> 764 | L44: ='Historic Data'!I100 -> 162 | M44: ='Historic Data'!J100 -> 488 | N44: ='Historic Data'!K100 -> 335 | O44: ='Historic Data'!L100 -> 375 | P44: ='Historic Data'!M100 -> 851 | Q44: ='Historic Data'!N100 -> 694 | R44: ='Historic Data'!O100 -> 2018 | S44: ='Historic Data'!P100 -> 2765 | T44: ='Historic Data'!Q100 -> 3550 | U44: ='Historic Data'!R100 -> 0 | V44: ='Historic Data'!S100 -> 0 | W44: ='Historic Data'!T100 -> 0 | X44: ='Historic Data'!U100 -> 0 | Y44: ='Historic Data'!V100 -> 0 | Z44: ='Historic Data'!W100 -> 0 | AA44: ='Historic Data'!X100 -> 0 | AB44: ='Historic Data'!Y100 -> 0 | AC44: ='Historic Data'!Z100 -> 0
B45: ='Historic Data'!B101 -> Other | E45: 1 | I45: ='Historic Data'!F96+'Historic Data'!F97+'Historic Data'!F98+'Historic Data'!F101 -> 530.500021 | J45: ='Historic Data'!G96+'Historic Data'!G97+'Historic Data'!G98+'Historic Data'!G101 -> 455.1999083 | K45: ='Historic Data'!H96+'Historic Data'!H97+'Historic Data'!H98+'Historic Data'!H101 -> 452 | L45: ='Historic Data'!I96+'Historic Data'!I97+'Historic Data'!I98+'Historic Data'!I101 -> 353 | M45: ='Historic Data'!J96+'Historic Data'!J97+'Historic Data'!J98+'Historic Data'!J101 -> 343 | N45: ='Historic Data'!K96+'Historic Data'!K97+'Historic Data'!K98+'Historic Data'!K101 -> 381 | O45: ='Historic Data'!L96+'Historic Data'!L97+'Historic Data'!L98+'Historic Data'!L101 -> 583 | P45: ='Historic Data'!M96+'Historic Data'!M97+'Historic Data'!M98+'Historic Data'!M101 -> 473 | Q45: ='Historic Data'!N96+'Historic Data'!N97+'Historic Data'!N98+'Historic Data'!N101 -> 411 | R45: ='Historic Data'!O96+'Historic Data'!O97+'Historic Data'!O98+'Historic Data'!O101 -> 571 | S45: ='Historic Data'!P96+'Historic Data'!P97+'Historic Data'!P98+'Historic Data'!P101 -> 517 | T45: ='Historic Data'!Q96+'Historic Data'!Q97+'Historic Data'!Q98+'Historic Data'!Q101 -> 377 | U45: ='Historic Data'!R96+'Historic Data'!R97+'Historic Data'!R98+'Historic Data'!R101 -> 0 | V45: ='Historic Data'!S96+'Historic Data'!S97+'Historic Data'!S98+'Historic Data'!S101 -> 0 | W45: ='Historic Data'!T96+'Historic Data'!T97+'Historic Data'!T98+'Historic Data'!T101 -> 0 | X45: ='Historic Data'!U96+'Historic Data'!U97+'Historic Data'!U98+'Historic Data'!U101 -> 0 | Y45: ='Historic Data'!V96+'Historic Data'!V97+'Historic Data'!V98+'Historic Data'!V101 -> 0 | Z45: ='Historic Data'!W96+'Historic Data'!W97+'Historic Data'!W98+'Historic Data'!W101 -> 0 | AA45: ='Historic Data'!X96+'Historic Data'!X97+'Historic Data'!X98+'Historic Data'!X101 -> 0 | AB45: ='Historic Data'!Y96+'Historic Data'!Y97+'Historic Data'!Y98+'Historic Data'!Y101 -> 0 | AC45: ='Historic Data'!Z96+'Historic Data'!Z97+'Historic Data'!Z98+'Historic Data'!Z101 -> 0
B46: Held for Sale | F46: -1 | I46: ='Historic Data'!F103+'Historic Data'!F104+'Historic Data'!F105 -> 9.09991464 | J46: ='Historic Data'!G103+'Historic Data'!G104+'Historic Data'!G105 -> 10.79995707 | K46: ='Historic Data'!H103+'Historic Data'!H104+'Historic Data'!H105 -> 0 | L46: ='Historic Data'!I103+'Historic Data'!I104+'Historic Data'!I105 -> 0 | M46: ='Historic Data'!J103+'Historic Data'!J104+'Historic Data'!J105 -> 0 | N46: ='Historic Data'!K103+'Historic Data'!K104+'Historic Data'!K105 -> 0 | O46: ='Historic Data'!L103+'Historic Data'!L104+'Historic Data'!L105 -> 0 | P46: ='Historic Data'!M103+'Historic Data'!M104+'Historic Data'!M105 -> 131 | Q46: ='Historic Data'!N103+'Historic Data'!N104+'Historic Data'!N105 -> 332 | R46: ='Historic Data'!O103+'Historic Data'!O104+'Historic Data'!O105 -> 103 | S46: ='Historic Data'!P103+'Historic Data'!P104+'Historic Data'!P105 -> 212 | T46: ='Historic Data'!Q103+'Historic Data'!Q104+'Historic Data'!Q105 -> 144 | U46: ='Historic Data'!R103+'Historic Data'!R104+'Historic Data'!R105 -> 0 | V46: ='Historic Data'!S103+'Historic Data'!S104+'Historic Data'!S105 -> 0 | W46: ='Historic Data'!T103+'Historic Data'!T104+'Historic Data'!T105 -> 0 | X46: ='Historic Data'!U103+'Historic Data'!U104+'Historic Data'!U105 -> 0 | Y46: ='Historic Data'!V103+'Historic Data'!V104+'Historic Data'!V105 -> 0 | Z46: ='Historic Data'!W103+'Historic Data'!W104+'Historic Data'!W105 -> 0 | AA46: ='Historic Data'!X103+'Historic Data'!X104+'Historic Data'!X105 -> 0 | AB46: ='Historic Data'!Y103+'Historic Data'!Y104+'Historic Data'!Y105 -> 0 | AC46: ='Historic Data'!Z103+'Historic Data'!Z104+'Historic Data'!Z105 -> 0
B47: Total Assets | I47: =SUM(I33:I46) -> 3085.399902 | J47: =SUM(J33:J46) -> 3654.399902 | K47: 4296 | L47: 6327 | M47: 7959 | N47: 7066 | O47: 7689 | P47: 6972 | Q47: 5640 | R47: 6997 | S47: 8587 | T47: 9931 | U47: 0 | V47: 0 | W47: 0 | X47: 0 | Y47: 0 | Z47: 0 | AA47: 0 | AB47: 0 | AC47: 0
B48: Check | I48: ='Historic Data'!F106 -> 3085.399902 | J48: ='Historic Data'!G106 -> 3654.399902 | K48: ='Historic Data'!H106 -> 4296 | L48: ='Historic Data'!I106 -> 6327 | M48: ='Historic Data'!J106 -> 7959 | N48: ='Historic Data'!K106 -> 7066 | O48: ='Historic Data'!L106 -> 7689 | P48: ='Historic Data'!M106 -> 6972 | Q48: ='Historic Data'!N106 -> 5640 | R48: ='Historic Data'!O106 -> 6997 | S48: ='Historic Data'!P106 -> 8587 | T48: ='Historic Data'!Q106 -> 9931 | U48: ='Historic Data'!R106 -> 0 | V48: ='Historic Data'!S106 -> 0 | W48: ='Historic Data'!T106 -> 0 | X48: ='Historic Data'!U106 -> 0 | Y48: ='Historic Data'!V106 -> 0 | Z48: ='Historic Data'!W106 -> 0 | AA48: ='Historic Data'!X106 -> 0 | AB48: ='Historic Data'!Y106 -> 0 | AC48: ='Historic Data'!Z106 -> 0
B49: Difference | I49: =I47-I48 -> 0 | J49: =J47-J48 -> 0 | K49: 0 | L49: 0 | M49: 0 | N49: 0 | O49: 0 | P49: 0 | Q49: 0 | R49: 0 | S49: 0 | T49: 0 | U49: 0 | V49: 0 | W49: 0 | X49: 0 | Y49: 0 | Z49: 0 | AA49: 0 | AB49: 0 | AC49: 0
B51: ='Historic Data'!B113 -> Total equity | F51: 1 | I51: ='Historic Data'!F113 -> 961.7999878 | J51: ='Historic Data'!G113 -> 1261.699951 | K51: ='Historic Data'!H113 -> 1516 | L51: ='Historic Data'!I113 -> 1587 | M51: ='Historic Data'!J113 -> 2542 | N51: ='Historic Data'!K113 -> 2754 | O51: ='Historic Data'!L113 -> 2576 | P51: ='Historic Data'!M113 -> 1622 | Q51: ='Historic Data'!N113 -> 1524 | R51: ='Historic Data'!O113 -> 2379 | S51: ='Historic Data'!P113 -> 2899 | T51: ='Historic Data'!Q113 -> 3190 | U51: ='Historic Data'!R113 -> 0 | V51: ='Historic Data'!S113 -> 0 | W51: ='Historic Data'!T113 -> 0 | X51: ='Historic Data'!U113 -> 0 | Y51: ='Historic Data'!V113 -> 0 | Z51: ='Historic Data'!W113 -> 0 | AA51: ='Historic Data'!X113 -> 0 | AB51: ='Historic Data'!Y113 -> 0 | AC51: ='Historic Data'!Z113 -> 0
B52: Minority interests | F52: 1 | I52: ='Historic Data'!F114 -> 0 | J52: ='Historic Data'!G114 -> 0 | K52: ='Historic Data'!H114 -> 0 | L52: ='Historic Data'!I114 -> 0 | M52: ='Historic Data'!J114 -> 0 | N52: ='Historic Data'!K114 -> 0 | O52: ='Historic Data'!L114 -> 0 | P52: ='Historic Data'!M114 -> 0 | Q52: ='Historic Data'!N114 -> 0 | R52: ='Historic Data'!O114 -> 0 | S52: ='Historic Data'!P114 -> 0 | T52: ='Historic Data'!Q114 -> 0 | U52: ='Historic Data'!R114 -> 0 | V52: ='Historic Data'!S114 -> 0 | W52: ='Historic Data'!T114 -> 0 | X52: ='Historic Data'!U114 -> 0 | Y52: ='Historic Data'!V114 -> 0 | Z52: ='Historic Data'!W114 -> 0 | AA52: ='Historic Data'!X114 -> 0 | AB52: ='Historic Data'!Y114 -> 0 | AC52: ='Historic Data'!Z114 -> 0
B53: Provisions | E53: -1 | I53: ='Historic Data'!F115 -> 88.59999847 | J53: ='Historic Data'!G115 -> 98.80000305 | K53: ='Historic Data'!H115 -> 107 | L53: ='Historic Data'!I115 -> 122 | M53: ='Historic Data'!J115 -> 137 | N53: ='Historic Data'!K115 -> 139 | O53: ='Historic Data'!L115 -> 145 | P53: ='Historic Data'!M115 -> 175 | Q53: ='Historic Data'!N115 -> 200 | R53: ='Historic Data'!O115 -> 231 | S53: ='Historic Data'!P115 -> 314 | T53: ='Historic Data'!Q115 -> 457 | U53: ='Historic Data'!R115 -> 0 | V53: ='Historic Data'!S115 -> 0 | W53: ='Historic Data'!T115 -> 0 | X53: ='Historic Data'!U115 -> 0 | Y53: ='Historic Data'!V115 -> 0 | Z53: ='Historic Data'!W115 -> 0 | AA53: ='Historic Data'!X115 -> 0 | AB53: ='Historic Data'!Y115 -> 0 | AC53: ='Historic Data'!Z115 -> 0
B54: Pension obligations | F54: 1 | I54: ='Historic Data'!F116 -> 2 | J54: ='Historic Data'!G116 -> 2.799999952 | K54: ='Historic Data'!H116 -> 2 | L54: ='Historic Data'!I116 -> 2 | M54: ='Historic Data'!J116 -> 2 | N54: ='Historic Data'!K116 -> 2 | O54: ='Historic Data'!L116 -> 2 | P54: ='Historic Data'!M116 -> 2 | Q54: ='Historic Data'!N116 -> 0 | R54: ='Historic Data'!O116 -> 0 | S54: ='Historic Data'!P116 -> 0 | T54: ='Historic Data'!Q116 -> 0 | U54: ='Historic Data'!R116 -> 0 | V54: ='Historic Data'!S116 -> 0 | W54: ='Historic Data'!T116 -> 0 | X54: ='Historic Data'!U116 -> 0 | Y54: ='Historic Data'!V116 -> 0 | Z54: ='Historic Data'!W116 -> 0 | AA54: ='Historic Data'!X116 -> 0 | AB54: ='Historic Data'!Y116 -> 0 | AC54: ='Historic Data'!Z116 -> 0
B55: Tax payables | E55: -1 | I55: ='Historic Data'!F117 -> 0 | J55: ='Historic Data'!G117 -> 0 | K55: ='Historic Data'!H117 -> 0 | L55: ='Historic Data'!I117 -> 0 | M55: ='Historic Data'!J117 -> 0 | N55: ='Historic Data'!K117 -> 0 | O55: ='Historic Data'!L117 -> 0 | P55: ='Historic Data'!M117 -> 0 | Q55: ='Historic Data'!N117 -> 39 | R55: ='Historic Data'!O117 -> 41 | S55: ='Historic Data'!P117 -> 44 | T55: ='Historic Data'!Q117 -> 37 | U55: ='Historic Data'!R117 -> 0 | V55: ='Historic Data'!S117 -> 0 | W55: ='Historic Data'!T117 -> 0 | X55: ='Historic Data'!U117 -> 0 | Y55: ='Historic Data'!V117 -> 0 | Z55: ='Historic Data'!W117 -> 0 | AA55: ='Historic Data'!X117 -> 0 | AB55: ='Historic Data'!Y117 -> 0 | AC55: ='Historic Data'!Z117 -> 0
B56: Other liabilities | E56: -1 | I56: ='Historic Data'!F118 -> 333.7000122 | J56: ='Historic Data'!G118 -> 187.8000031 | K56: ='Historic Data'!H118 -> 271 | L56: ='Historic Data'!I118 -> 395 | M56: ='Historic Data'!J118 -> 436 | N56: ='Historic Data'!K118 -> 323 | O56: ='Historic Data'!L118 -> 356 | P56: ='Historic Data'!M118 -> 412 | Q56: ='Historic Data'!N118 -> 2 | R56: ='Historic Data'!O118 -> 10 | S56: ='Historic Data'!P118 -> 10 | T56: ='Historic Data'!Q118 -> 90 | U56: ='Historic Data'!R118 -> 0 | V56: ='Historic Data'!S118 -> 0 | W56: ='Historic Data'!T118 -> 0 | X56: ='Historic Data'!U118 -> 0 | Y56: ='Historic Data'!V118 -> 0 | Z56: ='Historic Data'!W118 -> 0 | AA56: ='Historic Data'!X118 -> 0 | AB56: ='Historic Data'!Y118 -> 0 | AC56: ='Historic Data'!Z118 -> 0
B57: Construction contracts in progress | E57: -1 | I57: ='Historic Data'!F119 -> 0 | J57: ='Historic Data'!G119 -> 0 | K57: ='Historic Data'!H119 -> 260 | L57: ='Historic Data'!I119 -> 123 | M57: ='Historic Data'!J119 -> 16 | N57: ='Historic Data'!K119 -> 40 | O57: ='Historic Data'!L119 -> 147 | P57: ='Historic Data'!M119 -> 21 | Q57: ='Historic Data'!N119 -> 47 | R57: ='Historic Data'!O119 -> 104 | S57: ='Historic Data'!P119 -> 15 | T57: ='Historic Data'!Q119 -> 19 | U57: ='Historic Data'!R119 -> 0 | V57: ='Historic Data'!S119 -> 0 | W57: ='Historic Data'!T119 -> 0 | X57: ='Historic Data'!U119 -> 0 | Y57: ='Historic Data'!V119 -> 0 | Z57: ='Historic Data'!W119 -> 0 | AA57: ='Historic Data'!X119 -> 0 | AB57: ='Historic Data'!Y119 -> 0 | AC57: ='Historic Data'!Z119 -> 0
B58: Financial debts | F58: 1 | I58: ='Historic Data'!F120 -> 0 | J58: ='Historic Data'!G120 -> 0 | K58: ='Historic Data'!H120 -> 125 | L58: ='Historic Data'!I120 -> 14 | M58: ='Historic Data'!J120 -> 339 | N58: ='Historic Data'!K120 -> 910 | O58: ='Historic Data'!L120 -> 914 | P58: ='Historic Data'!M120 -> 1458 | Q58: ='Historic Data'!N120 -> 604 | R58: ='Historic Data'!O120 -> 3 | S58: ='Historic Data'!P120 -> 495 | T58: ='Historic Data'!Q120 -> 496 | U58: ='Historic Data'!R120 -> 0 | V58: ='Historic Data'!S120 -> 0 | W58: ='Historic Data'!T120 -> 0 | X58: ='Historic Data'!U120 -> 0 | Y58: ='Historic Data'!V120 -> 0 | Z58: ='Historic Data'!W120 -> 0 | AA58: ='Historic Data'!X120 -> 0 | AB58: ='Historic Data'!Y120 -> 0 | AC58: ='Historic Data'!Z120 -> 0
B59: Other | E59: -1 | I59: ='Historic Data'!F121 -> 110.2999649 | J59: ='Historic Data'!G121 -> -21.29999995 | K59: ='Historic Data'!H121 -> -528 | L59: ='Historic Data'!I121 -> -509 | M59: ='Historic Data'!J121 -> -331 | N59: ='Historic Data'!K121 -> -357 | O59: ='Historic Data'!L121 -> -491 | P59: ='Historic Data'!M121 -> -416 | Q59: ='Historic Data'!N121 -> -65 | R59: ='Historic Data'!O121 -> -128 | S59: ='Historic Data'!P121 -> 5 | T59: ='Historic Data'!Q121 -> 15 | U59: ='Historic Data'!R121 -> 0 | V59: ='Historic Data'!S121 -> 0 | W59: ='Historic Data'!T121 -> 0 | X59: ='Historic Data'!U121 -> 0 | Y59: ='Historic Data'!V121 -> 0 | Z59: ='Historic Data'!W121 -> 0 | AA59: ='Historic Data'!X121 -> 0 | AB59: ='Historic Data'!Y121 -> 0 | AC59: ='Historic Data'!Z121 -> 0
B60: Payments from Customers | E60: -1 | I60: ='Historic Data'!F123 -> 488.7000122 | J60: ='Historic Data'!G123 -> 925.7999878 | K60: ='Historic Data'!H123 -> 82 | L60: ='Historic Data'!I123 -> 2677 | M60: ='Historic Data'!J123 -> 2889 | N60: ='Historic Data'!K123 -> 1546 | O60: ='Historic Data'!L123 -> 1865 | P60: ='Historic Data'!M123 -> 1716 | Q60: ='Historic Data'!N123 -> 1568 | R60: ='Historic Data'!O123 -> 2156 | S60: ='Historic Data'!P123 -> 2258 | T60: ='Historic Data'!Q123 -> 3002 | U60: ='Historic Data'!R123 -> 0 | V60: ='Historic Data'!S123 -> 0 | W60: ='Historic Data'!T123 -> 0 | X60: ='Historic Data'!U123 -> 0 | Y60: ='Historic Data'!V123 -> 0 | Z60: ='Historic Data'!W123 -> 0 | AA60: ='Historic Data'!X123 -> 0 | AB60: ='Historic Data'!Y123 -> 0 | AC60: ='Historic Data'!Z123 -> 0
B61: Trade payables | E61: -1 | I61: ='Historic Data'!F124 -> 519.7999878 | J61: ='Historic Data'!G124 -> 807.5999756 | K61: ='Historic Data'!H124 -> 889 | L61: ='Historic Data'!I124 -> 1030 | M61: ='Historic Data'!J124 -> 1062 | N61: ='Historic Data'!K124 -> 1120 | O61: ='Historic Data'!L124 -> 1563 | P61: ='Historic Data'!M124 -> 1008 | Q61: ='Historic Data'!N124 -> 832 | R61: ='Historic Data'!O124 -> 945 | S61: ='Historic Data'!P124 -> 1760 | T61: ='Historic Data'!Q124 -> 1666 | U61: ='Historic Data'!R124 -> 0 | V61: ='Historic Data'!S124 -> 0 | W61: ='Historic Data'!T124 -> 0 | X61: ='Historic Data'!U124 -> 0 | Y61: ='Historic Data'!V124 -> 0 | Z61: ='Historic Data'!W124 -> 0 | AA61: ='Historic Data'!X124 -> 0 | AB61: ='Historic Data'!Y124 -> 0 | AC61: ='Historic Data'!Z124 -> 0
B62: Financial liabilities | F62: 1 | I62: ='Historic Data'!F125 -> 139.3999939 | J62: ='Historic Data'!G125 -> 227.9001312 | K62: ='Historic Data'!H125 -> 1572 | L62: ='Historic Data'!I125 -> 886 | M62: ='Historic Data'!J125 -> 867 | N62: ='Historic Data'!K125 -> 589 | O62: ='Historic Data'!L125 -> 612 | P62: ='Historic Data'!M125 -> 974 | Q62: ='Historic Data'!N125 -> 403 | R62: ='Historic Data'!O125 -> 1256 | S62: ='Historic Data'!P125 -> 787 | T62: ='Historic Data'!Q125 -> 959 | U62: ='Historic Data'!R125 -> 0 | V62: ='Historic Data'!S125 -> 0 | W62: ='Historic Data'!T125 -> 0 | X62: ='Historic Data'!U125 -> 0 | Y62: ='Historic Data'!V125 -> 0 | Z62: ='Historic Data'!W125 -> 0 | AA62: ='Historic Data'!X125 -> 0 | AB62: ='Historic Data'!Y125 -> 0 | AC62: ='Historic Data'!Z125 -> 0
B63: Liabilities directly associated with current and non current assets held for sale | F63: 1 | I63: ='Historic Data'!F126 -> 441.1 | J63: ='Historic Data'!G126 -> 163.3 | K63: ='Historic Data'!H126 -> 0 | L63: ='Historic Data'!I126 -> 0 | M63: ='Historic Data'!J126 -> 0 | N63: ='Historic Data'!K126 -> 0 | O63: ='Historic Data'!L126 -> 0 | P63: ='Historic Data'!M126 -> 0 | Q63: ='Historic Data'!N126 -> 486 | R63: ='Historic Data'!O126 -> 0 | S63: ='Historic Data'!P126 -> 0 | T63: ='Historic Data'!Q126 -> 0 | U63: ='Historic Data'!R126 -> 0 | V63: ='Historic Data'!S126 -> 0 | W63: ='Historic Data'!T126 -> 0 | X63: ='Historic Data'!U126 -> 0 | Y63: ='Historic Data'!V126 -> 0 | Z63: ='Historic Data'!W126 -> 0 | AA63: ='Historic Data'!X126 -> 0 | AB63: ='Historic Data'!Y126 -> 0 | AC63: ='Historic Data'!Z126 -> 0
B64: Total Liabilities and Capital | I64: =SUM(I51:I63) -> 3085.399957 | J64: =SUM(J51:J63) -> 3654.400052 | K64: 4296 | L64: 6327 | M64: 7959 | N64: 7066 | O64: 7689 | P64: 6972 | Q64: 5640 | R64: 6997 | S64: 8587 | T64: 9931 | U64: 0 | V64: 0 | W64: 0 | X64: 0 | Y64: 0 | Z64: 0 | AA64: 0 | AB64: 0 | AC64: 0
B66: Invested Capital - Direct method | I66: =SUMPRODUCT(I33:I63,$E$33:$E$63) -> 1396.500009 | J66: =SUMPRODUCT(J33:J63,$E$33:$E$63) -> 1188.799969 | K66: 2450 | L66: 2205 | M66: 3261 | N66: 3916 | O66: 3725 | P66: 3073 | Q66: 1990 | R66: 1315 | S66: 959 | T66: 534 | U66: 0 | V66: 0 | W66: 0 | X66: 0 | Y66: 0 | Z66: 0 | AA66: 0 | AB66: 0 | AC66: 0
B67: Invested Capital - Financing method | I67: =SUMPRODUCT(I33:I63,$F$33:$F$63) -> 1396.500064 | J67: =SUMPRODUCT(J33:J63,$F$33:$F$63) -> 1188.800119 | K67: 2450 | L67: 2205 | M67: 3261 | N67: 3916 | O67: 3725 | P67: 3073 | Q67: 1990 | R67: 1315 | S67: 959 | T67: 534 | U67: 0 | V67: 0 | W67: 0 | X67: 0 | Y67: 0 | Z67: 0 | AA67: 0 | AB67: 0 | AC67: 0
B69: Accumulated special items | I69: =H69-I22 -> 0 | J69: =I69-J22 -> -15.7 | K69: -15.7 | L69: -15.7 | M69: -15.7 | N69: 142.3 | O69: 164.3 | P69: 865.3 | Q69: 974.3 | R69: 926.3 | S69: 880.3 | T69: 880.3 | U69: 880.3 | V69: 880.3 | W69: 880.3 | X69: 880.3 | Y69: 880.3 | Z69: 880.3 | AA69: 880.3 | AB69: 880.3 | AC69: 880.3
B70: Adj. Invested Capital | I70: =I67+I69 -> 1396.500064 | J70: =J67+J69 -> 1173.100119 | K70: 2434.3 | L70: 2189.3 | M70: 3245.3 | N70: 4058.3 | O70: 3889.3 | P70: 3938.3 | Q70: 2964.3 | R70: 2241.3 | S70: 1839.3 | T70: 1414.3 | U70: 880.3 | V70: 880.3 | W70: 880.3 | X70: 880.3 | Y70: 880.3 | Z70: 880.3 | AA70: 880.3 | AB70: 880.3 | AC70: 880.3
B72: EBIT (Operating Profit) | I72: ='Financial Model'!I17 -> -115.7 | J72: ='Financial Model'!J17 -> 184.9 | K72: ='Financial Model'!K17 -> 443 | L72: ='Financial Model'!L17 -> 668 | M72: ='Financial Model'!M17 -> 251 | N72: ='Financial Model'!N17 -> 468 | O72: ='Financial Model'!O17 -> -38 | P72: ='Financial Model'!P17 -> 4 | Q72: ='Financial Model'!Q17 -> 211 | R72: ='Financial Model'!R17 -> 559 | S72: ='Financial Model'!S17 -> 860 | T72: ='Financial Model'!T17 -> 1421 | U72: ='Financial Model'!U17 -> 0 | V72: ='Financial Model'!V17 -> 0 | W72: ='Financial Model'!W17 -> 0 | X72: ='Financial Model'!X17 -> 0 | Y72: ='Financial Model'!Y17 -> 0 | Z72: ='Financial Model'!Z17 -> 0 | AA72: ='Financial Model'!AA17 -> 0 | AB72: ='Financial Model'!AB17 -> 0 | AC72: ='Financial Model'!AC17 -> 0
B73: Tax rate | I73: =IF(I3,-I29/I26) -> -0.2104930468 | J73: 0.3107520199 | K73: 0.3431151242 | L73: 0.2843137255 | M73: 0.387254902 | N73: 0.3445378151 | O73: -0.08496732026 | P73: -0.350631136 | Q73: -1.277777778 | R73: 0.2504780115 | S73: 0.2594594595 | T73: 0.2501942502 | U73: FALSE | V73: FALSE | W73: FALSE | X73: FALSE | Y73: FALSE | Z73: FALSE | AA73: FALSE | AB73: FALSE | AC73: FALSE
B74: Statutory tax rate | F74: 0.25 | I74: =$F$74 -> 0.25 | J74: =$F$74 -> 0.25 | K74: 0.25 | L74: 0.25 | M74: 0.25 | N74: 0.25 | O74: 0.25 | P74: 0.25 | Q74: 0.25 | R74: 0.25 | S74: 0.25 | T74: 0.25 | U74: 0.25 | V74: 0.25 | W74: 0.25 | X74: 0.25 | Y74: 0.25 | Z74: 0.25 | AA74: 0.25 | AB74: 0.25 | AC74: 0.25
B75: NOPAT | I75: =I72*(1-I74) -> -86.775 | J75: =J72*(1-J74) -> 138.675 | K75: 332.25 | L75: 501 | M75: 188.25 | N75: 351 | O75: -28.5 | P75: 3 | Q75: 158.25 | R75: 419.25 | S75: 645 | T75: 1065.75 | U75: 0 | V75: 0 | W75: 0 | X75: 0 | Y75: 0 | Z75: 0 | AA75: 0 | AB75: 0 | AC75: 0
B77: NOPAT / avg. Invested Capital | I77: =I75/(AVERAGE(I67,H67)) -> -0.06213748375 | J77: 0.1072796118 | K77: 0.1826151419 | L77: 0.2152524168 | M77: 0.06888035126 | N77: 0.09781245646 | O77: -0.007459756576 | P77: 0.0008826125331 | Q77: 0.06251234446 | R77: 0.2537065053 | S77: 0.5672823219 | T77: 1.427662425 | U77: 0
B78: Adj. ROIC | I78: =I75/AVERAGE(H70:I70) -> -0.06213748375 | J78: 0.1079350795 | K78: 0.1842046843 | L78: 0.2167142486 | M78: 0.06927832775 | N78: 0.09611698341 | O78: -0.007171976446 | P78: 0.0007665184731 | Q78: 0.04585228754 | R78: 0.161076533 | S78: 0.3161299809 | T78: 0.6551204819 | U78: 0 | V78: 0 | W78: 0 | X78: 0 | Y78: 0 | Z78: 0 | AA78: 0 | AB78: 0 | AC78: 0
B83: Cash Flow Selected Items
B84: Adjustments for non cash transactions | I84: ='Historic Data'!F133 -> 235.6000061 | J84: ='Historic Data'!G133 -> 241.6000061 | K84: ='Historic Data'!H133 -> 348 | L84: ='Historic Data'!I133 -> 258 | M84: ='Historic Data'!J133 -> 369 | N84: ='Historic Data'!K133 -> 411 | O84: ='Historic Data'!L133 -> 366 | P84: ='Historic Data'!M133 -> 1345 | Q84: ='Historic Data'!N133 -> 677 | R84: ='Historic Data'!O133 -> 676 | S84: ='Historic Data'!P133 -> 603 | T84: ='Historic Data'!Q133 -> 1086 | U84: ='Historic Data'!R133 -> 0 | V84: ='Historic Data'!S133 -> 0 | W84: ='Historic Data'!T133 -> 0 | X84: ='Historic Data'!U133 -> 0 | Y84: ='Historic Data'!V133 -> 0 | Z84: ='Historic Data'!W133 -> 0 | AA84: ='Historic Data'!X133 -> 0 | AB84: ='Historic Data'!Y133 -> 0 | AC84: ='Historic Data'!Z133 -> 0
B85: Purchase of intangible assets | I85: =-'Historic Data'!F140 -> 50.09999847 | J85: =-'Historic Data'!G140 -> 34.79999924 | K85: =-'Historic Data'!H140 -> 82 | L85: =-'Historic Data'!I140 -> 169 | M85: =-'Historic Data'!J140 -> 227 | N85: =-'Historic Data'!K140 -> 328 | O85: =-'Historic Data'!L140 -> 327 | P85: =-'Historic Data'!M140 -> 169 | Q85: =-'Historic Data'!N140 -> 189 | R85: =-'Historic Data'!O140 -> 115 | S85: =-'Historic Data'!P140 -> 148 | T85: =-'Historic Data'!Q140 -> 202 | U85: =-'Historic Data'!R140 -> 0 | V85: =-'Historic Data'!S140 -> 0 | W85: =-'Historic Data'!T140 -> 0 | X85: =-'Historic Data'!U140 -> 0 | Y85: =-'Historic Data'!V140 -> 0 | Z85: =-'Historic Data'!W140 -> 0 | AA85: =-'Historic Data'!X140 -> 0 | AB85: =-'Historic Data'!Y140 -> 0 | AC85: =-'Historic Data'!Z140 -> 0
B86: Purchase of property plant and equipment | I86: =-'Historic Data'!F141 -> 94.69999695 | J86: =-'Historic Data'!G141 -> 153.3999939 | K86: =-'Historic Data'!H141 -> 265 | L86: =-'Historic Data'!I141 -> 509 | M86: =-'Historic Data'!J141 -> 606 | N86: =-'Historic Data'!K141 -> 458 | O86: =-'Historic Data'!L141 -> 406 | P86: =-'Historic Data'!M141 -> 167 | Q86: =-'Historic Data'!N141 -> 73 | R86: =-'Historic Data'!O141 -> 163 | S86: =-'Historic Data'!P141 -> 220 | T86: =-'Historic Data'!Q141 -> 287 | U86: =-'Historic Data'!R141 -> 0 | V86: =-'Historic Data'!S141 -> 0 | W86: =-'Historic Data'!T141 -> 0 | X86: =-'Historic Data'!U141 -> 0 | Y86: =-'Historic Data'!V141 -> 0 | Z86: =-'Historic Data'!W141 -> 0 | AA86: =-'Historic Data'!X141 -> 0 | AB86: =-'Historic Data'!Y141 -> 0 | AC86: =-'Historic Data'!Z141 -> 0
B87: Purchase of other non current assets | I87: =-'Historic Data'!F142 -> 5.400000095 | J87: =-'Historic Data'!G142 -> 6.599999905 | K87: =-'Historic Data'!H142 -> 0 | L87: =-'Historic Data'!I142 -> 12 | M87: =-'Historic Data'!J142 -> 0 | N87: =-'Historic Data'!K142 -> 12 | O87: =-'Historic Data'!L142 -> 19 | P87: =-'Historic Data'!M142 -> 0 | Q87: =-'Historic Data'!N142 -> 0 | R87: =-'Historic Data'!O142 -> 16 | S87: =-'Historic Data'!P142 -> 3 | T87: =-'Historic Data'!Q142 -> 0 | U87: =-'Historic Data'!R142 -> 0 | V87: =-'Historic Data'!S142 -> 0 | W87: =-'Historic Data'!T142 -> 0 | X87: =-'Historic Data'!U142 -> 0 | Y87: =-'Historic Data'!V142 -> 0 | Z87: =-'Historic Data'!W142 -> 0 | AA87: =-'Historic Data'!X142 -> 0 | AB87: =-'Historic Data'!Y142 -> 0 | AC87: =-'Historic Data'!Z142 -> 0
B88: Disposal of property plant and equipment | I88: =-'Historic Data'!F143 -> -18.20000076 | J88: =-'Historic Data'!G143 -> -20 | K88: =-'Historic Data'!H143 -> -30 | L88: =-'Historic Data'!I143 -> -10 | M88: =-'Historic Data'!J143 -> -15 | N88: =-'Historic Data'!K143 -> -11 | O88: =-'Historic Data'!L143 -> -12 | P88: =-'Historic Data'!M143 -> -45 | Q88: =-'Historic Data'!N143 -> -20 | R88: =-'Historic Data'!O143 -> -8 | S88: =-'Historic Data'!P143 -> -1 | T88: =-'Historic Data'!Q143 -> -21 | U88: =-'Historic Data'!R143 -> 0 | V88: =-'Historic Data'!S143 -> 0 | W88: =-'Historic Data'!T143 -> 0 | X88: =-'Historic Data'!U143 -> 0 | Y88: =-'Historic Data'!V143 -> 0 | Z88: =-'Historic Data'!W143 -> 0 | AA88: =-'Historic Data'!X143 -> 0 | AB88: =-'Historic Data'!Y143 -> 0 | AC88: =-'Historic Data'!Z143 -> 0
B90: Stock Price and Financial Ratios
B91: ='Historic Data'!B48 -> Share price December EUR | I91: ='Historic Data'!F48 -> 13.9 | J91: ='Historic Data'!G48 -> 32 | K91: ='Historic Data'!H48 -> 74 | L91: ='Historic Data'!I48 -> 40.7 | M91: ='Historic Data'!J48 -> 42.6 | N91: ='Historic Data'!K48 -> 23.6 | O91: ='Historic Data'!L48 -> 8.3 | P91: ='Historic Data'!M48 -> 4.3 | Q91: ='Historic Data'!N48 -> 21.5 | R91: ='Historic Data'!O48 -> 30.4 | S91: ='Historic Data'!P48 -> 64.8 | T91: ='Historic Data'!Q48 -> 61.7 | U91: ='Historic Data'!R48 -> 0 | V91: ='Historic Data'!S48 -> 0 | W91: ='Historic Data'!T48 -> 0 | X91: ='Historic Data'!U48 -> 0 | Y91: ='Historic Data'!V48 -> 0 | Z91: ='Historic Data'!W48 -> 0 | AA91: ='Historic Data'!X48 -> 0 | AB91: ='Historic Data'!Y48 -> 0 | AC91: ='Historic Data'!Z48 -> 0
B92: P/E Ratio | I92: ='Historic Data'!C44 -> 21.9 | J92: ='Historic Data'!D44 -> 38.6 | K92: ='Historic Data'!E44 -> -18.2 | L92: ='Historic Data'!F44 -> -12.7 | M92: ='Historic Data'!G44 -> 52.8 | N92: ='Historic Data'!H44 -> 47.1 | O92: ='Historic Data'!I44 -> 16.3 | P92: ='Historic Data'!J44 -> 71 | Q92: ='Historic Data'!K44 -> 30.8 | R92: ='Historic Data'!L44 -> -10.3 | S92: ='Historic Data'!M44 -> 0 | T92: ='Historic Data'!N44 -> 0 | U92: ='Historic Data'!O44 -> 0 | V92: ='Historic Data'!P44 -> 0 | W92: ='Historic Data'!Q44 -> 0 | X92: ='Historic Data'!R44 -> 0 | Y92: ='Historic Data'!S44 -> 0 | Z92: ='Historic Data'!T44 -> 0 | AA92: ='Historic Data'!U44 -> 0 | AB92: ='Historic Data'!V44 -> 0 | AC92: ='Historic Data'!W44 -> 0
B93: Book Value per Share | I93: ='Historic Data'!C42 -> 5.7 | J93: ='Historic Data'!D43 -> 2.2 | K93: ='Historic Data'!E43 -> 1.3 | L93: ='Historic Data'!F43 -> 2.5 | M93: ='Historic Data'!G43 -> 4.7 | N93: ='Historic Data'!H43 -> 9 | O93: ='Historic Data'!I43 -> 4.7 | P93: ='Historic Data'!J43 -> 3.4 | Q93: ='Historic Data'!K43 -> 1.7 | R93: ='Historic Data'!L43 -> 0.7 | S93: ='Historic Data'!M43 -> 0.5 | T93: ='Historic Data'!N43 -> 2.9 | U93: ='Historic Data'!O43 -> 2.9 | V93: ='Historic Data'!P43 -> 5 | W93: ='Historic Data'!Q43 -> 4.3 | X93: ='Historic Data'!R43 -> 0 | Y93: ='Historic Data'!S43 -> 0 | Z93: ='Historic Data'!T43 -> 0 | AA93: ='Historic Data'!U43 -> 0 | AB93: ='Historic Data'!V43 -> 0 | AC93: ='Historic Data'!W43 -> 0
B94: Price to Book Ratio | I94: ='Historic Data'!C43 -> 1.7 | J94: ='Historic Data'!D43 -> 2.2 | K94: ='Historic Data'!E43 -> 1.3 | L94: ='Historic Data'!F43 -> 2.5 | M94: ='Historic Data'!G43 -> 4.7 | N94: ='Historic Data'!H43 -> 9 | O94: ='Historic Data'!I43 -> 4.7 | P94: ='Historic Data'!J43 -> 3.4 | Q94: ='Historic Data'!K43 -> 1.7 | R94: ='Historic Data'!L43 -> 0.7 | S94: ='Historic Data'!M43 -> 0.5 | T94: ='Historic Data'!N43 -> 2.9 | U94: ='Historic Data'!O43 -> 2.9 | V94: ='Historic Data'!P43 -> 5 | W94: ='Historic Data'!Q43 -> 4.3 | X94: ='Historic Data'!R43 -> 0 | Y94: ='Historic Data'!S43 -> 0 | Z94: ='Historic Data'!T43 -> 0 | AA94: ='Historic Data'!U43 -> 0 | AB94: ='Historic Data'!V43 -> 0 | AC94: ='Historic Data'!W43 -> 0
B95: ROE | I95: ='Historic Data'!C38/100 -> 0.078 | J95: ='Historic Data'!D38/100 -> 0.059 | K95: ='Historic Data'!E38/100 -> -0.069 | L95: ='Historic Data'!F38/100 -> -0.181 | M95: ='Historic Data'!G38/100 -> 0.1 | N95: ='Historic Data'!H38/100 -> 0.21 | O95: ='Historic Data'!I38/100 -> 0.339 | P95: ='Historic Data'!J38/100 -> 0.061 | Q95: ='Historic Data'!K38/100 -> 0.059 | R95: ='Historic Data'!L38/100 -> -0.062 | S95: ='Historic Data'!M38/100 -> -0.459 | T95: ='Historic Data'!N38/100 -> -0.052 | U95: ='Historic Data'!O38/100 -> 0.201 | V95: ='Historic Data'!P38/100 -> 0.262 | W95: ='Historic Data'!Q38/100 -> 0.326 | X95: ='Historic Data'!R38/100 -> 0 | Y95: ='Historic Data'!S38/100 -> 0 | Z95: ='Historic Data'!T38/100 -> 0 | AA95: ='Historic Data'!U38/100 -> 0 | AB95: ='Historic Data'!V38/100 -> 0 | AC95: ='Historic Data'!W38/100 -> 0
B96: Shares | I96: ='Historic Data'!C49 -> 104892414 | J96: ='Historic Data'!D49 -> 105003966 | K96: ='Historic Data'!E49 -> 150815322 | L96: ='Historic Data'!F49 -> 174911173 | M96: ='Historic Data'!G49 -> 182722520 | N96: ='Historic Data'!H49 -> 185204103 | O96: ='Historic Data'!I49 -> 185204103 | P96: ='Historic Data'!J49 -> 197723281 | Q96: ='Historic Data'!K49 -> 203704103 | R96: ='Historic Data'!L49 -> 203704103 | S96: ='Historic Data'!M49 -> 203704103 | T96: ='Historic Data'!N49 -> 203704103 | U96: ='Historic Data'!O49 -> 221674711 | V96: ='Historic Data'!P49 -> 224074513 | W96: ='Historic Data'!Q49 -> 222360341 | X96: ='Historic Data'!R49 -> 0 | Y96: ='Historic Data'!S49 -> 0 | Z96: ='Historic Data'!T49 -> 0 | AA96: ='Historic Data'!U49 -> 0 | AB96: ='Historic Data'!V49 -> 0 | AC96: ='Historic Data'!W49 -> 0
B97: ROIC | I97: ='Historic Data'!F35 -> -13.2 | J97: ='Historic Data'!G35 -> 11.9 | K97: ='Historic Data'!H35 -> 30.9 | L97: ='Historic Data'!I35 -> 43.4 | M97: ='Historic Data'!J35 -> 9.5 | N97: ='Historic Data'!K35 -> 10.8 | O97: ='Historic Data'!L35 -> -1.3 | P97: ='Historic Data'!M35 -> 0.2 | Q97: ='Historic Data'!N35 -> 7.7 | R97: ='Historic Data'!O35 -> 35.3 | S97: ='Historic Data'!P35 -> 117.2 | T97: ='Historic Data'!Q35 -> 265.2 | U97: ='Historic Data'!R35 -> 0 | V97: ='Historic Data'!S35 -> 0 | W97: ='Historic Data'!T35 -> 0 | X97: ='Historic Data'!U35 -> 0 | Y97: ='Historic Data'!V35 -> 0 | Z97: ='Historic Data'!W35 -> 0 | AA97: ='Historic Data'!X35 -> 0 | AB97: ='Historic Data'!Y35 -> 0 | AC97: ='Historic Data'!Z35 -> 0
A100: Assumptions from History | E100: Average | F100: Last Year | G100: Input
B102: Units Growth | E102: =AVERAGEIF($3:$3,TRUE,102:102) -> 0.1385397566 | F102: =SUMIF($4:$4,TRUE,102:102) -> 0.2527679919 | G102: =Scenario!E25 -> 0.07 | H102: 3 | J102: =IF(J3,J8/I8-1,INDEX($E102:$G102,$H102)) -> 0.3309262166 | K102: 0.06204293465 | L102: 0.3682807641 | M102: -0.004707792208 | N102: -0.3382808677 | O102: 0.2457480897 | P102: 0.221013059 | Q102: -0.2686760655 | R102: 0.357190339 | S102: 0.2976326531 | T102: 0.2527679919 | U102: 0.07 | V102: 0.07 | W102: 0.07 | X102: 0.07 | Y102: 0.07 | Z102: 0.07 | AA102: 0.07 | AB102: 0.07 | AC102: 0.07
B103: Price | E103: =AVERAGEIF($3:$3,TRUE,103:103) -> 1.126321843 | F103: =SUMIF($4:$4,TRUE,103:103) -> 1.02812092 | G103: ='Financial Model'!F103 -> 1.02812092 | H103: 3 | I103: =IF(I$3,I10,INDEX($E103:$G103,$H103)) -> 1.124835165 | J103: 0.909247464 | K103: 1.079742337 | L103: 0.9797077922 | M103: 0.8284129832 | N103: 1.705693862 | O103: 1.154728928 | P103: 1.169340463 | Q103: 1.348105473 | R103: 1.128163265 | S103: 1.059763463 | T103: 1.02812092 | U103: 1.02812092 | V103: 1.02812092 | W103: 1.02812092 | X103: 1.02812092 | Y103: 1.02812092 | Z103: 1.02812092 | AA103: 1.02812092 | AB103: 1.02812092 | AC103: 1.02812092
B104: Price Growth | E104: =AVERAGEIF($3:$3,TRUE,104:104) -> 0.1159667554 | F104: =SUMIF($4:$4,TRUE,104:104) -> 0.2153626974 | G104: =Scenario!F25 -> 0.01 | H104: 3 | J104: =IF(J$3,J9/I9-1,INDEX($E104:$G104,$H104)) -> 0.07583877631 | K104: 0.2611888021 | L104: 0.2415140918 | M104: -0.1584092792 | N104: 0.3624729277 | O104: -0.1566473988 | P104: 0.236463331 | Q104: -0.1568736142 | R104: 0.1357659435 | S104: 0.2189580318 | T104: 0.2153626974 | U104: 0.01 | V104: 0.01 | W104: 0.01 | X104: 0.01 | Y104: 0.01 | Z104: 0.01 | AA104: 0.01 | AB104: 0.01 | AC104: 0.01
B106: COGS Less Depreciation | I106: =I12-I21 -> 3373.4 | J106: 3250 | K106: 3900 | L106: 4775 | M106: 4025 | N106: 5466 | O106: 4768 | P106: 5951 | Q106: 4789 | R106: 5362 | S106: 6566 | T106: 7706 | U106: 0 | V106: 0 | W106: 0 | X106: 0 | Y106: 0 | Z106: 0 | AA106: 0 | AB106: 0 | AC106: 0
B107: COGS as Percent of Revenue | E107: =AVERAGEIF($3:$3,TRUE,107:107) -> 0.8081511882 | F107: =SUMIF($4:$4,TRUE,107:107) -> 0.7527595975 | G107: =Scenario!G25 -> 0.75 | H107: 3 | I107: =IF(I$3,I106/I$9,INDEX($E107:$G107,$H107)) -> 0.9416066544 | J107: =IF(J$3,J106/J$9,INDEX($E107:$G107,$H107)) -> 0.8432140726 | K107: 0.8023040527 | L107: 0.7912178956 | M107: 0.7924788344 | N107: 0.7898843931 | O107: 0.8169979438 | P107: 0.824695122 | Q107: 0.7871466141 | R107: 0.7759768452 | S107: 0.7795322332 | T107: 0.7527595975 | U107: 0.75 | V107: 0.75 | W107: 0.75 | X107: 0.75 | Y107: 0.75 | Z107: 0.75 | AA107: 0.75 | AB107: 0.75 | AC107: 0.75
B108: COGS per Unit | E108: =AVERAGEIF($3:$3,TRUE,108:108) -> 0.9096233895 | F108: =SUMIF($4:$4,TRUE,108:108) -> 0.7739278899 | G108: 0.8 | H108: 3 | I108: =IF(I$3,I106/I8,INDEX($E108:$G108,$H108)) -> 1.059152276 | J108: 0.7666902571 | K108: 0.8662816526 | L108: 0.7751623377 | M108: 0.6564997553 | N108: 1.347300961 | O108: 0.9434111595 | P108: 0.9643493761 | Q108: 1.061156659 | R108: 0.8754285714 | S108: 0.8261197786 | T108: 0.7739278899 | U108: 0.8 | V108: 0.8 | W108: 0.8 | X108: 0.8 | Y108: 0.8 | Z108: 0.8 | AA108: 0.8 | AB108: 0.8 | AC108: 0.8
B110: Research and Development Growth | E110: =AVERAGEIF($3:$3,TRUE,110:110) -> 0.1347333244 | F110: =SUMIF($4:$4,TRUE,110:110) -> 0.07582938389 | G110: =Scenario!I25 -> 0.07 | H110: 3 | J110: =IF(J3,J13/I13-1,INDEX($E110:$G110,$H110)) -> 0.2847317744 | K110: 0.3276231263 | L110: -0.04032258065 | M110: -0.2268907563 | N110: 0.6304347826 | O110: 0.3533333333 | P110: 0.2561576355 | Q110: -0.03529411765 | R110: -0.1341463415 | S110: -0.009389671362 | T110: 0.07582938389 | U110: 0.07 | V110: 0.07 | W110: 0.07 | X110: 0.07 | Y110: 0.07 | Z110: 0.07 | AA110: 0.07 | AB110: 0.07 | AC110: 0.07
B111: Distribution Cost as Percent of Revenue | E111: =AVERAGEIF($3:$3,TRUE,111:111) -> 0.02538283747 | F111: =SUMIF($4:$4,TRUE,111:111) -> 0.01856012504 | G111: 0.02 | H111: 3 | I111: =IF(I$3,I14/I$9,INDEX($E111:$G111,$H111)) -> 0.01191871825 | J111: 0.01803180863 | K111: 0.0203661798 | L111: 0.029991715 | M111: 0.03504626895 | N111: 0.02976878613 | O111: 0.0356408499 | P111: 0.02827050998 | Q111: 0.03205128205 | R111: 0.02286541245 | S111: 0.02208239345 | T111: 0.01856012504 | U111: 0.02 | V111: 0.02 | W111: 0.02 | X111: 0.02 | Y111: 0.02 | Z111: 0.02 | AA111: 0.02 | AB111: 0.02 | AC111: 0.02
B112: Administration costs as Percent of Revenue | E112: =AVERAGEIF($3:$3,TRUE,112:112) -> 0.03946172369 | F112: =SUMIF($4:$4,TRUE,112:112) -> 0.02813324216 | G112: 0.035 | H112: 3 | I112: =IF(I$3,I15/I$9,INDEX($E112:$G112,$H112)) -> 0.02366996036 | J112: 0.02942168487 | K112: 0.03270931907 | L112: 0.03496271748 | M112: 0.06202008269 | N112: 0.05072254335 | O112: 0.06031528444 | P112: 0.04614745011 | Q112: 0.04010519395 | R112: 0.03589001447 | S112: 0.02944319126 | T112: 0.02813324216 | U112: 0.035 | V112: 0.035 | W112: 0.035 | X112: 0.035 | Y112: 0.035 | Z112: 0.035 | AA112: 0.035 | AB112: 0.035 | AC112: 0.035
B114: Depreciation as Percent of Prior Plant Balance | E114: =AVERAGEIF($3:$3,TRUE,114:114) -> 0.2548451246 | F114: =SUMIF($4:$4,TRUE,114:114) -> 0.3166536357 | G114: 0.31 | H114: 3 | J114: =IF(J$3,J21/I34,INDEX($E114:$G114,$H114)) -> 0.3068181858 | K114: 0.2776076785 | L114: 0.1269592476 | M114: 0.2116504854 | N114: 0.1909650924 | O114: 0.2012910798 | P114: 0.2471022129 | Q114: 0.3102643857 | R114: 0.303030303 | S114: 0.3109540636 | T114: 0.3166536357 | U114: 0.31 | V114: 0.31 | W114: 0.31 | X114: 0.31 | Y114: 0.31 | Z114: 0.31 | AA114: 0.31 | AB114: 0.31 | AC114: 0.31
B116: Net Capital Exenditures | E116: =AVERAGEIF($3:$3,TRUE,116:116) -> 442.149999 | F116: =SUMIF($4:$4,TRUE,116:116) -> 468 | G116: =Scenario!H25 -> 1000 | H116: 3 | I116: =IF(I3,I85+I86+I87+I88,$G$116) -> 131.9999948 | J116: 174.799993 | K116: 317 | L116: 680 | M116: 818 | N116: 787 | O116: 740 | P116: 291 | Q116: 242 | R116: 286 | S116: 370 | T116: 468 | U116: 1000 | V116: 1000 | W116: 1000 | X116: 1000 | Y116: 1000 | Z116: 1000 | AA116: 1000 | AB116: 1000 | AC116: 1000
B118: Inventories as Pecent of COGS | E118: =AVERAGEIF($3:$3,TRUE,118:118) -> 0.4063010687 | F118: =SUMIF($4:$4,TRUE,118:118) -> 0.2575914872 | G118: 0.26 | H118: 3 | I118: =IF(I$3,I41/I106,INDEX($E118:$G118,$H118)) -> 0.2070018343 | J118: 0.2709846191 | K118: 0.2838461538 | L118: 0.6004188482 | M118: 0.9761490683 | N118: 0.5003658983 | O118: 0.5339765101 | P118: 0.3770794824 | Q118: 0.2975569012 | R118: 0.2814248415 | S118: 0.2892171794 | T118: 0.2575914872 | U118: 0.26 | V118: 0.26 | W118: 0.26 | X118: 0.26 | Y118: 0.26 | Z118: 0.26 | AA118: 0.26 | AB118: 0.26 | AC118: 0.26
B119: Receivables as Percent of Revenues | E119: =AVERAGEIF($3:$3,TRUE,119:119) -> 0.1209202877 | F119: =SUMIF($4:$4,TRUE,119:119) -> 0.1013968936 | G119: 0.12 | H119: 3 | I119: =IF(I$3,I42/I9,INDEX($E119:$G119,$H119)) -> 0.1732819706 | J119: 0.1844433553 | K119: 0.135774532 | L119: 0.1554266777 | M119: 0.1033668045 | N119: 0.0901734104 | O119: 0.113605209 | P119: 0.1097560976 | Q119: 0.1028928337 | R119: 0.08654124457 | S119: 0.0943844236 | T119: 0.1013968936 | U119: 0.12 | V119: 0.12 | W119: 0.12 | X119: 0.12 | Y119: 0.12 | Z119: 0.12 | AA119: 0.12 | AB119: 0.12 | AC119: 0.12
B120: Other Current Assets as Percent of Revenues | E120: =AVERAGEIF($3:$3,TRUE,120:120) -> 0.07950728155 | F120: =SUMIF($4:$4,TRUE,120:120) -> 0.03682719547 | G120: 0.06 | H120: 3 | I120: =IF(I$3,I45/I9,INDEX($E120:$G120,$H120)) -> 0.1480768216 | J120: 0.1181018365 | K120: 0.09298498251 | L120: 0.05849212925 | M120: 0.06753297893 | N120: 0.05505780347 | O120: 0.09989718986 | P120: 0.06554878049 | Q120: 0.06755424063 | R120: 0.08263386397 | S120: 0.06137955598 | T120: 0.03682719547 | U120: 0.06 | V120: 0.06 | W120: 0.06 | X120: 0.06 | Y120: 0.06 | Z120: 0.06 | AA120: 0.06 | AB120: 0.06 | AC120: 0.06
B121: Payables as Percent of COGS | E121: =AVERAGEIF($3:$3,TRUE,121:121) -> 0.2205331433 | F121: =SUMIF($4:$4,TRUE,121:121) -> 0.2161951726 | G121: 0.2 | H121: 3 | I121: =IF(I$3,I61/I106,INDEX($E121:$G121,$H121)) -> 0.1540878603 | J121: 0.2484923002 | K121: 0.2279487179 | L121: 0.2157068063 | M121: 0.2638509317 | N121: 0.204903037 | O121: 0.3278104027 | P121: 0.1693832969 | Q121: 0.1737314679 | R121: 0.1762402089 | S121: 0.2680475175 | T121: 0.2161951726 | U121: 0.2 | V121: 0.2 | W121: 0.2 | X121: 0.2 | Y121: 0.2 | Z121: 0.2 | AA121: 0.2 | AB121: 0.2 | AC121: 0.2
B122: Other Current Liabilities as Percent of Revenues | E122: =AVERAGEIF($3:$3,TRUE,122:122) -> 0.2386936882 | F122: =SUMIF($4:$4,TRUE,122:122) -> 0.2947152486 | G122: 0.24 | H122: 3 | I122: =IF(I$3,(I59+I60)/I9,INDEX($E122:$G122,$H122)) -> 0.1671970014 | J122: 0.2346729595 | K122: -0.09175066859 | L122: 0.3592377796 | M122: 0.5036424493 | N122: 0.1718208092 | O122: 0.2354352296 | P122: 0.1801552106 | Q122: 0.2470414201 | R122: 0.293487699 | S122: 0.2686691203 | T122: 0.2947152486 | U122: 0.24 | V122: 0.24 | W122: 0.24 | X122: 0.24 | Y122: 0.24 | Z122: 0.24 | AA122: 0.24 | AB122: 0.24 | AC122: 0.24
B124: Provisions as Percent of Revenues | E124: =AVERAGEIF($3:$3,TRUE,124:124) -> 0.02808112043 | F124: =SUMIF($4:$4,TRUE,124:124) -> 0.04464198496 | G124: 0.03 | H124: 3 | I124: =IF(I$3,I53/I9,INDEX($E124:$G124,$H124)) -> 0.02473064212 | J124: 0.0256337086 | K124: 0.0220119317 | L124: 0.02021541011 | M124: 0.02697381374 | N124: 0.0200867052 | O124: 0.02484578478 | P124: 0.02425166297 | Q124: 0.0328731098 | R124: 0.03342981187 | S124: 0.03727887926 | T124: 0.04464198496 | U124: 0.03 | V124: 0.03 | W124: 0.03 | X124: 0.03 | Y124: 0.03 | Z124: 0.03 | AA124: 0.03 | AB124: 0.03 | AC124: 0.03
B125: Deferred Tax as Percent of Cap Exp | E125: =AVERAGEIF($3:$3,TRUE,125:125) -> 0.1173380615 | F125: =SUMIF($4:$4,TRUE,125:125) -> 0.1474358974 | G125: 0.14 | H125: 3 | J125: =IF(J$3,(J39-139)/J116,INDEX($E125:$G125,$H125)) -> 0.1315789526 | K125: 0.04731861199 | L125: 0.06911764706 | M125: 0.2995110024 | N125: 0.1080050826 | O125: 0.2621621622 | P125: 0.02405498282 | Q125: 0.06611570248 | R125: 0.1083916084 | S125: 0.02702702703 | T125: 0.1474358974 | U125: 0.14 | V125: 0.14 | W125: 0.14 | X125: 0.14 | Y125: 0.14 | Z125: 0.14 | AA125: 0.14 | AB125: 0.14 | AC125: 0.14
A133: Operating Analsys
B134: Revenues
B135: MW Delivered | I135: =IF(I3,I8,H135*(1+I102)) -> 3185 | J135: 4239 | K135: 4502 | L135: 6160 | M135: 6131 | N135: 4057 | O135: 5054 | P135: 6171 | Q135: 4513 | R135: 6125 | S135: 7948 | T135: 9957 | U135: 10653.99 | V135: 11399.7693 | W135: 12197.75315 | X135: 13051.59587 | Y135: 13965.20758 | Z135: 14942.77211 | AA135: 15988.76616 | AB135: 17107.97979 | AC135: 18305.53838
B136: Price per MW | I136: =IF(I3,I10,#REF!*(1+I104)) -> 1.124835165 | J136: =IF(J3,J10,I136*(1+J104)) -> 0.909247464 | K136: 1.079742337 | L136: 0.9797077922 | M136: 0.8284129832 | N136: 1.705693862 | O136: 1.154728928 | P136: 1.169340463 | Q136: 1.348105473 | R136: 1.128163265 | S136: 1.059763463 | T136: 1.02812092 | U136: 1.038402129 | V136: 1.04878615 | W136: 1.059274012 | X136: 1.069866752 | Y136: 1.08056542 | Z136: 1.091371074 | AA136: 1.102284785 | AB136: 1.113307632 | AC136: 1.124440709
B137: Revenues | I137: =I135*I136 -> 3582.6 | J137: 3854.3 | K137: 4861 | L137: 6035 | M137: 5079 | N137: 6920 | O137: 5836 | P137: 7216 | Q137: 6084 | R137: 6910 | S137: 8423 | T137: 10237 | U137: 11063.1259 | V137: 11955.92016 | W137: 12920.76292 | X137: 13963.46848 | Y137: 15090.32039 | Z137: 16308.10925 | AA137: 17624.17366 | AB137: 19046.44448 | AC137: 20583.49255
B139: COGS Percent | I139: ='Financial Model'!I107 -> 0.9416066544 | J139: ='Financial Model'!J107 -> 0.8432140726 | K139: ='Financial Model'!K107 -> 0.8023040527 | L139: ='Financial Model'!L107 -> 0.7912178956 | M139: ='Financial Model'!M107 -> 0.7924788344 | N139: ='Financial Model'!N107 -> 0.7898843931 | O139: ='Financial Model'!O107 -> 0.8169979438 | P139: ='Financial Model'!P107 -> 0.824695122 | Q139: ='Financial Model'!Q107 -> 0.7871466141 | R139: ='Financial Model'!R107 -> 0.7759768452 | S139: ='Financial Model'!S107 -> 0.7795322332 | T139: ='Financial Model'!T107 -> 0.7527595975 | U139: ='Financial Model'!U107 -> 0.75 | V139: ='Financial Model'!V107 -> 0.75 | W139: ='Financial Model'!W107 -> 0.75 | X139: ='Financial Model'!X107 -> 0.75 | Y139: ='Financial Model'!Y107 -> 0.75 | Z139: ='Financial Model'!Z107 -> 0.75 | AA139: ='Financial Model'!AA107 -> 0.75 | AB139: ='Financial Model'!AB107 -> 0.75 | AC139: ='Financial Model'!AC107 -> 0.75
B140: Cash COGS | I140: =IF(I3,I106,I139*I137) -> 3373.4 | J140: 3250 | K140: 3900 | L140: 4775 | M140: 4025 | N140: 5466 | O140: 4768 | P140: 5951 | Q140: 4789 | R140: 5362 | S140: 6566 | T140: 7706 | U140: 8297.344425 | V140: 8966.94012 | W140: 9690.572188 | X140: 10472.60136 | Y140: 11317.74029 | Z140: 12231.08194 | AA140: 13218.13025 | AB140: 14284.83336 | AC140: 15437.61941
B142: Research and Development Growth | I142: ='Financial Model'!I110 -> 0 | J142: ='Financial Model'!J110 -> 0.2847317744 | K142: ='Financial Model'!K110 -> 0.3276231263 | L142: ='Financial Model'!L110 -> -0.04032258065 | M142: ='Financial Model'!M110 -> -0.2268907563 | N142: ='Financial Model'!N110 -> 0.6304347826 | O142: ='Financial Model'!O110 -> 0.3533333333 | P142: ='Financial Model'!P110 -> 0.2561576355 | Q142: ='Financial Model'!Q110 -> -0.03529411765 | R142: ='Financial Model'!R110 -> -0.1341463415 | S142: ='Financial Model'!S110 -> -0.009389671362 | T142: ='Financial Model'!T110 -> 0.07582938389 | U142: ='Financial Model'!U110 -> 0.07 | V142: ='Financial Model'!V110 -> 0.07 | W142: ='Financial Model'!W110 -> 0.07 | X142: ='Financial Model'!X110 -> 0.07 | Y142: ='Financial Model'!Y110 -> 0.07 | Z142: ='Financial Model'!Z110 -> 0.07 | AA142: ='Financial Model'!AA110 -> 0.07 | AB142: ='Financial Model'!AB110 -> 0.07 | AC142: ='Financial Model'!AC110 -> 0.07
B143: =B13 -> Research and development costs | I143: =IF(I3,I13,H142*(1+I110)) -> 72.7 | J143: =IF(J3,J13,I143*(1+J110)) -> 93.4 | K143: 124 | L143: 119 | M143: 92 | N143: 150 | O143: 203 | P143: 255 | Q143: 246 | R143: 213 | S143: 211 | T143: 227 | U143: 242.89 | V143: 259.8923 | W143: 278.084761 | X143: 297.5506943 | Y143: 318.3792429 | Z143: 340.6657899 | AA143: 364.5123952 | AB143: 390.0282628 | AC143: 417.3302412
B145: Distribution Costs as Pct of Revenue | I145: ='Financial Model'!I111 -> 0.01191871825 | J145: ='Financial Model'!J111 -> 0.01803180863 | K145: ='Financial Model'!K111 -> 0.0203661798 | L145: ='Financial Model'!L111 -> 0.029991715 | M145: ='Financial Model'!M111 -> 0.03504626895 | N145: ='Financial Model'!N111 -> 0.02976878613 | O145: ='Financial Model'!O111 -> 0.0356408499 | P145: ='Financial Model'!P111 -> 0.02827050998 | Q145: ='Financial Model'!Q111 -> 0.03205128205 | R145: ='Financial Model'!R111 -> 0.02286541245 | S145: ='Financial Model'!S111 -> 0.02208239345 | T145: ='Financial Model'!T111 -> 0.01856012504 | U145: ='Financial Model'!U111 -> 0.02 | V145: ='Financial Model'!V111 -> 0.02 | W145: ='Financial Model'!W111 -> 0.02 | X145: ='Financial Model'!X111 -> 0.02 | Y145: ='Financial Model'!Y111 -> 0.02 | Z145: ='Financial Model'!Z111 -> 0.02 | AA145: ='Financial Model'!AA111 -> 0.02 | AB145: ='Financial Model'!AB111 -> 0.02 | AC145: ='Financial Model'!AC111 -> 0.02
B146: Distribution Costs | I146: =I145*I137 -> 42.7 | J146: =J145*J137 -> 69.5 | K146: 99 | L146: 181 | M146: 178 | N146: 206 | O146: 208 | P146: 204 | Q146: 195 | R146: 158 | S146: 186 | T146: 190 | U146: 221.262518 | V146: 239.1184032 | W146: 258.4152583 | X146: 279.2693697 | Y146: 301.8064078 | Z146: 326.1621849 | AA146: 352.4834733 | AB146: 380.9288896 | AC146: 411.6698509
B148: =B112 -> Administration costs as Percent of Revenue | I148: ='Financial Model'!I112 -> 0.02366996036 | J148: ='Financial Model'!J112 -> 0.02942168487 | K148: ='Financial Model'!K112 -> 0.03270931907 | L148: ='Financial Model'!L112 -> 0.03496271748 | M148: ='Financial Model'!M112 -> 0.06202008269 | N148: ='Financial Model'!N112 -> 0.05072254335 | O148: ='Financial Model'!O112 -> 0.06031528444 | P148: ='Financial Model'!P112 -> 0.04614745011 | Q148: ='Financial Model'!Q112 -> 0.04010519395 | R148: ='Financial Model'!R112 -> 0.03589001447 | S148: ='Financial Model'!S112 -> 0.02944319126 | T148: ='Financial Model'!T112 -> 0.02813324216 | U148: ='Financial Model'!U112 -> 0.035 | V148: ='Financial Model'!V112 -> 0.035 | W148: ='Financial Model'!W112 -> 0.035 | X148: ='Financial Model'!X112 -> 0.035 | Y148: ='Financial Model'!Y112 -> 0.035 | Z148: ='Financial Model'!Z112 -> 0.035 | AA148: ='Financial Model'!AA112 -> 0.035 | AB148: ='Financial Model'!AB112 -> 0.035 | AC148: ='Financial Model'!AC112 -> 0.035
B149: =B15 -> Administration costs | I149: =I148*I137 -> 84.8 | J149: =J148*J137 -> 113.4 | K149: 159 | L149: 211 | M149: 315 | N149: 351 | O149: 352 | P149: 333 | Q149: 244 | R149: 248 | S149: 248 | T149: 288 | U149: 387.2094065 | V149: 418.4572056 | W149: 452.2267021 | X149: 488.721397 | Y149: 528.1612137 | Z149: 570.7838236 | AA149: 616.8460782 | AB149: 666.6255567 | AC149: 720.4222391
B151: Total Cash Operating Cost | I151: =I149+I146+I143+I140 -> 3573.6 | J151: =J149+J146+J143+J140 -> 3526.3 | K151: 4282 | L151: 5286 | M151: 4610 | N151: 6173 | O151: 5531 | P151: 6743 | Q151: 5474 | R151: 5981 | S151: 7211 | T151: 8411 | U151: 9148.70635 | V151: 9884.408029 | W151: 10679.29891 | X151: 11538.14282 | Y151: 12466.08716 | Z151: 13468.69373 | AA151: 14551.97219 | AB151: 15722.41607 | AC151: 16987.04174
B153: EBITDA | I153: =I137-I151 -> 9 | J153: =J137-J151 -> 328 | K153: 579 | L153: 749 | M153: 469 | N153: 747 | O153: 305 | P153: 473 | Q153: 610 | R153: 929 | S153: 1212 | T153: 1826 | U153: 1914.41955 | V153: 2071.512131 | W153: 2241.464008 | X153: 2425.32566 | Y153: 2624.233233 | Z153: 2839.415513 | AA153: 3072.201469 | AB153: 3324.02841 | AC153: 3596.450805
B154: EBITDA Margin | I154: =I153/I137 -> 0.00251214202 | J154: =J153/J137 -> 0.08509975871 | K154: 0.119111294 | L154: 0.1241093621 | M154: 0.09234101201 | N154: 0.1079479769 | O154: 0.05226182317 | P154: 0.06554878049 | Q154: 0.1002629849 | R154: 0.1344428365 | S154: 0.143891725 | T154: 0.1783725701 | U154: 0.173045084 | V154: 0.1732624594 | W154: 0.1734776826 | X154: 0.1736907748 | Y154: 0.1739017572 | Z154: 0.1741106507 | AA154: 0.174317476 | AB154: 0.1745222534 | AC154: 0.1747250034
B156: Net Depreciation Rate | I156: ='Financial Model'!I114 -> 0 | J156: ='Financial Model'!J114 -> 0.3068181858 | K156: ='Financial Model'!K114 -> 0.2776076785 | L156: ='Financial Model'!L114 -> 0.1269592476 | M156: ='Financial Model'!M114 -> 0.2116504854 | N156: ='Financial Model'!N114 -> 0.1909650924 | O156: ='Financial Model'!O114 -> 0.2012910798 | P156: ='Financial Model'!P114 -> 0.2471022129 | Q156: ='Financial Model'!Q114 -> 0.3102643857 | R156: ='Financial Model'!R114 -> 0.303030303 | S156: ='Financial Model'!S114 -> 0.3109540636 | T156: ='Financial Model'!T114 -> 0.3166536357 | U156: ='Financial Model'!U114 -> 0.31 | V156: ='Financial Model'!V114 -> 0.31 | W156: ='Financial Model'!W114 -> 0.31 | X156: ='Financial Model'!X114 -> 0.31 | Y156: ='Financial Model'!Y114 -> 0.31 | Z156: ='Financial Model'!Z114 -> 0.31 | AA156: ='Financial Model'!AA114 -> 0.31 | AB156: ='Financial Model'!AB114 -> 0.31 | AC156: ='Financial Model'!AC114 -> 0.31
B157: Opening Balance Balance | I157: ='Financial Model'!H160 -> 0 | J157: ='Financial Model'!I160 -> 466.3999939 | K157: ='Financial Model'!J160 -> 489.8999939 | L157: ='Financial Model'!K160 -> 638 | M157: ='Financial Model'!L160 -> 1030 | N157: ='Financial Model'!M160 -> 1461 | O157: ='Financial Model'!N160 -> 1704 | P157: ='Financial Model'!O160 -> 1898 | Q157: ='Financial Model'!P160 -> 1286 | R157: ='Financial Model'!Q160 -> 1221 | S157: ='Financial Model'!R160 -> 1132 | T157: ='Financial Model'!S160 -> 1279 | U157: ='Financial Model'!T160 -> 1329 | V157: ='Financial Model'!U160 -> 1917.01 | W157: ='Financial Model'!V160 -> 2322.7369 | X157: ='Financial Model'!W160 -> 2602.688461 | Y157: ='Financial Model'!X160 -> 2795.855038 | Z157: ='Financial Model'!Y160 -> 2929.139976 | AA157: ='Financial Model'!Z160 -> 3021.106584 | AB157: ='Financial Model'!AA160 -> 3084.563543 | AC157: ='Financial Model'!AB160 -> 3128.348844
B158: Plus Capital Expenditures | I158: ='Financial Model'!I116 -> 131.9999948 | J158: ='Financial Model'!J116 -> 174.799993 | K158: ='Financial Model'!K116 -> 317 | L158: ='Financial Model'!L116 -> 680 | M158: ='Financial Model'!M116 -> 818 | N158: ='Financial Model'!N116 -> 787 | O158: ='Financial Model'!O116 -> 740 | P158: ='Financial Model'!P116 -> 291 | Q158: ='Financial Model'!Q116 -> 242 | R158: ='Financial Model'!R116 -> 286 | S158: ='Financial Model'!S116 -> 370 | T158: ='Financial Model'!T116 -> 468 | U158: ='Financial Model'!U116 -> 1000 | V158: ='Financial Model'!V116 -> 1000 | W158: ='Financial Model'!W116 -> 1000 | X158: ='Financial Model'!X116 -> 1000 | Y158: ='Financial Model'!Y116 -> 1000 | Z158: ='Financial Model'!Z116 -> 1000 | AA158: ='Financial Model'!AA116 -> 1000 | AB158: ='Financial Model'!AB116 -> 1000 | AC158: ='Financial Model'!AC116 -> 1000
B159: Less: Depreciation | I159: =IF(I3,I21,I156*I157) -> 124.7 | J159: 143.1 | K159: 136 | L159: 81 | M159: 218 | N159: 279 | O159: 343 | P159: 469 | Q159: 399 | R159: 370 | S159: 352 | T159: 405 | U159: 411.99 | V159: 594.2731 | W159: 720.048439 | X159: 806.8334229 | Y159: 866.7150618 | Z159: 908.0333926 | AA159: 936.5430409 | AB159: 956.2146982 | AC159: 969.7881418
B160: Closing Plant | I160: =IF(I3,I34,I157+I158-I159) -> 466.3999939 | J160: 489.8999939 | K160: 638 | L160: 1030 | M160: 1461 | N160: 1704 | O160: 1898 | P160: 1286 | Q160: 1221 | R160: 1132 | S160: 1279 | T160: 1329 | U160: 1917.01 | V160: 2322.7369 | W160: 2602.688461 | X160: 2795.855038 | Y160: 2929.139976 | Z160: 3021.106584 | AA160: 3084.563543 | AB160: 3128.348844 | AC160: 3158.560703
B162: EBIT | I162: =I153-I159 -> -115.7 | J162: =J153-J159 -> 184.9 | K162: 443 | L162: 668 | M162: 251 | N162: 468 | O162: -38 | P162: 4 | Q162: 211 | R162: 559 | S162: 860 | T162: 1421 | U162: 1502.42955 | V162: 1477.239031 | W162: 1521.415569 | X162: 1618.492237 | Y162: 1757.518172 | Z162: 1931.382121 | AA162: 2135.658428 | AB162: 2367.813712 | AC162: 2626.662664
B163: NOPAT | F163: ='Financial Model'!F74 -> 0.25 | I163: =I162*(1-$F$163) -> -86.775 | J163: =J162*(1-$F$163) -> 138.675 | K163: 332.25 | L163: 501 | M163: 188.25 | N163: 351 | O163: -28.5 | P163: 3 | Q163: 158.25 | R163: 419.25 | S163: 645 | T163: 1065.75 | U163: 1126.822163 | V163: 1107.929273 | W163: 1141.061677 | X163: 1213.869178 | Y163: 1318.138629 | Z163: 1448.53659 | AA163: 1601.743821 | AB163: 1775.860284 | AC163: 1969.996998
B165: Working Capital
B166: Inventories as Pecent of COGS | I166: =I118 -> 0.2070018343 | J166: =J118 -> 0.2709846191 | K166: 0.2838461538 | L166: 0.6004188482 | M166: 0.9761490683 | N166: 0.5003658983 | O166: 0.5339765101 | P166: 0.3770794824 | Q166: 0.2975569012 | R166: 0.2814248415 | S166: 0.2892171794 | T166: 0.2575914872 | U166: 0.26 | V166: 0.26 | W166: 0.26 | X166: 0.26 | Y166: 0.26 | Z166: 0.26 | AA166: 0.26 | AB166: 0.26 | AC166: 0.26
B167: Inventories | I167: =IF(I3,I41,I166*I140) -> 698.2999878 | J167: 880.7000122 | K167: 1107 | L167: 2867 | M167: 3929 | N167: 2735 | O167: 2546 | P167: 2244 | Q167: 1425 | R167: 1509 | S167: 1899 | T167: 1985 | U167: 2157.309551 | V167: 2331.404431 | W167: 2519.548769 | X167: 2722.876354 | Y167: 2942.612476 | Z167: 3180.081303 | AA167: 3436.713864 | AB167: 3714.056673 | AC167: 4013.781047
B169: Receivables as Percent of Revenues | I169: =I119 -> 0.1732819706 | J169: 0.1844433553 | K169: 0.135774532 | L169: 0.1554266777 | M169: 0.1033668045 | N169: 0.0901734104 | O169: 0.113605209 | P169: 0.1097560976 | Q169: 0.1028928337 | R169: 0.08654124457 | S169: 0.0943844236 | T169: 0.1013968936 | U169: 0.12 | V169: 0.12 | W169: 0.12 | X169: 0.12 | Y169: 0.12 | Z169: 0.12 | AA169: 0.12 | AB169: 0.12 | AC169: 0.12
B170: Receivables | I170: =IF(I3,I42,I169*I137) -> 620.7999878 | J170: 710.9000244 | K170: 660 | L170: 938 | M170: 525 | N170: 624 | O170: 663 | P170: 792 | Q170: 626 | R170: 598 | S170: 795 | T170: 1038 | U170: 1327.575108 | V170: 1434.710419 | W170: 1550.49155 | X170: 1675.616218 | Y170: 1810.838447 | Z170: 1956.97311 | AA170: 2114.90084 | AB170: 2285.573337 | AC170: 2470.019106
B172: Other Current Assets as Percent of Revenues | I172: =I120 -> 0.1480768216 | J172: =J120 -> 0.1181018365 | K172: 0.09298498251 | L172: 0.05849212925 | M172: 0.06753297893 | N172: 0.05505780347 | O172: 0.09989718986 | P172: 0.06554878049 | Q172: 0.06755424063 | R172: 0.08263386397 | S172: 0.06137955598 | T172: 0.03682719547 | U172: 0.06 | V172: 0.06 | W172: 0.06 | X172: 0.06 | Y172: 0.06 | Z172: 0.06 | AA172: 0.06 | AB172: 0.06 | AC172: 0.06
B173: Other Current Assets | I173: =IF(I3,I45,I172*I137) -> 530.500021 | J173: 455.1999083 | K173: 452 | L173: 353 | M173: 343 | N173: 381 | O173: 583 | P173: 473 | Q173: 411 | R173: 571 | S173: 517 | T173: 377 | U173: 663.787554 | V173: 717.3552096 | W173: 775.245775 | X173: 837.8081091 | Y173: 905.4192235 | Z173: 978.4865548 | AA173: 1057.45042 | AB173: 1142.786669 | AC173: 1235.009553
B175: Payables as Percent of COGS | I175: =I121 -> 0.1540878603 | J175: =J121 -> 0.2484923002 | K175: 0.2279487179 | L175: 0.2157068063 | M175: 0.2638509317 | N175: 0.204903037 | O175: 0.3278104027 | P175: 0.1693832969 | Q175: 0.1737314679 | R175: 0.1762402089 | S175: 0.2680475175 | T175: 0.2161951726 | U175: 0.2 | V175: 0.2 | W175: 0.2 | X175: 0.2 | Y175: 0.2 | Z175: 0.2 | AA175: 0.2 | AB175: 0.2 | AC175: 0.2
B176: Payables | I176: =IF(I3,I61,I175*I140) -> 519.7999878 | J176: 807.5999756 | K176: 889 | L176: 1030 | M176: 1062 | N176: 1120 | O176: 1563 | P176: 1008 | Q176: 832 | R176: 945 | S176: 1760 | T176: 1666 | U176: 1659.468885 | V176: 1793.388024 | W176: 1938.114438 | X176: 2094.520273 | Y176: 2263.548059 | Z176: 2446.216387 | AA176: 2643.626049 | AB176: 2856.966672 | AC176: 3087.523882
B178: Other Current Liabilities as Percent of Revenues | I178: =I122 -> 0.1671970014 | J178: =J122 -> 0.2346729595 | K178: -0.09175066859 | L178: 0.3592377796 | M178: 0.5036424493 | N178: 0.1718208092 | O178: 0.2354352296 | P178: 0.1801552106 | Q178: 0.2470414201 | R178: 0.293487699 | S178: 0.2686691203 | T178: 0.2947152486 | U178: 0.24 | V178: 0.24 | W178: 0.24 | X178: 0.24 | Y178: 0.24 | Z178: 0.24 | AA178: 0.24 | AB178: 0.24 | AC178: 0.24
B179: Other Current Liabilities | I179: =IF(I3,I59+I60,I178*I137) -> 598.9999771 | J179: 904.4999878 | K179: -446 | L179: 2168 | M179: 2558 | N179: 1189 | O179: 1374 | P179: 1300 | Q179: 1503 | R179: 2028 | S179: 2263 | T179: 3017 | U179: 2655.150216 | V179: 2869.420838 | W179: 3100.9831 | X179: 3351.232436 | Y179: 3621.676894 | Z179: 3913.946219 | AA179: 4229.801679 | AB179: 4571.146675 | AC179: 4940.038211
C181: Total Current Assets | I181: =I167+I170+I173 -> 1849.599997 | J181: =J167+J170+J173 -> 2046.799945 | K181: 2219 | L181: 4158 | M181: 4797 | N181: 3740 | O181: 3792 | P181: 3509 | Q181: 2462 | R181: 2678 | S181: 3211 | T181: 3400 | U181: 4148.672212 | V181: 4483.47006 | W181: 4845.286094 | X181: 5236.300682 | Y181: 5658.870147 | Z181: 6115.540968 | AA181: 6609.065124 | AB181: 7142.416679 | AC181: 7718.809705
C182: Total Current Liabilities | I182: =I176+I179 -> 1118.799965 | J182: =J176+J179 -> 1712.099963 | K182: 443 | L182: 3198 | M182: 3620 | N182: 2309 | O182: 2937 | P182: 2308 | Q182: 2335 | R182: 2973 | S182: 4023 | T182: 4683 | U182: 4314.619101 | V182: 4662.808862 | W182: 5039.097538 | X182: 5445.752709 | Y182: 5885.224953 | Z182: 6360.162606 | AA182: 6873.427729 | AB182: 7428.113346 | AC182: 8027.562093
C184: Total Working Capital
C185: Change in Working Capital
B187: Other Assets Associated with Operation
B188: Intangibles | I188: =IF(I3,I33,H188) -> 477.2999878 | J188: 477.5 | K188: 507 | L188: 644 | M188: 812 | N188: 1034 | O188: 1243 | P188: 1016 | Q188: 741 | R188: 658 | S188: 687 | T188: 828 | U188: 828 | V188: 828 | W188: 828 | X188: 828 | Y188: 828 | Z188: 828 | AA188: 828 | AB188: 828 | AC188: 828
B190: Change in Deferred Tax as Percent of Cap Exp | J190: ='Financial Model'!J125 -> 0.1315789526 | K190: ='Financial Model'!K125 -> 0.04731861199 | L190: ='Financial Model'!L125 -> 0.06911764706 | M190: ='Financial Model'!M125 -> 0.2995110024 | N190: ='Financial Model'!N125 -> 0.1080050826 | O190: ='Financial Model'!O125 -> 0.2621621622 | P190: ='Financial Model'!P125 -> 0.02405498282 | Q190: ='Financial Model'!Q125 -> 0.06611570248 | R190: ='Financial Model'!R125 -> 0.1083916084 | S190: ='Financial Model'!S125 -> 0.02702702703 | T190: ='Financial Model'!T125 -> 0.1474358974 | U190: ='Financial Model'!U125 -> 0.14 | V190: ='Financial Model'!V125 -> 0.14 | W190: ='Financial Model'!W125 -> 0.14 | X190: ='Financial Model'!X125 -> 0.14 | Y190: ='Financial Model'!Y125 -> 0.14 | Z190: ='Financial Model'!Z125 -> 0.14 | AA190: ='Financial Model'!AA125 -> 0.14 | AB190: ='Financial Model'!AB125 -> 0.14 | AC190: ='Financial Model'!AC125 -> 0.14
B191: Change in Deferred Tax | J191: =J190*J158 -> 23 | K191: 15 | L191: 47 | M191: 245 | N191: 85 | O191: 194 | P191: 7 | Q191: 16 | R191: 31 | S191: 10 | T191: 69 | U191: 140 | V191: 140 | W191: 140 | X191: 140 | Y191: 140 | Z191: 140 | AA191: 140 | AB191: 140 | AC191: 140
B192: Deferred Tax | I192: =IF(I3,I39,H192) -> 139.6000061 | J192: =IF(J3,J39,I192+J191) -> 162 | K192: 154 | L192: 186 | M192: 384 | N192: 224 | O192: 333 | P192: 146 | Q192: 155 | R192: 170 | S192: 149 | T192: 208 | U192: 348 | V192: 488 | W192: 628 | X192: 768 | Y192: 908 | Z192: 1048 | AA192: 1188 | AB192: 1328 | AC192: 1468
B194: Other Receivables | I194: =IF(I3,I38,H194) -> 4.699999809 | J194: 11.30000019 | K194: 13 | L194: 25 | M194: 16 | N194: 25 | O194: 44 | P194: 32 | Q194: 34 | R194: 36 | S194: 39 | T194: 55 | U194: 55 | V194: 55 | W194: 55 | X194: 55 | Y194: 55 | Z194: 55 | AA194: 55 | AB194: 55 | AC194: 55
B195: Tax Payables, Other and Customer | I195: =IF(I3,I55+I56+I57,H195) -> 333.7000122 | J195: 187.8000031 | K195: 531 | L195: 518 | M195: 452 | N195: 363 | O195: 503 | P195: 433 | Q195: 88 | R195: 155 | S195: 69 | T195: 146 | U195: 146 | V195: 146 | W195: 146 | X195: 146 | Y195: 146 | Z195: 146 | AA195: 146 | AB195: 146 | AC195: 146
B196: Provisions | I196: =IF(I3,I53,I124*I137) -> 88.59999847 | J196: 98.80000305 | K196: 107 | L196: 122 | M196: 137 | N196: 139 | O196: 145 | P196: 175 | Q196: 200 | R196: 231 | S196: 314 | T196: 457 | U196: 331.893777 | V196: 358.6776048 | W196: 387.6228875 | X196: 418.9040545 | Y196: 452.7096117 | Z196: 489.2432774 | AA196: 528.7252099 | AB196: 571.3933343 | AC196: 617.5047764
B198: Invested Capotal
B199: Intangibles | I199: =I188 -> 477.2999878 | J199: =J188 -> 477.5 | K199: 507 | L199: 644 | M199: 812 | N199: 1034 | O199: 1243 | P199: 1016 | Q199: 741 | R199: 658 | S199: 687 | T199: 828 | U199: 828 | V199: 828 | W199: 828 | X199: 828 | Y199: 828 | Z199: 828 | AA199: 828 | AB199: 828 | AC199: 828
B200: Plant Assets | I200: =I160 -> 466.3999939 | J200: =J160 -> 489.8999939 | K200: 638 | L200: 1030 | M200: 1461 | N200: 1704 | O200: 1898 | P200: 1286 | Q200: 1221 | R200: 1132 | S200: 1279 | T200: 1329 | U200: 1917.01 | V200: 2322.7369 | W200: 2602.688461 | X200: 2795.855038 | Y200: 2929.139976 | Z200: 3021.106584 | AA200: 3084.563543 | AB200: 3128.348844 | AC200: 3158.560703
B201: Deferred Tax | I201: =I192 -> 139.6000061 | J201: =J192 -> 162 | K201: 154 | L201: 186 | M201: 384 | N201: 224 | O201: 333 | P201: 146 | Q201: 155 | R201: 170 | S201: 149 | T201: 208 | U201: 348 | V201: 488 | W201: 628 | X201: 768 | Y201: 908 | Z201: 1048 | AA201: 1188 | AB201: 1328 | AC201: 1468
B202: Othet Receivables | I202: =I194 -> 4.699999809 | J202: =J194 -> 11.30000019 | K202: 13 | L202: 25 | M202: 16 | N202: 25 | O202: 44 | P202: 32 | Q202: 34 | R202: 36 | S202: 39 | T202: 55 | U202: 55 | V202: 55 | W202: 55 | X202: 55 | Y202: 55 | Z202: 55 | AA202: 55 | AB202: 55 | AC202: 55
B203: Current Assets | I203: =I181 -> 1849.599997 | J203: =J181 -> 2046.799945 | K203: 2219 | L203: 4158 | M203: 4797 | N203: 3740 | O203: 3792 | P203: 3509 | Q203: 2462 | R203: 2678 | S203: 3211 | T203: 3400 | U203: 4148.672212 | V203: 4483.47006 | W203: 4845.286094 | X203: 5236.300682 | Y203: 5658.870147 | Z203: 6115.540968 | AA203: 6609.065124 | AB203: 7142.416679 | AC203: 7718.809705
B204: Less: Provisions | I204: =-I196 -> -88.59999847 | J204: =-J196 -> -98.80000305 | K204: -107 | L204: -122 | M204: -137 | N204: -139 | O204: -145 | P204: -175 | Q204: -200 | R204: -231 | S204: -314 | T204: -457 | U204: -331.893777 | V204: -358.6776048 | W204: -387.6228875 | X204: -418.9040545 | Y204: -452.7096117 | Z204: -489.2432774 | AA204: -528.7252099 | AB204: -571.3933343 | AC204: -617.5047764
B205: Less: Current Liabilities | I205: =-I182 -> -1118.799965 | J205: =-J182 -> -1712.099963 | K205: -443 | L205: -3198 | M205: -3620 | N205: -2309 | O205: -2937 | P205: -2308 | Q205: -2335 | R205: -2973 | S205: -4023 | T205: -4683 | U205: -4314.619101 | V205: -4662.808862 | W205: -5039.097538 | X205: -5445.752709 | Y205: -5885.224953 | Z205: -6360.162606 | AA205: -6873.427729 | AB205: -7428.113346 | AC205: -8027.562093
B206: Less: Tax Payables and Other | I206: =-I195 -> -333.7000122 | J206: =-J195 -> -187.8000031 | K206: -531 | L206: -518 | M206: -452 | N206: -363 | O206: -503 | P206: -433 | Q206: -88 | R206: -155 | S206: -69 | T206: -146 | U206: -146 | V206: -146 | W206: -146 | X206: -146 | Y206: -146 | Z206: -146 | AA206: -146 | AB206: -146 | AC206: -146
C207: Total Invested Capital | I207: =SUM(I199:I206) -> 1396.500009 | J207: =SUM(J199:J206) -> 1188.799969 | K207: 2450 | L207: 2205 | M207: 3261 | N207: 3916 | O207: 3725 | P207: 3073 | Q207: 1990 | R207: 1315 | S207: 959 | T207: 534 | U207: 2504.169335 | V207: 3009.720493 | W207: 3386.25413 | X207: 3672.498956 | Y207: 3895.075559 | Z207: 4072.241668 | AA207: 4216.475728 | AB207: 4336.258843 | AC207: 4437.303538
B209: Average Invested Capital | I209: =AVERAGE(I207,H207) -> 1396.500009 | J209: =AVERAGE(J207,I207) -> 1292.649989 | K209: 1819.399985 | L209: 2327.5 | M209: 2733 | N209: 3588.5 | O209: 3820.5 | P209: 3399 | Q209: 2531.5 | R209: 1652.5 | S209: 1137 | T209: 746.5 | U209: 1519.084667 | V209: 2756.944914 | W209: 3197.987311 | X209: 3529.376543 | Y209: 3783.787257 | Z209: 3983.658613 | AA209: 4144.358698 | AB209: 4276.367285 | AC209: 4386.781191
B210: ROIC | I210: =I163/I209 -> -0.06213748619 | J210: =J163/J209 -> 0.1072796203 | K210: 0.1826151494 | L210: 0.2152524168 | M210: 0.06888035126 | N210: 0.09781245646 | O210: -0.007459756576 | P210: 0.0008826125331 | Q210: 0.06251234446 | R210: 0.2537065053 | S210: 0.5672823219 | T210: 1.427662425 | U210: 0.741777063 | V210: 0.4018684842 | W210: 0.3568061926 | X210: 0.3439330327 | Y210: 0.3483648892 | Z210: 0.36361966 | AA210: 0.3864877386 | AB210: 0.4152730964 | AC210: 0.4490757373
I212: =I66 -> 1396.500009 | J212: =J66 -> 1188.799969 | K212: 2450 | L212: 2205 | M212: 3261 | N212: 3916 | O212: 3725 | P212: 3073 | Q212: 1990 | R212: 1315 | S212: 959 | T212: 534 | U212: 0 | V212: 0 | W212: 0 | X212: 0 | Y212: 0 | Z212: 0 | AA212: 0 | AB212: 0 | AC212: 0
I213: =I212-I207 -> 0 | J213: =J212-J207 -> 0 | K213: 0 | L213: 0 | M213: 0 | N213: 0 | O213: 0 | P213: 0 | Q213: 0 | R213: 0 | S213: 0 | T213: 0 | U213: -2504.169335 | V213: -3009.720493 | W213: -3386.25413 | X213: -3672.498956 | Y213: -3895.075559 | Z213: -4072.241668 | AA213: -4216.475728 | AB213: -4336.258843 | AC213: -4437.303538

Sheet DCF
H2: =E9 -> 2017 | I2: =H2+1 -> 2018 | J2: =I2+1 -> 2019 | K2: 2020 | L2: 2021 | M2: 2022 | N2: 2023 | O2: 2024 | P2: 2025 | Q2: 2026 | R2: 2027 | S2: 2028
B3: Explicit period | E3: =E10 -> 2025 | H3: =H2<=$E$3 -> TRUE | I3: =I2<=$E$3 -> TRUE | J3: TRUE | K3: TRUE | L3: TRUE | M3: TRUE | N3: TRUE | O3: TRUE | P3: TRUE | Q3: FALSE | R3: FALSE | S3: FALSE
B4: Terminal period | E4: =E10 -> 2025 | H4: =H2=$E$4 -> FALSE | I4: =I2=$E$4 -> FALSE | J4: FALSE | K4: FALSE | L4: FALSE | M4: FALSE | N4: FALSE | O4: FALSE | P4: TRUE | Q4: FALSE | R4: FALSE | S4: FALSE
A7: VALUATION ASSUMPTIONS
B8: Timing assumptions
C9: Valuation date | E9: 2017
C10: Terminal year | E10: 2025
B12: Financial assumptions
C13: WACC | E13: =G13/1000 -> 0.074 | G13: 74
C14: Terminal growth rate | E14: 0.02
C15: ROIC / WACC | E15: 0.02
C17: Terminal EV / EBITDA | E17: 10
C18: Tax rate | E18: 0.25
B20: Normalized cash flow assump. for terminal year
C21: Asset life | E21: 10 | F21: years
C22: ROIC
C23: Stable CAPEX / Depreciation | E23: ='ROIC Analysis'!E36 -> 1.113265279
C24: Stable WC / EBITDA
C25: Stable change in deferred tax / CAPEX
H26: 0.5 | I26: =H26+1 -> 1.5 | J26: =I26+1 -> 2.5 | K26: 3.5 | L26: 4.5 | M26: 5.5 | N26: 6.5 | O26: 7.5 | P26: 8.5 | Q26: 9.5 | R26: 10.5 | S26: 11.5
A27: FCF
B28: EBTIDA | H28: =H33*H3 -> 1914.41955 | I28: =I33*I3 -> 2071.512131 | J28: 2241.464008 | K28: 2425.32566 | L28: 2624.233233 | M28: 2839.415513 | N28: 3072.201469 | O28: 3324.02841 | P28: 3596.450805 | Q28: 0 | R28: 0 | S28: 0
B29: Depreciation | H29: =LOOKUP(H2,'Financial Model'!2:2,'Financial Model'!159:159)*H3 -> 411.99 | I29: =LOOKUP(I2,'Financial Model'!2:2,'Financial Model'!159:159)*I3 -> 594.2731 | J29: =LOOKUP(J2,'Financial Model'!2:2,'Financial Model'!159:159)*J3 -> 720.048439 | K29: =LOOKUP(K2,'Financial Model'!2:2,'Financial Model'!159:159)*K3 -> 806.8334229 | L29: =LOOKUP(L2,'Financial Model'!2:2,'Financial Model'!159:159)*L3 -> 866.7150618 | M29: =LOOKUP(M2,'Financial Model'!2:2,'Financial Model'!159:159)*M3 -> 908.0333926 | N29: =LOOKUP(N2,'Financial Model'!2:2,'Financial Model'!159:159)*N3 -> 936.5430409 | O29: =LOOKUP(O2,'Financial Model'!2:2,'Financial Model'!159:159)*O3 -> 956.2146982 | P29: =LOOKUP(P2,'Financial Model'!2:2,'Financial Model'!159:159)*P3 -> 969.7881418 | Q29: =LOOKUP(Q2,'Financial Model'!2:2,'Financial Model'!159:159)*Q3 -> 0 | R29: =LOOKUP(R2,'Financial Model'!2:2,'Financial Model'!159:159)*R3 -> 0 | S29: =LOOKUP(S2,'Financial Model'!2:2,'Financial Model'!159:159)*S3 -> 0
B30: EBIT | H30: =H28-H29*H3 -> 1502.42955 | I30: =I28-I29*I3 -> 1477.239031 | J30: 1521.415569 | K30: 1618.492237 | L30: 1757.518172 | M30: 1931.382121 | N30: 2135.658428 | O30: 2367.813712 | P30: 2626.662664 | Q30: 0 | R30: 0 | S30: 0
B31: Operating taxes | E31: =E18 -> 0.25 | H31: =H30*$E$31 -> 375.6073876 | I31: =I30*$E$31 -> 369.3097578 | J31: 380.3538922 | K31: 404.6230593 | L31: 439.3795429 | M31: 482.8455301 | N31: 533.914607 | O31: 591.953428 | P31: 656.6656659 | Q31: 0 | R31: 0 | S31: 0
B33: EBITDA | H33: =LOOKUP(H2,'Financial Model'!2:2,'Financial Model'!153:153)*H3 -> 1914.41955 | I33: =LOOKUP(I2,'Financial Model'!2:2,'Financial Model'!153:153)*I3 -> 2071.512131 | J33: =LOOKUP(J2,'Financial Model'!2:2,'Financial Model'!153:153)*J3 -> 2241.464008 | K33: =LOOKUP(K2,'Financial Model'!2:2,'Financial Model'!153:153)*K3 -> 2425.32566 | L33: =LOOKUP(L2,'Financial Model'!2:2,'Financial Model'!153:153)*L3 -> 2624.233233 | M33: =LOOKUP(M2,'Financial Model'!2:2,'Financial Model'!153:153)*M3 -> 2839.415513 | N33: =LOOKUP(N2,'Financial Model'!2:2,'Financial Model'!153:153)*N3 -> 3072.201469 | O33: =LOOKUP(O2,'Financial Model'!2:2,'Financial Model'!153:153)*O3 -> 3324.02841 | P33: =LOOKUP(P2,'Financial Model'!2:2,'Financial Model'!153:153)*P3 -> 3596.450805 | Q33: =LOOKUP(Q2,'Financial Model'!2:2,'Financial Model'!153:153)*Q3 -> 0 | R33: =LOOKUP(R2,'Financial Model'!2:2,'Financial Model'!153:153)*R3 -> 0 | S33: =LOOKUP(S2,'Financial Model'!2:2,'Financial Model'!153:153)*S3 -> 0
B34: Less: CAPEX | H34: =LOOKUP(H2,'Financial Model'!2:2,'Financial Model'!116:116)*H3 -> 1000 | I34: =LOOKUP(I2,'Financial Model'!2:2,'Financial Model'!116:116)*I3 -> 1000 | J34: =LOOKUP(J2,'Financial Model'!2:2,'Financial Model'!116:116)*J3 -> 1000 | K34: =LOOKUP(K2,'Financial Model'!2:2,'Financial Model'!116:116)*K3 -> 1000 | L34: =LOOKUP(L2,'Financial Model'!2:2,'Financial Model'!116:116)*L3 -> 1000 | M34: =LOOKUP(M2,'Financial Model'!2:2,'Financial Model'!116:116)*M3 -> 1000 | N34: =LOOKUP(N2,'Financial Model'!2:2,'Financial Model'!116:116)*N3 -> 1000 | O34: =LOOKUP(O2,'Financial Model'!2:2,'Financial Model'!116:116)*O3 -> 1000 | P34: =LOOKUP(P2,'Financial Model'!2:2,'Financial Model'!116:116)*P3 -> 1000 | Q34: =LOOKUP(Q2,'Financial Model'!2:2,'Financial Model'!116:116)*Q3 -> 0 | R34: =LOOKUP(R2,'Financial Model'!2:2,'Financial Model'!116:116)*R3 -> 0 | S34: =LOOKUP(S2,'Financial Model'!2:2,'Financial Model'!116:116)*S3 -> 0
B35: Less: WC changes
B36: Less: Operating taxes | H36: =H31 -> 375.6073876 | I36: =I31 -> 369.3097578 | J36: 380.3538922 | K36: 404.6230593 | L36: 439.3795429 | M36: 482.8455301 | N36: 533.914607 | O36: 591.953428 | P36: 656.6656659 | Q36: 0 | R36: 0 | S36: 0
B37: Add: Change in deferred tax
B38: Add: Change in provisions
C39: Free Cash Flow | H39: =H33-H34-H35-H36+H37+H38 -> 538.8121629 | I39: =I33-I34-I35-I36+I37+I38 -> 702.2023734 | J39: 861.1101156 | K39: 1020.702601 | L39: 1184.853691 | M39: 1356.569983 | N39: 1538.286862 | O39: 1732.074982 | P39: 1939.78514 | Q39: 0 | R39: 0 | S39: 0
H40: =1/(1+$E$13)^H26 -> 0.9649345555 | I40: =1/(1+$E$13)^I26 -> 0.8984493068 | J40: 0.8365449784 | K40: 0.7789059389 | L40: 0.7252383044 | M40: 0.6752684399 | N40: 0.6287415641 | O40: 0.5854204508 | P40: 0.5450842186 | Q40: 0.5075272054 | R40: 0.4725579194 | S40: 0.4399980627
C41: NPV | E41: =NPV(E13,H39:S39)*(1+E13)^0.5 -> 7480.073821 | F41: =SUMPRODUCT(H39:S39,H40:S40) -> 7480.073821
A43: NORMALIZED CASH FLOW
B44: Stable CAPEX / Depreciation | E44: =E23 -> 1.113265279 | H44: =$E$44 -> 1.113265279 | I44: =$E$44 -> 1.113265279 | J44: 1.113265279 | K44: 1.113265279 | L44: 1.113265279 | M44: 1.113265279 | N44: 1.113265279 | O44: 1.113265279 | P44: 1.113265279 | Q44: 1.113265279 | R44: 1.113265279 | S44: 1.113265279
B45: Depreciation expense | H45: =H29 -> 411.99 | I45: =I29 -> 594.2731 | J45: 720.048439 | K45: 806.8334229 | L45: 866.7150618 | M45: 908.0333926 | N45: 936.5430409 | O45: 956.2146982 | P45: 969.7881418 | Q45: 0 | R45: 0 | S45: 0
B48: ROIC
B49: Invested Capital
B50: Stable EBITDA | H50: =H28 -> 1914.41955 | I50: =I28 -> 2071.512131 | J50: 2241.464008 | K50: 2425.32566 | L50: 2624.233233 | M50: 2839.415513 | N50: 3072.201469 | O50: 3324.02841 | P50: 3596.450805 | Q50: 0 | R50: 0 | S50: 0
B51: Stable CAPEX | H51: =H44*H45 -> 458.6541622 | I51: 661.5836083 | J51: 801.6049261 | K51: 898.2196354 | L51: 964.8837848 | M51: 1010.882048 | N51: 1042.620849 | O51: 1064.520622 | P51: 1079.631466 | Q51: 0 | R51: 0 | S51: 0
B52: Stable Taxes | H52: =H31 -> 375.6073876 | I52: =I31 -> 369.3097578 | J52: 380.3538922 | K52: 404.6230593 | L52: 439.3795429 | M52: 482.8455301 | N52: 533.914607 | O52: 591.953428 | P52: 656.6656659 | Q52: 0 | R52: 0 | S52: 0
B53: Stable FCF | H53: =(H50-H51-H52)*H4 -> 0 | I53: =(I50-I51-I52)*I4 -> 0 | J53: 0 | K53: 0 | L53: 0 | M53: 0 | N53: 0 | O53: 0 | P53: 1860.153674 | Q53: 0 | R53: 0 | S53: 0
B55: FCF multiplier | E55: =(1+E14)/(E13-E14) -> 18.88888889 | H55: =$E$55*H53 -> 0 | I55: =$E$55*I53 -> 0 | J55: 0 | K55: 0 | L55: 0 | M55: 0 | N55: 0 | O55: 0 | P55: 35136.23606 | Q55: 0 | R55: 0 | S55: 0
B56: NPV of TV | E56: =NPV(E13,H55:S55)*(1+E13)^0.5 -> 19152.20778 | L56: =L55/L50 -> 0
B57: Total EV | E57: =E41+E56 -> 26632.2816
B58: Implied EV / EBITDA ratio | E58: =E57/H50 -> 13.9114133
A60: VALUATION RESULTS
B61: EV - growth rate method
B62: EV - value driver method
B63: Terminal EV / EBITDA method | I63: 0.01
H65: =E58 -> 13.9114133 | I65: 0 | J65: 0.01 | K65: 0.02 | L65: 0.03 | M65: 0.04
H66: 0.05 | I66: 17.97793067 | J66: 21.0747579 | K66: 26.20521211 | L66: 36.41940948 | M66: 66.96804591
H67: 0.06 | I67: 14.62712475 | J67: 16.49474979 | K67: 19.27478935 | L67: 23.8794585 | M67: 33.04545546
H68: 0.07 | I68: 12.25252092 | J68: 13.45973048 | K68: 15.13401862 | L68: 17.62555618 | M68: 21.75144105
H69: 0.08 | I69: 10.48684864 | J69: 11.30646164 | K69: 12.38710928 | L69: 13.88531024 | M69: 16.11412452
H70: 0.09 | I70: 9.126157485 | J70: 9.703401942 | K70: 10.43592822 | L70: 11.40129856 | M70: 12.73914174
H71: 0.1 | I71: 8.048149643 | J71: 8.466424658 | K71: 8.981459252 | L71: 9.634659419 | M71: 10.49504806
I75: =E57 -> 26632.2816 | J75: =E58 -> 13.9114133
H76: 0.05 | I76: 50167.77038 | J76: 26.20521211
H77: 0.06 | I77: 36900.03357 | J77: 19.27478935
H78: 0.07 | I78: 28972.86113 | J78: 15.13401862
H79: 0.08 | I79: 23714.12418 | J79: 12.38710928
H80: 0.09 | I80: 19978.74502 | J80: 10.43592822
H81: 0.1 | I81: 17194.28118 | J81: 8.981459252

Sheet Transaction Assumptions
A3: Transaction Date
B4: Consideration for Equity
C5: Current Share Price
C6: Premium
C8: Current Earnings
C9: Implied P/E Ratio
C11: Current EV/EBITDA
C12: Equity to EV Bridge

Sheet LBO Model

Sheet Graph Data
B3: Row | C3: 210
B4: Row 2 | C4: 209
C6: ='Financial Model'!I2 -> 2005 | D6: ='Financial Model'!J2 -> 2006 | E6: ='Financial Model'!K2 -> 2007 | F6: ='Financial Model'!L2 -> 2008 | G6: ='Financial Model'!M2 -> 2009 | H6: ='Financial Model'!N2 -> 2010 | I6: ='Financial Model'!O2 -> 2011 | J6: ='Financial Model'!P2 -> 2012 | K6: ='Financial Model'!Q2 -> 2013 | L6: ='Financial Model'!R2 -> 2014 | M6: ='Financial Model'!S2 -> 2015 | N6: ='Financial Model'!T2 -> 2016 | O6: ='Financial Model'!U2 -> 2017 | P6: ='Financial Model'!V2 -> 2018 | Q6: ='Financial Model'!W2 -> 2019 | R6: ='Financial Model'!X2 -> 2020 | S6: ='Financial Model'!Y2 -> 2021 | T6: ='Financial Model'!Z2 -> 2022 | U6: ='Financial Model'!AA2 -> 2023 | V6: ='Financial Model'!AB2 -> 2024 | W6: ='Financial Model'!AC2 -> 2025
C7: ='Financial Model'!I3 -> TRUE | D7: ='Financial Model'!J3 -> TRUE | E7: ='Financial Model'!K3 -> TRUE | F7: ='Financial Model'!L3 -> TRUE | G7: ='Financial Model'!M3 -> TRUE | H7: ='Financial Model'!N3 -> TRUE | I7: ='Financial Model'!O3 -> TRUE | J7: ='Financial Model'!P3 -> TRUE | K7: ='Financial Model'!Q3 -> TRUE | L7: ='Financial Model'!R3 -> TRUE | M7: ='Financial Model'!S3 -> TRUE | N7: ='Financial Model'!T3 -> TRUE | O7: ='Financial Model'!U3 -> FALSE | P7: ='Financial Model'!V3 -> FALSE | Q7: ='Financial Model'!W3 -> FALSE | R7: ='Financial Model'!X3 -> FALSE | S7: ='Financial Model'!Y3 -> FALSE | T7: ='Financial Model'!Z3 -> FALSE | U7: ='Financial Model'!AA3 -> FALSE | V7: ='Financial Model'!AB3 -> FALSE | W7: ='Financial Model'!AC3 -> FALSE
B8: =INDEX('Financial Model'!B:B,'Graph Data'!$C$3) -> ROIC | C8: =INDEX('Financial Model'!I:I,'Graph Data'!$C$3) -> -0.06213748619 | D8: =INDEX('Financial Model'!J:J,'Graph Data'!$C$3) -> 0.1072796203 | E8: =INDEX('Financial Model'!K:K,'Graph Data'!$C$3) -> 0.1826151494 | F8: =INDEX('Financial Model'!L:L,'Graph Data'!$C$3) -> 0.2152524168 | G8: =INDEX('Financial Model'!M:M,'Graph Data'!$C$3) -> 0.06888035126 | H8: =INDEX('Financial Model'!N:N,'Graph Data'!$C$3) -> 0.09781245646 | I8: =INDEX('Financial Model'!O:O,'Graph Data'!$C$3) -> -0.007459756576 | J8: =INDEX('Financial Model'!P:P,'Graph Data'!$C$3) -> 0.0008826125331 | K8: =INDEX('Financial Model'!Q:Q,'Graph Data'!$C$3) -> 0.06251234446 | L8: =INDEX('Financial Model'!R:R,'Graph Data'!$C$3) -> 0.2537065053 | M8: =INDEX('Financial Model'!S:S,'Graph Data'!$C$3) -> 0.5672823219 | N8: =INDEX('Financial Model'!T:T,'Graph Data'!$C$3) -> 1.427662425 | O8: =INDEX('Financial Model'!U:U,'Graph Data'!$C$3) -> 0.741777063 | P8: =INDEX('Financial Model'!V:V,'Graph Data'!$C$3) -> 0.4018684842 | Q8: =INDEX('Financial Model'!W:W,'Graph Data'!$C$3) -> 0.3568061926 | R8: =INDEX('Financial Model'!X:X,'Graph Data'!$C$3) -> 0.3439330327 | S8: =INDEX('Financial Model'!Y:Y,'Graph Data'!$C$3) -> 0.3483648892 | T8: =INDEX('Financial Model'!Z:Z,'Graph Data'!$C$3) -> 0.36361966 | U8: =INDEX('Financial Model'!AA:AA,'Graph Data'!$C$3) -> 0.3864877386 | V8: =INDEX('Financial Model'!AB:AB,'Graph Data'!$C$3) -> 0.4152730964 | W8: =INDEX('Financial Model'!AC:AC,'Graph Data'!$C$3) -> 0.4490757373
B9: =INDEX('Financial Model'!B:B,$C$4) -> Average Invested Capital | C9: =INDEX('Financial Model'!I:I,'Graph Data'!$C$4) -> 1396.500009 | D9: =INDEX('Financial Model'!J:J,'Graph Data'!$C$4) -> 1292.649989 | E9: =INDEX('Financial Model'!K:K,'Graph Data'!$C$4) -> 1819.399985 | F9: =INDEX('Financial Model'!L:L,'Graph Data'!$C$4) -> 2327.5 | G9: =INDEX('Financial Model'!M:M,'Graph Data'!$C$4) -> 2733 | H9: =INDEX('Financial Model'!N:N,'Graph Data'!$C$4) -> 3588.5 | I9: =INDEX('Financial Model'!O:O,'Graph Data'!$C$4) -> 3820.5 | J9: =INDEX('Financial Model'!P:P,'Graph Data'!$C$4) -> 3399 | K9: =INDEX('Financial Model'!Q:Q,'Graph Data'!$C$4) -> 2531.5 | L9: =INDEX('Financial Model'!R:R,'Graph Data'!$C$4) -> 1652.5 | M9: =INDEX('Financial Model'!S:S,'Graph Data'!$C$4) -> 1137 | N9: =INDEX('Financial Model'!T:T,'Graph Data'!$C$4) -> 746.5 | O9: =INDEX('Financial Model'!U:U,'Graph Data'!$C$4) -> 1519.084667 | P9: =INDEX('Financial Model'!V:V,'Graph Data'!$C$4) -> 2756.944914 | Q9: =INDEX('Financial Model'!W:W,'Graph Data'!$C$4) -> 3197.987311 | R9: =INDEX('Financial Model'!X:X,'Graph Data'!$C$4) -> 3529.376543 | S9: =INDEX('Financial Model'!Y:Y,'Graph Data'!$C$4) -> 3783.787257 | T9: =INDEX('Financial Model'!Z:Z,'Graph Data'!$C$4) -> 3983.658613 | U9: =INDEX('Financial Model'!AA:AA,'Graph Data'!$C$4) -> 4144.358698 | V9: =INDEX('Financial Model'!AB:AB,'Graph Data'!$C$4) -> 4276.367285 | W9: =INDEX('Financial Model'!AC:AC,'Graph Data'!$C$4) -> 4386.781191
C11: =C6 -> 2005 | D11: =D6 -> 2006 | E11: 2007 | F11: 2008 | G11: 2009 | H11: 2010 | I11: 2011 | J11: 2012 | K11: 2013 | L11: 2014 | M11: 2015 | N11: 2016 | O11: 2017 | P11: 2018 | Q11: 2019 | R11: 2020 | S11: 2021 | T11: 2022 | U11: 2023 | V11: 2024 | W11: 2025
B12: History | C12: =IF(C7,C8) -> -0.06213748619 | D12: =IF(D7,D8) -> 0.1072796203 | E12: 0.1826151494 | F12: 0.2152524168 | G12: 0.06888035126 | H12: 0.09781245646 | I12: -0.007459756576 | J12: 0.0008826125331 | K12: 0.06251234446 | L12: 0.2537065053 | M12: 0.5672823219 | N12: 1.427662425 | O12: FALSE | P12: FALSE | Q12: FALSE | R12: FALSE | S12: FALSE | T12: FALSE | U12: FALSE | V12: FALSE | W12: FALSE
B13: Forecast | C13: =IF(NOT(C7),C8) -> FALSE | D13: =IF(NOT(D7),D8) -> FALSE | E13: FALSE | F13: FALSE | G13: FALSE | H13: FALSE | I13: FALSE | J13: FALSE | K13: FALSE | L13: FALSE | M13: FALSE | N13: FALSE | O13: 0.741777063 | P13: 0.4018684842 | Q13: 0.3568061926 | R13: 0.3439330327 | S13: 0.3483648892 | T13: 0.36361966 | U13: 0.3864877386 | V13: 0.4152730964 | W13: 0.4490757373
C15: =C6 -> 2005 | D15: =D6 -> 2006 | E15: 2007 | F15: 2008 | G15: 2009 | H15: 2010 | I15: 2011 | J15: 2012 | K15: 2013 | L15: 2014 | M15: 2015 | N15: 2016 | O15: 2017 | P15: 2018 | Q15: 2019 | R15: 2020 | S15: 2021 | T15: 2022 | U15: 2023 | V15: 2024 | W15: 2025
C16: =IF(C7,C6,NA()) -> 2005 | D16: =IF(D7,D6,NA()) -> 2006 | E16: 2007 | F16: 2008 | G16: 2009 | H16: 2010 | I16: 2011 | J16: 2012 | K16: 2013 | L16: 2014 | M16: 2015 | N16: 2016
B17: =B8 -> ROIC | C17: =IF(C7,C8) -> -0.06213748619 | D17: =IF(D7,D8) -> 0.1072796203 | E17: 0.1826151494 | F17: 0.2152524168 | G17: 0.06888035126 | H17: 0.09781245646 | I17: -0.007459756576 | J17: 0.0008826125331 | K17: 0.06251234446 | L17: 0.2537065053 | M17: 0.5672823219 | N17: 1.427662425 | O17: FALSE | P17: FALSE | Q17: FALSE | R17: FALSE | S17: FALSE | T17: FALSE | U17: FALSE | V17: FALSE | W17: FALSE
B18: =B9 -> Average Invested Capital | C18: =IF(C7,C9) -> 1396.500009 | D18: =IF(D7,D9) -> 1292.649989 | E18: 1819.399985 | F18: 2327.5 | G18: 2733 | H18: 3588.5 | I18: 3820.5 | J18: 3399 | K18: 2531.5 | L18: 1652.5 | M18: 1137 | N18: 746.5 | O18: FALSE | P18: FALSE | Q18: FALSE | R18: FALSE | S18: FALSE | T18: FALSE | U18: FALSE | V18: FALSE | W18: FALSE
A20: =B17 -> ROIC | C20: =IF(C7,C17,NA()) -> -0.06213748619 | D20: =IF(D7,D17,NA()) -> 0.1072796203 | E20: 0.1826151494 | F20: 0.2152524168 | G20: 0.06888035126 | H20: 0.09781245646 | I20: -0.007459756576 | J20: 0.0008826125331 | K20: 0.06251234446 | L20: 0.2537065053 | M20: 0.5672823219 | N20: 1.427662425
B21: =B18 -> Average Invested Capital | C21: =C18 -> 1396.500009 | D21: 1292.649989 | E21: 1819.399985 | F21: 2327.5 | G21: 2733 | H21: 3588.5 | I21: 3820.5 | J21: 3399 | K21: 2531.5 | L21: 1652.5 | M21: 1137 | N21: 746.5 | O21: FALSE | P21: FALSE | Q21: FALSE | R21: FALSE | S21: FALSE | T21: FALSE | U21: FALSE | V21: FALSE | W21: FALSE

Sheet Scenario
D2: Code nr | E2: 1 | G2: WACC | H2: =DCF!$E$13 -> 0.074
E4: 1 | F4: 2 | G4: 3 | H4: 4 | I4: 5 | N4: =TRANSPOSE(DCF!B61:B63) -> EV - growth rate method | O4: EV - value driver method | P4: Terminal EV / EBITDA method
E5: Volume growth | F5: Price | G5: COGS | H5: CAPEX | I5: R&D cost | J5: AR / Sales | K5: Inventory / COGS | N5: =DCF!E57 -> 26632.2816 | O5: =DCF!E58 -> 13.9114133
D6: Base Case | E6: 0.07 | F6: 0.01 | G6: 0.75 | H6: 1000 | I6: 0.07 | M6: 1 | N6: 26632.2816 | O6: 13.9114133
D7: Low Case | E7: 0.04 | F7: -0.02 | G7: 0.78 | H7: 1200 | I7: 0.09 | M7: 2 | N7: 2334.672556 | O7: 1.583788986
D8: High Case | E8: 0.1 | F8: 0.03 | G8: 0.72 | H8: 800 | I8: 0.06 | M8: 3 | N8: 60351.39686 | O8: 25.47496573
C9: 1 | D9: =TRANSPOSE(E5:K5)&" Low Case" -> Volume growth Low Case | E9: =IF(E$4=$C9,E$7,E$6) -> 0.04 | F9: =IF(F$4=$C9,F$7,F$6) -> 0.01 | G9: 0.75 | H9: 1000 | I9: 0.07 | M9: 4 | N9: 17742.73615 | O9: 9.570315819
C10: 2 | D10: Price Low Case | E10: =IF(E$4=$C10,E$7,E$6) -> 0.07 | F10: -0.02 | G10: 0.75 | H10: 1000 | I10: 0.07 | M10: 5 | N10: 17271.58303 | O10: 9.334270049
C11: 3 | D11: COGS Low Case | E11: 0.07 | F11: 0.01 | G11: 0.78 | H11: 1000 | I11: 0.07 | M11: 6 | N11: 19647.4318 | O11: 12.41523654
C12: 4 | D12: CAPEX Low Case | E12: 0.07 | F12: 0.01 | G12: 0.75 | H12: 1200 | I12: 0.07 | M12: 7 | N12: 23817.76257 | O12: 12.44124495
C13: 5 | D13: R&D cost Low Case | E13: 0.07 | F13: 0.01 | G13: 0.75 | H13: 1000 | I13: 0.09 | M13: 8 | N13: 25895.42102 | O13: 13.5586671
D14: AR / Sales Low Case | E14: 0.07 | F14: 0.01 | G14: 0.75 | H14: 1000 | I14: 0.07 | M14: 9 | N14: 26632.2816 | O14: 13.9114133
D15: Inventory / COGS Low Case | E15: 0.07 | F15: 0.01 | G15: 0.75 | H15: 1000 | I15: 0.07 | M15: 10 | N15: 26632.2816 | O15: 13.9114133
C16: 1 | D16: =TRANSPOSE(E5:K5)&" High Case" -> Volume growth High Case | E16: =IF(E$4=$C16,E$8,E$6) -> 0.1 | F16: =IF(F$4=$C16,F$8,F$6) -> 0.01 | G16: 0.75 | H16: 1000 | I16: 0.07 | M16: 11 | N16: 37587.6588 | O16: 19.03264277
C17: 2 | D17: Price High Case | E17: =IF(E$4=$C17,E$8,E$6) -> 0.07 | F17: 0.03 | G17: 0.75 | H17: 1000 | I17: 0.07 | M17: 12 | N17: 34131.77543 | O17: 17.43963165
C18: 3 | D18: COGS High Case | E18: 0.07 | F18: 0.01 | G18: 0.72 | H18: 1000 | I18: 0.07 | M18: 13 | N18: 33617.13139 | O18: 14.96546852
C19: 4 | D19: CAPEX High Case | E19: 0.07 | F19: 0.01 | G19: 0.75 | H19: 800 | I19: 0.07 | M19: 14 | N19: 29446.80062 | O19: 15.38158165
C20: 5 | D20: R&D cost High Case | E20: 0.07 | F20: 0.01 | G20: 0.75 | H20: 1000 | I20: 0.06 | M20: 15 | N20: 26964.13007 | O20: 14.06807381
D21: AR / Sales High Case | E21: 0.07 | F21: 0.01 | G21: 0.75 | H21: 1000 | I21: 0.07 | M21: 16 | N21: 26632.2816 | O21: 13.9114133
D22: Inventory / COGS High Case | E22: 0.07 | F22: 0.01 | G22: 0.75 | H22: 1000 | I22: 0.07 | M22: 17 | N22: 26632.2816 | O22: 13.9114133
D25: =INDEX(D6:D22,$E$2) -> Base Case | E25: =INDEX(E6:E22,$E$2) -> 0.07 | F25: 0.01 | G25: 0.75 | H25: 1000 | I25: 0.07
F27: High vs Base | G27: Low vs Base
E28: Volume growth | F28: =O16-$O$6 -> 5.121229469 | G28: =O9-$O$6 -> -4.34109748
E29: Price | F29: =O17-$O$6 -> 3.528218351 | G29: =O10-$O$6 -> -4.577143251
E30: COGS | F30: 1.05405522 | G30: -1.496176763
E31: CAPEX | F31: 1.470168348 | G31: -1.470168348
E32: R&D cost | F32: 0.1566605101 | G32: -0.3527462043
E36: ='Financial Model'!I2 -> 2005 | F36: ='Financial Model'!J2 -> 2006 | G36: ='Financial Model'!K2 -> 2007 | H36: ='Financial Model'!L2 -> 2008 | I36: ='Financial Model'!M2 -> 2009 | J36: ='Financial Model'!N2 -> 2010 | K36: ='Financial Model'!O2 -> 2011 | L36: ='Financial Model'!P2 -> 2012 | M36: ='Financial Model'!Q2 -> 2013 | N36: ='Financial Model'!R2 -> 2014 | O36: ='Financial Model'!S2 -> 2015 | P36: ='Financial Model'!T2 -> 2016 | Q36: ='Financial Model'!U2 -> 2017 | R36: ='Financial Model'!V2 -> 2018 | S36: ='Financial Model'!W2 -> 2019 | T36: ='Financial Model'!X2 -> 2020 | U36: ='Financial Model'!Y2 -> 2021 | V36: ='Financial Model'!Z2 -> 2022 | W36: ='Financial Model'!AA2 -> 2023
B37: Price per Unit

Sheet Sheet1
G5: Direct | H5: Financing
F6: Plant assets | G6: 1 | J6: 1000
F7: Cash | H7: -1 | I7: -1 | J7: 100
F8: Derivatives | H8: -1 | I8: -1 | J8: 200
F9: Investments in Associates | H9: -1 | I9: -1 | J9: 200
J10: =SUM(J6:J9) -> 1500
F13: Current Liabilities | G13: -1 | J13: 100
F14: Liabilities from held for sale | H14: 1 | I14: 1 | J14: 50
F15: Pension unfunded | H15: 1 | I15: 1 | J15: 150
F16: Debt | H16: 1 | I16: 1 | J16: 700
F17: Equity | H17: 1 | J17: =J10-SUM(J13:J16) -> 500
J18: =SUM(J13:J17) -> 1500
F20: Invested Capital - Direct | J20: =SUMPRODUCT(G6:G17,J6:J17) -> 900
F21: Invested Capital - Financing | J21: =SUMPRODUCT(H6:H17,J6:J17) -> 900
F23: Market Cap | J23: 1500
F24: Net debt + adjustments | J24: =SUMPRODUCT(I6:I17,J6:J17) -> 400
F25: EV | J25: =J23+J24 -> 1900
F28: PV cash flows = EV | J28: 1600
F29: Adj bridge from EV to Equity value | J29: =-J24 -> -400
F30: Equity value | J30: =SUM(J28:J29) -> 1200
